Workbook

Sheet 【準備】登録
AE1: ver.1.9改 | AF1: ayayagogo7@gmail.com
A2: 対抗戦名称 | D2: 第 | E2: 8 | F2: 回 | G2: 阪神奈 | I2: 対抗戦 | AE2: by.にんにん | AF2: バグ等が有りましたら、その状態で保存しメールお願いします。
AF3: 出来る範囲で対応します。
A4: 開催日 | D4: 2015-10-25
A6: 会場 | D6: キングスポット | J6: （ | K6: =IF($D6="","",INDEX($AF10:$AG$18,MATCH($D6,$AF10:$AF18,0),2)) -> 奈良 | M6: ） | AE6: ※会場・地域を事前に設定しておいて下さい。
AE7: ※チームリストは変更出来ません。（変更がある場合は対応します。）
A8: 出場選手
A9: 前回 | B9: チーム | D9: 1 | G9: 2 | J9: 3 | M9: 4 | P9: 5 | S9: 6 | V9: 7 | AE9: チームリスト | AF9: 会 場 | AG9: 地域
A10: 順位 | D10: 選手名 | F10: 点数 | G10: 選手名 | I10: 点数 | J10: 選手名 | L10: 点数 | M10: 選手名 | O10: 点数 | P10: 選手名 | R10: 点数 | S10: 選手名 | U10: 点数 | V10: 選手名 | X10: 点数 | AE10: ORC | AF10: トップガン | AG10: 奈良
A11: 3位 | B11: =R18 -> HRC | D11: =IF(R19="","",R19) -> 高木 俊行 | F11: =IF(D11="","",IF($B11=$AE$27,INDEX($AE$28:$AH$57,MATCH(D11,$AE$28:$AE$57,0),4),IF($B11=$AJ$27,INDEX($AJ$28:$AM$57,MATCH(D11,$AJ$28:$AJ$57,0),4),IF($B11=$AO$27,INDEX($AO$28:$AR$57,MATCH(D11,$AO$28:$AO$57,0),4),IF($B11=$AT$27,INDEX($AT$28:$AW$57,MATCH(D11,$AT$28:$AT$57,0),4),IF($B11=$AY$27,INDEX($AY$28:$BB$57,MATCH(D11,$AY$28:$AY$57,0),4),IF($B11=$BD$27,INDEX($BD$28:$BG$57,MATCH(D11,$BD$28:$BD$57,0),4),""))))))) -> 180 | G11: =IF(R20="","",R20) -> 堂園 雅也 | I11: =IF(G11="","",IF($B11=$AE$27,INDEX($AE$28:$AH$57,MATCH(G11,$AE$28:$AE$57,0),4),IF($B11=$AJ$27,INDEX($AJ$28:$AM$57,MATCH(G11,$AJ$28:$AJ$57,0),4),IF($B11=$AO$27,INDEX($AO$28:$AR$57,MATCH(G11,$AO$28:$AO$57,0),4),IF($B11=$AT$27,INDEX($AT$28:$AW$57,MATCH(G11,$AT$28:$AT$57,0),4),IF($B11=$AY$27,INDEX($AY$28:$BB$57,MATCH(G11,$AY$28:$AY$57,0),4),IF($B11=$BD$27,INDEX($BD$28:$BG$57,MATCH(G11,$BD$28:$BD$57,0),4),""))))))) -> 180 | J11: =IF(R21="","",R21) -> 菊川 博功 | L11: =IF(J11="","",IF($B11=$AE$27,INDEX($AE$28:$AH$57,MATCH(J11,$AE$28:$AE$57,0),4),IF($B11=$AJ$27,INDEX($AJ$28:$AM$57,MATCH(J11,$AJ$28:$AJ$57,0),4),IF($B11=$AO$27,INDEX($AO$28:$AR$57,MATCH(J11,$AO$28:$AO$57,0),4),IF($B11=$AT$27,INDEX($AT$28:$AW$57,MATCH(J11,$AT$28:$AT$57,0),4),IF($B11=$AY$27,INDEX($AY$28:$BB$57,MATCH(J11,$AY$28:$AY$57,0),4),IF($B11=$BD$27,INDEX($BD$28:$BG$57,MATCH(J11,$BD$28:$BD$57,0),4),""))))))) -> 180 | M11: =IF(R22="","",R22) -> 丹羽 俊也 | O11: =IF(M11="","",IF($B11=$AE$27,INDEX($AE$28:$AH$57,MATCH(M11,$AE$28:$AE$57,0),4),IF($B11=$AJ$27,INDEX($AJ$28:$AM$57,MATCH(M11,$AJ$28:$AJ$57,0),4),IF($B11=$AO$27,INDEX($AO$28:$AR$57,MATCH(M11,$AO$28:$AO$57,0),4),IF($B11=$AT$27,INDEX($AT$28:$AW$57,MATCH(M11,$AT$28:$AT$57,0),4),IF($B11=$AY$27,INDEX($AY$28:$BB$57,MATCH(M11,$AY$28:$AY$57,0),4),IF($B11=$BD$27,INDEX($BD$28:$BG$57,MATCH(M11,$BD$28:$BD$57,0),4),""))))))) -> 180 | P11: =IF(R23="","",R23) -> 高山 普任 | R11: =IF(P11="","",IF($B11=$AE$27,INDEX($AE$28:$AH$57,MATCH(P11,$AE$28:$AE$57,0),4),IF($B11=$AJ$27,INDEX($AJ$28:$AM$57,MATCH(P11,$AJ$28:$AJ$57,0),4),IF($B11=$AO$27,INDEX($AO$28:$AR$57,MATCH(P11,$AO$28:$AO$57,0),4),IF($B11=$AT$27,INDEX($AT$28:$AW$57,MATCH(P11,$AT$28:$AT$57,0),4),IF($B11=$AY$27,INDEX($AY$28:$BB$57,MATCH(P11,$AY$28:$AY$57,0),4),IF($B11=$BD$27,INDEX($BD$28:$BG$57,MATCH(P11,$BD$28:$BD$57,0),4),""))))))) -> 180 | S11: =IF(R24="","",R24) -> 藤中健太郎 | U11: =IF(S11="","",IF($B11=$AE$27,INDEX($AE$28:$AH$57,MATCH(S11,$AE$28:$AE$57,0),4),IF($B11=$AJ$27,INDEX($AJ$28:$AM$57,MATCH(S11,$AJ$28:$AJ$57,0),4),IF($B11=$AO$27,INDEX($AO$28:$AR$57,MATCH(S11,$AO$28:$AO$57,0),4),IF($B11=$AT$27,INDEX($AT$28:$AW$57,MATCH(S11,$AT$28:$AT$57,0),4),IF($B11=$AY$27,INDEX($AY$28:$BB$57,MATCH(S11,$AY$28:$AY$57,0),4),IF($B11=$BD$27,INDEX($BD$28:$BG$57,MATCH(S11,$BD$28:$BD$57,0),4),""))))))) -> 180 | V11: =IF(R25="","",R25) -> 中平 美輪 | X11: =IF(V11="","",IF($B11=$AE$27,INDEX($AE$28:$AH$57,MATCH(V11,$AE$28:$AE$57,0),4),IF($B11=$AJ$27,INDEX($AJ$28:$AM$57,MATCH(V11,$AJ$28:$AJ$57,0),4),IF($B11=$AO$27,INDEX($AO$28:$AR$57,MATCH(V11,$AO$28:$AO$57,0),4),IF($B11=$AT$27,INDEX($AT$28:$AW$57,MATCH(V11,$AT$28:$AT$57,0),4),IF($B11=$AY$27,INDEX($AY$28:$BB$57,MATCH(V11,$AY$28:$AY$57,0),4),IF($B11=$BD$27,INDEX($BD$28:$BG$57,MATCH(V11,$BD$28:$BD$57,0),4),""))))))) -> 140 | AE11: KRC | AF11: キングスポット | AG11: 奈良
A12: 1位 | B12: =K18 -> NRC | D12: =IF(K19="","",K19) -> 吉向 翔平 | F12: =IF(D12="","",IF($B12=$AE$27,INDEX($AE$28:$AH$57,MATCH(D12,$AE$28:$AE$57,0),4),IF($B12=$AJ$27,INDEX($AJ$28:$AM$57,MATCH(D12,$AJ$28:$AJ$57,0),4),IF($B12=$AO$27,INDEX($AO$28:$AR$57,MATCH(D12,$AO$28:$AO$57,0),4),IF($B12=$AT$27,INDEX($AT$28:$AW$57,MATCH(D12,$AT$28:$AT$57,0),4),IF($B12=$AY$27,INDEX($AY$28:$BB$57,MATCH(D12,$AY$28:$AY$57,0),4),IF($B12=$BD$27,INDEX($BD$28:$BG$57,MATCH(D12,$BD$28:$BD$57,0),4),""))))))) -> 180 | G12: =IF(K20="","",K20) -> 近藤 拓馬 | I12: =IF(G12="","",IF($B12=$AE$27,INDEX($AE$28:$AH$57,MATCH(G12,$AE$28:$AE$57,0),4),IF($B12=$AJ$27,INDEX($AJ$28:$AM$57,MATCH(G12,$AJ$28:$AJ$57,0),4),IF($B12=$AO$27,INDEX($AO$28:$AR$57,MATCH(G12,$AO$28:$AO$57,0),4),IF($B12=$AT$27,INDEX($AT$28:$AW$57,MATCH(G12,$AT$28:$AT$57,0),4),IF($B12=$AY$27,INDEX($AY$28:$BB$57,MATCH(G12,$AY$28:$AY$57,0),4),IF($B12=$BD$27,INDEX($BD$28:$BG$57,MATCH(G12,$BD$28:$BD$57,0),4),""))))))) -> 180 | J12: =IF(K21="","",K21) -> 金澤 茂昌 | L12: =IF(J12="","",IF($B12=$AE$27,INDEX($AE$28:$AH$57,MATCH(J12,$AE$28:$AE$57,0),4),IF($B12=$AJ$27,INDEX($AJ$28:$AM$57,MATCH(J12,$AJ$28:$AJ$57,0),4),IF($B12=$AO$27,INDEX($AO$28:$AR$57,MATCH(J12,$AO$28:$AO$57,0),4),IF($B12=$AT$27,INDEX($AT$28:$AW$57,MATCH(J12,$AT$28:$AT$57,0),4),IF($B12=$AY$27,INDEX($AY$28:$BB$57,MATCH(J12,$AY$28:$AY$57,0),4),IF($B12=$BD$27,INDEX($BD$28:$BG$57,MATCH(J12,$BD$28:$BD$57,0),4),""))))))) -> 180 | M12: =IF(K22="","",K22) -> 斉藤 裕児 | O12: =IF(M12="","",IF($B12=$AE$27,INDEX($AE$28:$AH$57,MATCH(M12,$AE$28:$AE$57,0),4),IF($B12=$AJ$27,INDEX($AJ$28:$AM$57,MATCH(M12,$AJ$28:$AJ$57,0),4),IF($B12=$AO$27,INDEX($AO$28:$AR$57,MATCH(M12,$AO$28:$AO$57,0),4),IF($B12=$AT$27,INDEX($AT$28:$AW$57,MATCH(M12,$AT$28:$AT$57,0),4),IF($B12=$AY$27,INDEX($AY$28:$BB$57,MATCH(M12,$AY$28:$AY$57,0),4),IF($B12=$BD$27,INDEX($BD$28:$BG$57,MATCH(M12,$BD$28:$BD$57,0),4),""))))))) -> 180 | P12: =IF(K23="","",K23) -> 岩本 剛 | R12: =IF(P12="","",IF($B12=$AE$27,INDEX($AE$28:$AH$57,MATCH(P12,$AE$28:$AE$57,0),4),IF($B12=$AJ$27,INDEX($AJ$28:$AM$57,MATCH(P12,$AJ$28:$AJ$57,0),4),IF($B12=$AO$27,INDEX($AO$28:$AR$57,MATCH(P12,$AO$28:$AO$57,0),4),IF($B12=$AT$27,INDEX($AT$28:$AW$57,MATCH(P12,$AT$28:$AT$57,0),4),IF($B12=$AY$27,INDEX($AY$28:$BB$57,MATCH(P12,$AY$28:$AY$57,0),4),IF($B12=$BD$27,INDEX($BD$28:$BG$57,MATCH(P12,$BD$28:$BD$57,0),4),""))))))) -> 180 | S12: =IF(K24="","",K24) -> 植田 慎也 | U12: =IF(S12="","",IF($B12=$AE$27,INDEX($AE$28:$AH$57,MATCH(S12,$AE$28:$AE$57,0),4),IF($B12=$AJ$27,INDEX($AJ$28:$AM$57,MATCH(S12,$AJ$28:$AJ$57,0),4),IF($B12=$AO$27,INDEX($AO$28:$AR$57,MATCH(S12,$AO$28:$AO$57,0),4),IF($B12=$AT$27,INDEX($AT$28:$AW$57,MATCH(S12,$AT$28:$AT$57,0),4),IF($B12=$AY$27,INDEX($AY$28:$BB$57,MATCH(S12,$AY$28:$AY$57,0),4),IF($B12=$BD$27,INDEX($BD$28:$BG$57,MATCH(S12,$BD$28:$BD$57,0),4),""))))))) -> 180 | V12: =IF(K25="","",K25) -> 宮野 早織 | X12: =IF(V12="","",IF($B12=$AE$27,INDEX($AE$28:$AH$57,MATCH(V12,$AE$28:$AE$57,0),4),IF($B12=$AJ$27,INDEX($AJ$28:$AM$57,MATCH(V12,$AJ$28:$AJ$57,0),4),IF($B12=$AO$27,INDEX($AO$28:$AR$57,MATCH(V12,$AO$28:$AO$57,0),4),IF($B12=$AT$27,INDEX($AT$28:$AW$57,MATCH(V12,$AT$28:$AT$57,0),4),IF($B12=$AY$27,INDEX($AY$28:$BB$57,MATCH(V12,$AY$28:$AY$57,0),4),IF($B12=$BD$27,INDEX($BD$28:$BG$57,MATCH(V12,$BD$28:$BD$57,0),4),""))))))) -> 140 | AE12: HRC | AF12: プールギャング | AG12: 奈良
A13: 2位 | B13: =D18 -> ORC | D13: =IF(D19="","",D19) -> 樹本 武士 | F13: 180 | G13: =IF(D20="","",D20) -> 乾 伸綱 | I13: 180 | J13: =IF(D21="","",D21) -> 村上 泰辰 | L13: 180 | M13: =IF(D22="","",D22) -> 山岡 修二 | O13: 180 | P13: =IF(D23="","",D23) -> 吉岡 保俊 | R13: 180 | S13: =IF(D24="","",D24) -> 渡邊 孝行 | U13: 180 | V13: =IF(D25="","",D25) -> 山崎真紀子 | X13: 140 | AE13: SBC
AE14: NRC
A15: 点数 | D15: 男性 | F15: ： | G15: M | I15: 180 | J15: 点 | AE15: WRC
D16: 女性 | F16: ： | G16: W | I16: 140 | J16: 点
D18: ORC | K18: NRC | R18: HRC
C19: 1 | D19: 樹本 武士 | G19: =IF($D19="","",IF($D$18="ORC",INDEX($AE$28:$AF$57,MATCH($D19,$AE$28:$AE$57,0),2),IF($D$18="KRC",INDEX($AJ$28:$AK$57,MATCH($D19,$AJ$28:$AJ$57,0),2),IF($D$18="HRC",INDEX($AO$28:$AP$57,MATCH($D19,$AO$28:$AO$57,0),2),IF($D$18="SBC",INDEX($AT$28:$AU$57,MATCH($D19,$AT$28:$AT$57,0),2),IF($D$18="NRC",INDEX($AY$28:$AZ$57,MATCH($D19,$AY$28:$AY$57,0),2),IF($D$18="WRC",INDEX($BD$28:$BE$57,MATCH($D19,$BD$28:$BD$57,0),2),""))))))) -> きもと たけし | K19: 吉向 翔平 | N19: =IF($K19="","",IF($K$18="ORC",INDEX($AE$28:$AF$57,MATCH($K19,$AE$28:$AE$57,0),2),IF($K$18="KRC",INDEX($AJ$28:$AK$57,MATCH($K19,$AJ$28:$AJ$57,0),2),IF($K$18="HRC",INDEX($AO$28:$AP$57,MATCH($K19,$AO$28:$AO$57,0),2),IF($K$18="SBC",INDEX($AT$28:$AU$57,MATCH($K19,$AT$28:$AT$57,0),2),IF($K$18="NRC",INDEX($AY$28:$AZ$57,MATCH($K19,$AY$28:$AY$57,0),2),IF($K$18="WRC",INDEX($BD$28:$BE$57,MATCH($K19,$BD$28:$BD$57,0),2),""))))))) -> きっこう しょうへい | R19: 高木 俊行 | U19: =IF($R19="","",IF($R$18="ORC",INDEX($AE$28:$AF$57,MATCH($R19,$AE$28:$AE$57,0),2),IF($R$18="KRC",INDEX($AJ$28:$AK$57,MATCH($R19,$AJ$28:$AJ$57,0),2),IF($R$18="HRC",INDEX($AO$28:$AP$57,MATCH($R19,$AO$28:$AO$57,0),2),IF($R$18="SBC",INDEX($AT$28:$AU$57,MATCH($R19,$AT$28:$AT$57,0),2),IF($R$18="NRC",INDEX($AY$28:$AZ$57,MATCH($R19,$AY$28:$AY$57,0),2),IF($R$18="WRC",INDEX($BD$28:$BE$57,MATCH($R19,$BD$28:$BD$57,0),2),""))))))) -> たかぎ としゆき
C20: 2 | D20: 乾 伸綱 | G20: =IF($D20="","",IF($D$18="ORC",INDEX($AE$28:$AF$57,MATCH($D20,$AE$28:$AE$57,0),2),IF($D$18="KRC",INDEX($AJ$28:$AK$57,MATCH($D20,$AJ$28:$AJ$57,0),2),IF($D$18="HRC",INDEX($AO$28:$AP$57,MATCH($D20,$AO$28:$AO$57,0),2),IF($D$18="SBC",INDEX($AT$28:$AU$57,MATCH($D20,$AT$28:$AT$57,0),2),IF($D$18="NRC",INDEX($AY$28:$AZ$57,MATCH($D20,$AY$28:$AY$57,0),2),IF($D$18="WRC",INDEX($BD$28:$BE$57,MATCH($D20,$BD$28:$BD$57,0),2),""))))))) -> いぬい のぶつな | K20: 近藤 拓馬 | N20: =IF($K20="","",IF($K$18="ORC",INDEX($AE$28:$AF$57,MATCH($K20,$AE$28:$AE$57,0),2),IF($K$18="KRC",INDEX($AJ$28:$AK$57,MATCH($K20,$AJ$28:$AJ$57,0),2),IF($K$18="HRC",INDEX($AO$28:$AP$57,MATCH($K20,$AO$28:$AO$57,0),2),IF($K$18="SBC",INDEX($AT$28:$AU$57,MATCH($K20,$AT$28:$AT$57,0),2),IF($K$18="NRC",INDEX($AY$28:$AZ$57,MATCH($K20,$AY$28:$AY$57,0),2),IF($K$18="WRC",INDEX($BD$28:$BE$57,MATCH($K20,$BD$28:$BD$57,0),2),""))))))) -> こんどう たくま | R20: 堂園 雅也 | U20: =IF($R20="","",IF($R$18="ORC",INDEX($AE$28:$AF$57,MATCH($R20,$AE$28:$AE$57,0),2),IF($R$18="KRC",INDEX($AJ$28:$AK$57,MATCH($R20,$AJ$28:$AJ$57,0),2),IF($R$18="HRC",INDEX($AO$28:$AP$57,MATCH($R20,$AO$28:$AO$57,0),2),IF($R$18="SBC",INDEX($AT$28:$AU$57,MATCH($R20,$AT$28:$AT$57,0),2),IF($R$18="NRC",INDEX($AY$28:$AZ$57,MATCH($R20,$AY$28:$AY$57,0),2),IF($R$18="WRC",INDEX($BD$28:$BE$57,MATCH($R20,$BD$28:$BD$57,0),2),""))))))) -> どうぞの まさや
C21: 3 | D21: 村上 泰辰 | G21: むらかみ やすよし | K21: 金澤 茂昌 | N21: かなざわ しげまさ | R21: 菊川 博功 | U21: きくかわ ひろよし
C22: 4 | D22: 山岡 修二 | G22: やまおか しゅうじ | K22: 斉藤 裕児 | N22: さいとう ゆうじ | R22: 丹羽 俊也 | U22: にわ としや
C23: 5 | D23: 吉岡 保俊 | G23: よしおか やすとし | K23: 岩本 剛 | N23: いわもと つよし | R23: 高山 普任 | U23: たかやま ゆきひで
C24: 6 | D24: 渡邊 孝行 | G24: わたなべ たかゆき | K24: 植田 慎也 | N24: うえだ しんや | R24: 藤中健太郎 | U24: ふじなか けんたろう | AF24: ←名前順に並べ替え
C25: 7 | D25: 山崎真紀子 | G25: =IF($D25="","",IF($D$18="ORC",INDEX($AE$28:$AF$57,MATCH($D25,$AE$28:$AE$57,0),2),IF($D$18="KRC",INDEX($AJ$28:$AK$57,MATCH($D25,$AJ$28:$AJ$57,0),2),IF($D$18="HRC",INDEX($AO$28:$AP$57,MATCH($D25,$AO$28:$AO$57,0),2),IF($D$18="SBC",INDEX($AT$28:$AU$57,MATCH($D25,$AT$28:$AT$57,0),2),IF($D$18="NRC",INDEX($AY$28:$AZ$57,MATCH($D25,$AY$28:$AY$57,0),2),IF($D$18="WRC",INDEX($BD$28:$BE$57,MATCH($D25,$BD$28:$BD$57,0),2),""))))))) -> やまざき まきこ | K25: 宮野 早織 | N25: =IF($K25="","",IF($K$18="ORC",INDEX($AE$28:$AF$57,MATCH($K25,$AE$28:$AE$57,0),2),IF($K$18="KRC",INDEX($AJ$28:$AK$57,MATCH($K25,$AJ$28:$AJ$57,0),2),IF($K$18="HRC",INDEX($AO$28:$AP$57,MATCH($K25,$AO$28:$AO$57,0),2),IF($K$18="SBC",INDEX($AT$28:$AU$57,MATCH($K25,$AT$28:$AT$57,0),2),IF($K$18="NRC",INDEX($AY$28:$AZ$57,MATCH($K25,$AY$28:$AY$57,0),2),IF($K$18="WRC",INDEX($BD$28:$BE$57,MATCH($K25,$BD$28:$BD$57,0),2),""))))))) -> みやの さおり | R25: 中平 美輪 | U25: =IF($R25="","",IF($R$18="ORC",INDEX($AE$28:$AF$57,MATCH($R25,$AE$28:$AE$57,0),2),IF($R$18="KRC",INDEX($AJ$28:$AK$57,MATCH($R25,$AJ$28:$AJ$57,0),2),IF($R$18="HRC",INDEX($AO$28:$AP$57,MATCH($R25,$AO$28:$AO$57,0),2),IF($R$18="SBC",INDEX($AT$28:$AU$57,MATCH($R25,$AT$28:$AT$57,0),2),IF($R$18="NRC",INDEX($AY$28:$AZ$57,MATCH($R25,$AY$28:$AY$57,0),2),IF($R$18="WRC",INDEX($BD$28:$BE$57,MATCH($R25,$BD$28:$BD$57,0),2),""))))))) -> なかひら みわ | AE25: ※選手名漢字・よみがな・ハンデ（△）を事前に設定しておいて下さい。（漢字5文字以上は詰めて入力願います。各３０人まで対応）
AE27: ORC | AF27: よみがな | AG27: ハンデ | AH27: 基準点 | AJ27: KRC | AK27: よみがな | AL27: ハンデ | AM27: 基準点 | AO27: HRC | AP27: よみがな | AQ27: ハンデ | AR27: 基準点 | AT27: SBC | AU27: よみがな | AV27: ハンデ | AW27: 基準点 | AY27: NRC | AZ27: よみがな | BA27: ハンデ | BB27: 基準点 | BD27: WRC | BE27: よみがな | BF27: ハンデ | BG27: 基準点
AE28: 乾 伸綱 | AF28: いぬい のぶつな | AH28: =IF(AE28="","",IF(AG28="△",140,180)) -> 180 | AJ28: 阿部 和大 | AK28: あべ かずひろ | AM28: =IF(AJ28="","",IF(AL28="△",140,180)) -> 180 | AO28: 牛尾 貴之 | AP28: うしお たかゆき | AR28: =IF(AO28="","",IF(AQ28="△",140,180)) -> 180 | AT28: 秋田 倫央 | AU28: あきた みちお | AW28: =IF(AT28="","",IF(AV28="△",140,180)) -> 180 | AY28: 岩本 剛 | AZ28: いわもと つよし | BB28: =IF(AY28="","",IF(BA28="△",140,180)) -> 180 | BD28: 阿河 直人 | BE28: あが なおと | BG28: =IF(BD28="","",IF(BF28="△",140,180)) -> 180
A29: ◆ | B29: 変更点 | AE29: 上栄 忍 | AF29: かみえ しのぶ | AG29: △ | AH29: 140 | AJ29: 石川 政広 | AK29: いしかわ まさひろ | AM29: 180 | AO29: 大島 知幸 | AP29: おおしま ともゆき | AR29: 180 | AT29: 井上 友紀 | AU29: いのうえ ゆき | AV29: △ | AW29: 140 | AY29: 植田 慎也 | AZ29: うえだ しんや | BB29: 180 | BD29: 芝先 泰生 | BE29: しばさき やすお | BG29: 180
B30: ※会場をプルダウンメニュー選択でき、地域が表示されます。（「Home」先頭、「End」末尾） | AE30: 河本 一典 | AF30: かわもと かずのり | AH30: 180 | AJ30: 伊藤 修平 | AK30: いとう しゅうへい | AM30: 180 | AO30: 河内 恵里 | AP30: かわち えり | AQ30: △ | AR30: 140 | AT30: 大橋 義治 | AU30: おおはし よしはる | AW30: 180 | AY30: 金澤 茂昌 | AZ30: かなざわ しげまさ | BB30: 180 | BD30: 末岡 修 | BE30: すえおか おさむ | BG30: 180
B31: ※チーム名を選択後、選手名はチーム毎に切り替わり、プルダウンメニュー選択でき「よみがな」が表示されます。 | AE31: 北村 勇気 | AF31: きたむら ゆうき | AH31: 180 | AJ31: 伊庭 保久 | AK31: いば やすひさ | AM31: 180 | AO31: 菊川 博功 | AP31: きくかわ ひろよし | AR31: 180 | AT31: 酒井 美紀 | AU31: さかい みき | AV31: △ | AW31: 140 | AY31: 吉向 翔平 | AZ31: きっこう しょうへい | BB31: 180 | BD31: 杉本 博章 | BE31: すぎもと ひろあき | BG31: 180
B32: ※出場選手欄にはチーム名・名前・点数が表示され、前回順位も選択できます。 | AE32: 小森 雅昭 | AF32: こもり まさあき | AH32: 180 | AJ32: 今村 哲也 | AK32: いまむら てつや | AM32: 180 | AO32: 後藤 拓磨 | AP32: ごとう たくま | AR32: 180 | AT32: 藤田 元気 | AU32: すどう げんき | AW32: 180 | AY32: 近藤 拓馬 | AZ32: こんどう たくま | BB32: 180 | BD32: 関 長一郎 | BE32: せき ちょういちろう | BG32: 180
B33: ※ | D33: 色の項目以外は選択および入力しないで下さい。 | AE33: 中川 典久 | AF33: なかがわ のりひさ | AH33: 180 | AJ33: 植田 幸司 | AK33: うえだ こうじ | AM33: 180 | AO33: 白澤雄一郎 | AP33: しらざわ ゆういちろう | AR33: 180 | AT33: 須藤 浩章 | AU33: すどう ひろあき | AW33: 180 | AY33: 斉藤 大輔 | AZ33: さいとう だいすけ | BB33: 180 | BD33: 中本 雅大 | BE33: なかもと まさひろ | BG33: 180
AE34: 野村 宗司 | AF34: のむら そうじ | AH34: 180 | AJ34: 折戸 和幸 | AK34: おりと かずゆき | AM34: 180 | AO34: 鈴木 勇介 | AP34: すずき ゆうすけ | AR34: 180 | AT34: 高島 太一 | AU34: たかしま たいち | AW34: 180 | AY34: 斉藤 裕児 | AZ34: さいとう ゆうじ | BB34: 180 | BD34: 松房ゆかり | BE34: まつふさ ゆかり | BF34: △ | BG34: 140
B35: ※【進行】結果入力表：敗者側のスコアを入力すると相手側に”ｗ”が自動表示されます。 | AE35: 松居 勝巳 | AF35: まつい かつみ | AH35: 180 | AJ35: 加藤 秀万 | AK35: かとう しゅうまん | AM35: 180 | AO35: 高山 普任 | AP35: たかやま ゆきひで | AR35: 180 | AT35: 長田 智紀 | AU35: ながた とものり | AW35: 180 | AY35: 白戸 玲人 | AZ35: しらと れいにん | BB35: 180 | BD35: 森田 憲 | BE35: もりた けん | BG35: 180
B36: 入力行を間違えた場合は「Ctrl＋ｑ」でその行がクリア（HR、スコア）されます。 | AE36: 村上 泰辰 | AF36: むらかみ やすよし | AH36: 180 | AJ36: 金沢 亘 | AK36: かなざわ わたる | AM36: 180 | AO36: 土井本紀彦 | AP36: どいもと のりひこ | AR36: 180 | AT36: 西峰 久祐 | AU36: にしみね ひさのり | AW36: 180 | AY36: 谷野 晋平 | AZ36: たにの しんぺい | BB36: 180 | BD36: 脇 真一郎 | BE36: わき しんいちろう | BG36: 180
B37: ※【結果】リーグ成績表：表が見難いので、TPのハンデ点の書式を「縮小表示を解除」にしました。（他の計算は変更してません。） | AE37: 森山 博紀 | AF37: もりやま ひろき | AH37: 180 | AJ37: 上倉 淑敬 | AK37: かみくら きよゆき | AM37: 180 | AO37: 堂園 雅也 | AP37: どうぞの まさや | AR37: 180 | AT37: 山本小百合 | AU37: やまもと さゆり | AV37: △ | AW37: 140 | AY37: 長谷川 進 | AZ37: はせがわ すすむ | BB37: 180 | BD37: 和田宗一郎 | BE37: わだ そういちろう | BG37: 180
B38: ※【結果】総合結果表：MVP、VP、HRを自動表示、""W数＋TP""が同率の場合は手入力でお願いします。 | AE38: 安田 純華 | AF38: やすだ すみか | AG38: △ | AH38: 140 | AJ38: 川田 準樹 | AK38: かわた じゅんき | AM38: 180 | AO38: 栃下 恭子 | AP38: とちした きょうこ | AQ38: △ | AR38: 140 | AT38: 山本 淳 | AU38: やまもと じゅん | AW38: 180 | AY38: 林 隆行 | AZ38: はやし たかゆき | BB38: 180
B39: HRも同点なら手入力でお願いします。（HRが出なかった場合は空白とします。） | AE39: 山岡 修二 | AF39: やまおか しゅうじ | AH39: 180 | AJ39: 菊池 靖正 | AK39: きくち やすまさ | AM39: 180 | AO39: 長井 充 | AP39: ながい みつる | AR39: 180 | AY39: 水田 賢宏 | AZ39: みずた よしひろ | BB39: 180
B40: ※８人用の項目を７人用に変更しました。 | AE40: 山崎真紀子 | AF40: やまざき まきこ | AG40: △ | AH40: 140 | AJ40: 小堀泰次郎 | AK40: こぼり たいじろう | AM40: 180 | AO40: 中平 美輪 | AP40: なかひら みわ | AQ40: △ | AR40: 140 | AY40: 宮野 早織 | AZ40: みやの さおり | BA40: △ | BB40: 140
B41: ※その他、微修正しました。 | AE41: 吉岡 保俊 | AF41: よしおか やすとし | AH41: 180 | AJ41: 小山 久博 | AK41: こやま ひさひろ | AM41: 180 | AO41: 平井 洸志 | AP41: ひらい こうし | AR41: 180 | AY41: 山田 晋之 | AZ41: やまだ くにゆき | BB41: 180
AE42: 渡邊 孝行 | AF42: わたなべ たかゆき | AH42: 180 | AJ42: 佐藤 雄吾 | AK42: さとう ゆうご | AM42: 180 | AO42: 南 眞任 | AP42: みなみ まさひと | AR42: 180 | AY42: 山田 晃司 | AZ42: やまだ こうじ | BB42: 180
A43: ◆ | B43: シートの保護 | AE43: 樹本 武士 | AF43: きもと たけし | AH43: 180 | AJ43: 高田 裕司 | AK43: たかだ ゆうじ | AM43: 180 | AO43: 高木 俊行 | AP43: たかぎ としゆき | AR43: 180 | AY43: 鷲尾 隆杜 | AZ43: わしお りゅうと | BB43: 180
B44: 保護を解除したい時は リボン＞校閲＞変更の シートの解除（現在全解除しております。保護にするとマクロ実行時エラーに成るため。） | AJ44: 田中 正 | AK44: たなか ただし | AM44: 180 | AO44: 丹羽 俊也 | AP44: にわ としや | AR44: 180
AJ45: 早川 疏 | AK45: はやかわ とおる | AM45: 180 | AO45: 藤中健太郎 | AP45: ふじなか けんたろう | AR45: 180
A46: ◆ | B46: 緑色の小さな▲が出る場合 | AJ46: 平田 正司 | AK46: ひらた しょうじ | AM46: 180
B47: excelのオプション＞数式＞エラーチェック＞バックグラウンドでエラーチェックを行う チェック外す | AJ47: 藤本 悟史 | AK47: ふじもと さとし | AM47: 180
AJ48: 松好 太一 | AK48: まつよし たいち | AM48: 180
A49: ◆ | B49: マクロを使用しています。マクロを有効にして下さい。 | AJ49: 三木 敏裕 | AK49: みき としひろ | AM49: 180
B50: 毎回マクロを有効にするのが手間ならば（このファイルがある場所がディスクトップの場合） | AJ50: 森田由佳里 | AK50: もりた ゆかり | AL50: △ | AM50: 140
B51: excelのオプション＞セキュリティセンター＞セキュリティセンターの設定＞信頼できる場所＞新しい場所の追加＞参照＞ディスクトップ OK＞OK | AJ51: 山下 直生 | AK51: やました なおき | AM51: 180
AJ52: 若松 雄造 | AK52: わかまつ ゆうぞう | AM52: 180
A53: ◆ | B53: 【準備】対戦カード | AJ53: 渡辺 満 | AK53: わたなべ みつる | AM53: 180
B54: 対戦カードシートで対戦カードを印刷してください。
B55: A6またはハガキサイズで印刷されます。（Excel2007以降に対応）
A57: ◆ | B57: 右記の各選手名をよみがな順に並べ替えるには
B58: 並び替え：ボタンで全チームリストがよみがな順に並べ替えされます。

Sheet 【準備】対戦カード
K1: =【結果】個人成績表!$A$1 -> 第8回 阪神奈対抗戦 (奈良：キングスポット)
B3: 印刷範囲の設定 | K3: G-No | O3: T-No
N5: 所属
N6: 氏名
N7: 得点
N8: HR
O10: レフリー
B11: =【結果】個人成績表!$A$1 -> 第8回 阪神奈対抗戦 (奈良：キングスポット) | K11: =【結果】個人成績表!$A$1 -> 第8回 阪神奈対抗戦 (奈良：キングスポット) | T11: =【結果】個人成績表!$A$1 -> 第8回 阪神奈対抗戦 (奈良：キングスポット) | AC11: =【結果】個人成績表!$A$1 -> 第8回 阪神奈対抗戦 (奈良：キングスポット) | AL11: =【結果】個人成績表!$A$1 -> 第8回 阪神奈対抗戦 (奈良：キングスポット) | AU11: =【結果】個人成績表!$A$1 -> 第8回 阪神奈対抗戦 (奈良：キングスポット) | BD11: =【結果】個人成績表!$A$1 -> 第8回 阪神奈対抗戦 (奈良：キングスポット)
B13: G-No | C13: =【進行】結果入力表!B7 -> 1 | F13: T-No | K13: G-No | L13: =【進行】結果入力表!B8 -> 2 | O13: T-No | T13: G-No | U13: =【進行】結果入力表!B9 -> 3 | X13: T-No | AC13: G-No | AD13: =【進行】結果入力表!B10 -> 4 | AG13: T-No | AL13: G-No | AM13: =【進行】結果入力表!B11 -> 5 | AP13: T-No | AU13: G-No | AV13: =【進行】結果入力表!B12 -> 6 | AY13: T-No | BD13: G-No | BE13: =【進行】結果入力表!B13 -> 7 | BH13: T-No
B15: =VLOOKUP(C13,【進行】結果入力表!$B$7:$J$69,2,FALSE) -> HRC | E15: 所属 | F15: =VLOOKUP(C13,【進行】結果入力表!$B$7:$J$69,9,FALSE) -> ORC | K15: =VLOOKUP(L13,【進行】結果入力表!$B$7:$J$69,2,FALSE) -> HRC | N15: 所属 | O15: =VLOOKUP(L13,【進行】結果入力表!$B$7:$J$69,9,FALSE) -> ORC | T15: =VLOOKUP(U13,【進行】結果入力表!$B$7:$J$69,2,FALSE) -> HRC | W15: 所属 | X15: =VLOOKUP(U13,【進行】結果入力表!$B$7:$J$69,9,FALSE) -> ORC | AC15: =VLOOKUP(AD13,【進行】結果入力表!$B$7:$J$69,2,FALSE) -> HRC | AF15: 所属 | AG15: =VLOOKUP(AD13,【進行】結果入力表!$B$7:$J$69,9,FALSE) -> ORC | AL15: =VLOOKUP(AM13,【進行】結果入力表!$B$7:$J$69,2,FALSE) -> HRC | AO15: 所属 | AP15: =VLOOKUP(AM13,【進行】結果入力表!$B$7:$J$69,9,FALSE) -> ORC | AU15: =VLOOKUP(AV13,【進行】結果入力表!$B$7:$J$69,2,FALSE) -> HRC | AX15: 所属 | AY15: =VLOOKUP(AV13,【進行】結果入力表!$B$7:$J$69,9,FALSE) -> ORC | BD15: =VLOOKUP(BE13,【進行】結果入力表!$B$7:$J$69,2,FALSE) -> HRC | BG15: 所属 | BH15: =VLOOKUP(BE13,【進行】結果入力表!$B$7:$J$69,9,FALSE) -> ORC
B16: =VLOOKUP(C13,【進行】結果入力表!$B$7:$J$69,3,FALSE) -> 高木 俊行 | E16: 氏名 | F16: =VLOOKUP(C13,【進行】結果入力表!$B$7:$J$69,8,FALSE) -> 樹本 武士 | K16: =VLOOKUP(L13,【進行】結果入力表!$B$7:$J$69,3,FALSE) -> 堂園 雅也 | N16: 氏名 | O16: =VLOOKUP(L13,【進行】結果入力表!$B$7:$J$69,8,FALSE) -> 乾 伸綱 | T16: =VLOOKUP(U13,【進行】結果入力表!$B$7:$J$69,3,FALSE) -> 菊川 博功 | W16: 氏名 | X16: =VLOOKUP(U13,【進行】結果入力表!$B$7:$J$69,8,FALSE) -> 村上 泰辰 | AC16: =VLOOKUP(AD13,【進行】結果入力表!$B$7:$J$69,3,FALSE) -> 丹羽 俊也 | AF16: 氏名 | AG16: =VLOOKUP(AD13,【進行】結果入力表!$B$7:$J$69,8,FALSE) -> 山岡 修二 | AL16: =VLOOKUP(AM13,【進行】結果入力表!$B$7:$J$69,3,FALSE) -> 高山 普任 | AO16: 氏名 | AP16: =VLOOKUP(AM13,【進行】結果入力表!$B$7:$J$69,8,FALSE) -> 吉岡 保俊 | AU16: =VLOOKUP(AV13,【進行】結果入力表!$B$7:$J$69,3,FALSE) -> 藤中健太郎 | AX16: 氏名 | AY16: =VLOOKUP(AV13,【進行】結果入力表!$B$7:$J$69,8,FALSE) -> 渡邊 孝行 | BD16: =VLOOKUP(BE13,【進行】結果入力表!$B$7:$J$69,3,FALSE) -> 中平 美輪 | BG16: 氏名 | BH16: =VLOOKUP(BE13,【進行】結果入力表!$B$7:$J$69,8,FALSE) -> 山崎真紀子
E17: 得点 | N17: 得点 | W17: 得点 | AF17: 得点 | AO17: 得点 | AX17: 得点 | BG17: 得点
E18: HR | N18: HR | W18: HR | AF18: HR | AO18: HR | AX18: HR | BG18: HR
E20: レフリー： | F20: =VLOOKUP(C13,【進行】結果入力表!$B$7:$M$69,11,FALSE) -> NRC | G20: =VLOOKUP(C13,【進行】結果入力表!$B$7:$M$69,12,FALSE) -> 吉向 翔平 | N20: レフリー： | O20: =VLOOKUP(L13,【進行】結果入力表!$B$7:$M$69,11,FALSE) -> NRC | P20: =VLOOKUP(L13,【進行】結果入力表!$B$7:$M$69,12,FALSE) -> 近藤 拓馬 | W20: レフリー： | X20: =VLOOKUP(U13,【進行】結果入力表!$B$7:$M$69,11,FALSE) -> NRC | Y20: =VLOOKUP(U13,【進行】結果入力表!$B$7:$M$69,12,FALSE) -> 金澤 茂昌 | AF20: レフリー： | AG20: =VLOOKUP(AD13,【進行】結果入力表!$B$7:$M$69,11,FALSE) -> NRC | AH20: =VLOOKUP(AD13,【進行】結果入力表!$B$7:$M$69,12,FALSE) -> 斉藤 裕児 | AO20: レフリー： | AP20: =VLOOKUP(AM13,【進行】結果入力表!$B$7:$M$69,11,FALSE) -> NRC | AQ20: =VLOOKUP(AM13,【進行】結果入力表!$B$7:$M$69,12,FALSE) -> 岩本 剛 | AX20: レフリー： | AY20: =VLOOKUP(AV13,【進行】結果入力表!$B$7:$M$69,11,FALSE) -> NRC | AZ20: =VLOOKUP(AV13,【進行】結果入力表!$B$7:$M$69,12,FALSE) -> 植田 慎也 | BG20: レフリー： | BH20: =VLOOKUP(BE13,【進行】結果入力表!$B$7:$M$69,11,FALSE) -> NRC | BI20: =VLOOKUP(BE13,【進行】結果入力表!$B$7:$M$69,12,FALSE) -> 宮野 早織
B21: =【結果】個人成績表!$A$1 -> 第8回 阪神奈対抗戦 (奈良：キングスポット) | K21: =【結果】個人成績表!$A$1 -> 第8回 阪神奈対抗戦 (奈良：キングスポット) | T21: =【結果】個人成績表!$A$1 -> 第8回 阪神奈対抗戦 (奈良：キングスポット) | AC21: =【結果】個人成績表!$A$1 -> 第8回 阪神奈対抗戦 (奈良：キングスポット) | AL21: =【結果】個人成績表!$A$1 -> 第8回 阪神奈対抗戦 (奈良：キングスポット) | AU21: =【結果】個人成績表!$A$1 -> 第8回 阪神奈対抗戦 (奈良：キングスポット) | BD21: =【結果】個人成績表!$A$1 -> 第8回 阪神奈対抗戦 (奈良：キングスポット)
B23: G-No | C23: =【進行】結果入力表!B14 -> 8 | F23: T-No | K23: G-No | L23: =【進行】結果入力表!B15 -> 9 | O23: T-No | T23: G-No | U23: =【進行】結果入力表!B16 -> 10 | X23: T-No | AC23: G-No | AD23: =【進行】結果入力表!B17 -> 11 | AG23: T-No | AL23: G-No | AM23: =【進行】結果入力表!B18 -> 12 | AP23: T-No | AU23: G-No | AV23: =【進行】結果入力表!B19 -> 13 | AY23: T-No | BD23: G-No | BE23: =【進行】結果入力表!B20 -> 14 | BH23: T-No
B25: =VLOOKUP(C23,【進行】結果入力表!$B$7:$J$69,2,FALSE) -> HRC | E25: 所属 | F25: =VLOOKUP(C23,【進行】結果入力表!$B$7:$J$69,9,FALSE) -> NRC | K25: =VLOOKUP(L23,【進行】結果入力表!$B$7:$J$69,2,FALSE) -> HRC | N25: 所属 | O25: =VLOOKUP(L23,【進行】結果入力表!$B$7:$J$69,9,FALSE) -> NRC | T25: =VLOOKUP(U23,【進行】結果入力表!$B$7:$J$69,2,FALSE) -> HRC | W25: 所属 | X25: =VLOOKUP(U23,【進行】結果入力表!$B$7:$J$69,9,FALSE) -> NRC | AC25: =VLOOKUP(AD23,【進行】結果入力表!$B$7:$J$69,2,FALSE) -> HRC | AF25: 所属 | AG25: =VLOOKUP(AD23,【進行】結果入力表!$B$7:$J$69,9,FALSE) -> NRC | AL25: =VLOOKUP(AM23,【進行】結果入力表!$B$7:$J$69,2,FALSE) -> HRC | AO25: 所属 | AP25: =VLOOKUP(AM23,【進行】結果入力表!$B$7:$J$69,9,FALSE) -> NRC | AU25: =VLOOKUP(AV23,【進行】結果入力表!$B$7:$J$69,2,FALSE) -> HRC | AX25: 所属 | AY25: =VLOOKUP(AV23,【進行】結果入力表!$B$7:$J$69,9,FALSE) -> NRC | BD25: =VLOOKUP(BE23,【進行】結果入力表!$B$7:$J$69,2,FALSE) -> HRC | BG25: 所属 | BH25: =VLOOKUP(BE23,【進行】結果入力表!$B$7:$J$69,9,FALSE) -> NRC
B26: =VLOOKUP(C23,【進行】結果入力表!$B$7:$J$69,3,FALSE) -> 高木 俊行 | E26: 氏名 | F26: =VLOOKUP(C23,【進行】結果入力表!$B$7:$J$69,8,FALSE) -> 吉向 翔平 | K26: =VLOOKUP(L23,【進行】結果入力表!$B$7:$J$69,3,FALSE) -> 堂園 雅也 | N26: 氏名 | O26: =VLOOKUP(L23,【進行】結果入力表!$B$7:$J$69,8,FALSE) -> 近藤 拓馬 | T26: =VLOOKUP(U23,【進行】結果入力表!$B$7:$J$69,3,FALSE) -> 菊川 博功 | W26: 氏名 | X26: =VLOOKUP(U23,【進行】結果入力表!$B$7:$J$69,8,FALSE) -> 金澤 茂昌 | AC26: =VLOOKUP(AD23,【進行】結果入力表!$B$7:$J$69,3,FALSE) -> 丹羽 俊也 | AF26: 氏名 | AG26: =VLOOKUP(AD23,【進行】結果入力表!$B$7:$J$69,8,FALSE) -> 斉藤 裕児 | AL26: =VLOOKUP(AM23,【進行】結果入力表!$B$7:$J$69,3,FALSE) -> 高山 普任 | AO26: 氏名 | AP26: =VLOOKUP(AM23,【進行】結果入力表!$B$7:$J$69,8,FALSE) -> 岩本 剛 | AU26: =VLOOKUP(AV23,【進行】結果入力表!$B$7:$J$69,3,FALSE) -> 藤中健太郎 | AX26: 氏名 | AY26: =VLOOKUP(AV23,【進行】結果入力表!$B$7:$J$69,8,FALSE) -> 植田 慎也 | BD26: =VLOOKUP(BE23,【進行】結果入力表!$B$7:$J$69,3,FALSE) -> 中平 美輪 | BG26: 氏名 | BH26: =VLOOKUP(BE23,【進行】結果入力表!$B$7:$J$69,8,FALSE) -> 宮野 早織
E27: 得点 | N27: 得点 | W27: 得点 | AF27: 得点 | AO27: 得点 | AX27: 得点 | BG27: 得点
E28: HR | N28: HR | W28: HR | AF28: HR | AO28: HR | AX28: HR | BG28: HR
E30: レフリー： | F30: =VLOOKUP(C23,【進行】結果入力表!$B$7:$M$69,11,FALSE) -> ORC | G30: =VLOOKUP(C23,【進行】結果入力表!$B$7:$M$69,12,FALSE) -> 樹本 武士 | N30: レフリー： | O30: =VLOOKUP(L23,【進行】結果入力表!$B$7:$M$69,11,FALSE) -> ORC | P30: =VLOOKUP(L23,【進行】結果入力表!$B$7:$M$69,12,FALSE) -> 乾 伸綱 | W30: レフリー： | X30: =VLOOKUP(U23,【進行】結果入力表!$B$7:$M$69,11,FALSE) -> ORC | Y30: =VLOOKUP(U23,【進行】結果入力表!$B$7:$M$69,12,FALSE) -> 村上 泰辰 | AF30: レフリー： | AG30: =VLOOKUP(AD23,【進行】結果入力表!$B$7:$M$69,11,FALSE) -> ORC | AH30: =VLOOKUP(AD23,【進行】結果入力表!$B$7:$M$69,12,FALSE) -> 山岡 修二 | AO30: レフリー： | AP30: =VLOOKUP(AM23,【進行】結果入力表!$B$7:$M$69,11,FALSE) -> ORC | AQ30: =VLOOKUP(AM23,【進行】結果入力表!$B$7:$M$69,12,FALSE) -> 吉岡 保俊 | AX30: レフリー： | AY30: =VLOOKUP(AV23,【進行】結果入力表!$B$7:$M$69,11,FALSE) -> ORC | AZ30: =VLOOKUP(AV23,【進行】結果入力表!$B$7:$M$69,12,FALSE) -> 渡邊 孝行 | BG30: レフリー： | BH30: =VLOOKUP(BE23,【進行】結果入力表!$B$7:$M$69,11,FALSE) -> ORC | BI30: =VLOOKUP(BE23,【進行】結果入力表!$B$7:$M$69,12,FALSE) -> 山崎真紀子
B31: =【結果】個人成績表!$A$1 -> 第8回 阪神奈対抗戦 (奈良：キングスポット) | K31: =【結果】個人成績表!$A$1 -> 第8回 阪神奈対抗戦 (奈良：キングスポット) | T31: =【結果】個人成績表!$A$1 -> 第8回 阪神奈対抗戦 (奈良：キングスポット) | AC31: =【結果】個人成績表!$A$1 -> 第8回 阪神奈対抗戦 (奈良：キングスポット) | AL31: =【結果】個人成績表!$A$1 -> 第8回 阪神奈対抗戦 (奈良：キングスポット) | AU31: =【結果】個人成績表!$A$1 -> 第8回 阪神奈対抗戦 (奈良：キングスポット) | BD31: =【結果】個人成績表!$A$1 -> 第8回 阪神奈対抗戦 (奈良：キングスポット)
B33: G-No | C33: =【進行】結果入力表!B21 -> 15 | F33: T-No | K33: G-No | L33: =【進行】結果入力表!B22 -> 16 | O33: T-No | T33: G-No | U33: =【進行】結果入力表!B23 -> 17 | X33: T-No | AC33: G-No | AD33: =【進行】結果入力表!B24 -> 18 | AG33: T-No | AL33: G-No | AM33: =【進行】結果入力表!B25 -> 19 | AP33: T-No | AU33: G-No | AV33: =【進行】結果入力表!B26 -> 20 | AY33: T-No | BD33: G-No | BE33: =【進行】結果入力表!B27 -> 21 | BH33: T-No
B35: =VLOOKUP(C33,【進行】結果入力表!$B$7:$J$69,2,FALSE) -> NRC | E35: 所属 | F35: =VLOOKUP(C33,【進行】結果入力表!$B$7:$J$69,9,FALSE) -> ORC | K35: =VLOOKUP(L33,【進行】結果入力表!$B$7:$J$69,2,FALSE) -> NRC | N35: 所属 | O35: =VLOOKUP(L33,【進行】結果入力表!$B$7:$J$69,9,FALSE) -> ORC | T35: =VLOOKUP(U33,【進行】結果入力表!$B$7:$J$69,2,FALSE) -> NRC | W35: 所属 | X35: =VLOOKUP(U33,【進行】結果入力表!$B$7:$J$69,9,FALSE) -> ORC | AC35: =VLOOKUP(AD33,【進行】結果入力表!$B$7:$J$69,2,FALSE) -> NRC | AF35: 所属 | AG35: =VLOOKUP(AD33,【進行】結果入力表!$B$7:$J$69,9,FALSE) -> ORC | AL35: =VLOOKUP(AM33,【進行】結果入力表!$B$7:$J$69,2,FALSE) -> NRC | AO35: 所属 | AP35: =VLOOKUP(AM33,【進行】結果入力表!$B$7:$J$69,9,FALSE) -> ORC | AU35: =VLOOKUP(AV33,【進行】結果入力表!$B$7:$J$69,2,FALSE) -> NRC | AX35: 所属 | AY35: =VLOOKUP(AV33,【進行】結果入力表!$B$7:$J$69,9,FALSE) -> ORC | BD35: =VLOOKUP(BE33,【進行】結果入力表!$B$7:$J$69,2,FALSE) -> NRC | BG35: 所属 | BH35: =VLOOKUP(BE33,【進行】結果入力表!$B$7:$J$69,9,FALSE) -> ORC
B36: =VLOOKUP(C33,【進行】結果入力表!$B$7:$J$69,3,FALSE) -> 吉向 翔平 | E36: 氏名 | F36: =VLOOKUP(C33,【進行】結果入力表!$B$7:$J$69,8,FALSE) -> 樹本 武士 | K36: =VLOOKUP(L33,【進行】結果入力表!$B$7:$J$69,3,FALSE) -> 近藤 拓馬 | N36: 氏名 | O36: =VLOOKUP(L33,【進行】結果入力表!$B$7:$J$69,8,FALSE) -> 乾 伸綱 | T36: =VLOOKUP(U33,【進行】結果入力表!$B$7:$J$69,3,FALSE) -> 金澤 茂昌 | W36: 氏名 | X36: =VLOOKUP(U33,【進行】結果入力表!$B$7:$J$69,8,FALSE) -> 村上 泰辰 | AC36: =VLOOKUP(AD33,【進行】結果入力表!$B$7:$J$69,3,FALSE) -> 斉藤 裕児 | AF36: 氏名 | AG36: =VLOOKUP(AD33,【進行】結果入力表!$B$7:$J$69,8,FALSE) -> 山岡 修二 | AL36: =VLOOKUP(AM33,【進行】結果入力表!$B$7:$J$69,3,FALSE) -> 岩本 剛 | AO36: 氏名 | AP36: =VLOOKUP(AM33,【進行】結果入力表!$B$7:$J$69,8,FALSE) -> 吉岡 保俊 | AU36: =VLOOKUP(AV33,【進行】結果入力表!$B$7:$J$69,3,FALSE) -> 植田 慎也 | AX36: 氏名 | AY36: =VLOOKUP(AV33,【進行】結果入力表!$B$7:$J$69,8,FALSE) -> 渡邊 孝行 | BD36: =VLOOKUP(BE33,【進行】結果入力表!$B$7:$J$69,3,FALSE) -> 宮野 早織 | BG36: 氏名 | BH36: =VLOOKUP(BE33,【進行】結果入力表!$B$7:$J$69,8,FALSE) -> 山崎真紀子
E37: 得点 | N37: 得点 | W37: 得点 | AF37: 得点 | AO37: 得点 | AX37: 得点 | BG37: 得点
E38: HR | N38: HR | W38: HR | AF38: HR | AO38: HR | AX38: HR | BG38: HR
E40: レフリー： | F40: =VLOOKUP(C33,【進行】結果入力表!$B$7:$M$69,11,FALSE) -> HRC | G40: =VLOOKUP(C33,【進行】結果入力表!$B$7:$M$69,12,FALSE) -> 高木 俊行 | N40: レフリー： | O40: =VLOOKUP(L33,【進行】結果入力表!$B$7:$M$69,11,FALSE) -> HRC | P40: =VLOOKUP(L33,【進行】結果入力表!$B$7:$M$69,12,FALSE) -> 堂園 雅也 | W40: レフリー： | X40: =VLOOKUP(U33,【進行】結果入力表!$B$7:$M$69,11,FALSE) -> HRC | Y40: =VLOOKUP(U33,【進行】結果入力表!$B$7:$M$69,12,FALSE) -> 菊川 博功 | AF40: レフリー： | AG40: =VLOOKUP(AD33,【進行】結果入力表!$B$7:$M$69,11,FALSE) -> HRC | AH40: =VLOOKUP(AD33,【進行】結果入力表!$B$7:$M$69,12,FALSE) -> 丹羽 俊也 | AO40: レフリー： | AP40: =VLOOKUP(AM33,【進行】結果入力表!$B$7:$M$69,11,FALSE) -> HRC | AQ40: =VLOOKUP(AM33,【進行】結果入力表!$B$7:$M$69,12,FALSE) -> 高山 普任 | AX40: レフリー： | AY40: =VLOOKUP(AV33,【進行】結果入力表!$B$7:$M$69,11,FALSE) -> HRC | AZ40: =VLOOKUP(AV33,【進行】結果入力表!$B$7:$M$69,12,FALSE) -> 藤中健太郎 | BG40: レフリー： | BH40: =VLOOKUP(BE33,【進行】結果入力表!$B$7:$M$69,11,FALSE) -> HRC | BI40: =VLOOKUP(BE33,【進行】結果入力表!$B$7:$M$69,12,FALSE) -> 中平 美輪
B41: =【結果】個人成績表!$A$1 -> 第8回 阪神奈対抗戦 (奈良：キングスポット) | K41: =【結果】個人成績表!$A$1 -> 第8回 阪神奈対抗戦 (奈良：キングスポット) | T41: =【結果】個人成績表!$A$1 -> 第8回 阪神奈対抗戦 (奈良：キングスポット) | AC41: =【結果】個人成績表!$A$1 -> 第8回 阪神奈対抗戦 (奈良：キングスポット) | AL41: =【結果】個人成績表!$A$1 -> 第8回 阪神奈対抗戦 (奈良：キングスポット) | AU41: =【結果】個人成績表!$A$1 -> 第8回 阪神奈対抗戦 (奈良：キングスポット) | BD41: =【結果】個人成績表!$A$1 -> 第8回 阪神奈対抗戦 (奈良：キングスポット)
B43: G-No | C43: =【進行】結果入力表!B28 -> 22 | F43: T-No | K43: G-No | L43: =【進行】結果入力表!B29 -> 23 | O43: T-No | T43: G-No | U43: =【進行】結果入力表!B30 -> 24 | X43: T-No | AC43: G-No | AD43: =【進行】結果入力表!B31 -> 25 | AG43: T-No | AL43: G-No | AM43: =【進行】結果入力表!B32 -> 26 | AP43: T-No | AU43: G-No | AV43: =【進行】結果入力表!B33 -> 27 | AY43: T-No | BD43: G-No | BE43: =【進行】結果入力表!B34 -> 28 | BH43: T-No
B45: =VLOOKUP(C43,【進行】結果入力表!$B$7:$J$69,2,FALSE) -> HRC | E45: 所属 | F45: =VLOOKUP(C43,【進行】結果入力表!$B$7:$J$69,9,FALSE) -> ORC | K45: =VLOOKUP(L43,【進行】結果入力表!$B$7:$J$69,2,FALSE) -> HRC | N45: 所属 | O45: =VLOOKUP(L43,【進行】結果入力表!$B$7:$J$69,9,FALSE) -> ORC | T45: =VLOOKUP(U43,【進行】結果入力表!$B$7:$J$69,2,FALSE) -> HRC | W45: 所属 | X45: =VLOOKUP(U43,【進行】結果入力表!$B$7:$J$69,9,FALSE) -> ORC | AC45: =VLOOKUP(AD43,【進行】結果入力表!$B$7:$J$69,2,FALSE) -> HRC | AF45: 所属 | AG45: =VLOOKUP(AD43,【進行】結果入力表!$B$7:$J$69,9,FALSE) -> ORC | AL45: =VLOOKUP(AM43,【進行】結果入力表!$B$7:$J$69,2,FALSE) -> HRC | AO45: 所属 | AP45: =VLOOKUP(AM43,【進行】結果入力表!$B$7:$J$69,9,FALSE) -> ORC | AU45: =VLOOKUP(AV43,【進行】結果入力表!$B$7:$J$69,2,FALSE) -> HRC | AX45: 所属 | AY45: =VLOOKUP(AV43,【進行】結果入力表!$B$7:$J$69,9,FALSE) -> ORC | BD45: =VLOOKUP(BE43,【進行】結果入力表!$B$7:$J$69,2,FALSE) -> HRC | BG45: 所属 | BH45: =VLOOKUP(BE43,【進行】結果入力表!$B$7:$J$69,9,FALSE) -> ORC
B46: =VLOOKUP(C43,【進行】結果入力表!$B$7:$J$69,3,FALSE) -> 藤中健太郎 | E46: 氏名 | F46: =VLOOKUP(C43,【進行】結果入力表!$B$7:$J$69,8,FALSE) -> 樹本 武士 | K46: =VLOOKUP(L43,【進行】結果入力表!$B$7:$J$69,3,FALSE) -> 中平 美輪 | N46: 氏名 | O46: =VLOOKUP(L43,【進行】結果入力表!$B$7:$J$69,8,FALSE) -> 乾 伸綱 | T46: =VLOOKUP(U43,【進行】結果入力表!$B$7:$J$69,3,FALSE) -> 高木 俊行 | W46: 氏名 | X46: =VLOOKUP(U43,【進行】結果入力表!$B$7:$J$69,8,FALSE) -> 村上 泰辰 | AC46: =VLOOKUP(AD43,【進行】結果入力表!$B$7:$J$69,3,FALSE) -> 堂園 雅也 | AF46: 氏名 | AG46: =VLOOKUP(AD43,【進行】結果入力表!$B$7:$J$69,8,FALSE) -> 山岡 修二 | AL46: =VLOOKUP(AM43,【進行】結果入力表!$B$7:$J$69,3,FALSE) -> 菊川 博功 | AO46: 氏名 | AP46: =VLOOKUP(AM43,【進行】結果入力表!$B$7:$J$69,8,FALSE) -> 吉岡 保俊 | AU46: =VLOOKUP(AV43,【進行】結果入力表!$B$7:$J$69,3,FALSE) -> 丹羽 俊也 | AX46: 氏名 | AY46: =VLOOKUP(AV43,【進行】結果入力表!$B$7:$J$69,8,FALSE) -> 渡邊 孝行 | BD46: =VLOOKUP(BE43,【進行】結果入力表!$B$7:$J$69,3,FALSE) -> 高山 普任 | BG46: 氏名 | BH46: =VLOOKUP(BE43,【進行】結果入力表!$B$7:$J$69,8,FALSE) -> 山崎真紀子
E47: 得点 | N47: 得点 | W47: 得点 | AF47: 得点 | AO47: 得点 | AX47: 得点 | BG47: 得点
E48: HR | N48: HR | W48: HR | AF48: HR | AO48: HR | AX48: HR | BG48: HR
E50: レフリー： | F50: =VLOOKUP(C43,【進行】結果入力表!$B$7:$M$69,11,FALSE) -> NRC | G50: =VLOOKUP(C43,【進行】結果入力表!$B$7:$M$69,12,FALSE) -> 宮野 早織 | N50: レフリー： | O50: =VLOOKUP(L43,【進行】結果入力表!$B$7:$M$69,11,FALSE) -> NRC | P50: =VLOOKUP(L43,【進行】結果入力表!$B$7:$M$69,12,FALSE) -> 吉向 翔平 | W50: レフリー： | X50: =VLOOKUP(U43,【進行】結果入力表!$B$7:$M$69,11,FALSE) -> NRC | Y50: =VLOOKUP(U43,【進行】結果入力表!$B$7:$M$69,12,FALSE) -> 近藤 拓馬 | AF50: レフリー： | AG50: =VLOOKUP(AD43,【進行】結果入力表!$B$7:$M$69,11,FALSE) -> NRC | AH50: =VLOOKUP(AD43,【進行】結果入力表!$B$7:$M$69,12,FALSE) -> 金澤 茂昌 | AO50: レフリー： | AP50: =VLOOKUP(AM43,【進行】結果入力表!$B$7:$M$69,11,FALSE) -> NRC | AQ50: =VLOOKUP(AM43,【進行】結果入力表!$B$7:$M$69,12,FALSE) -> 斉藤 裕児 | AX50: レフリー： | AY50: =VLOOKUP(AV43,【進行】結果入力表!$B$7:$M$69,11,FALSE) -> NRC | AZ50: =VLOOKUP(AV43,【進行】結果入力表!$B$7:$M$69,12,FALSE) -> 岩本 剛 | BG50: レフリー： | BH50: =VLOOKUP(BE43,【進行】結果入力表!$B$7:$M$69,11,FALSE) -> NRC | BI50: =VLOOKUP(BE43,【進行】結果入力表!$B$7:$M$69,12,FALSE) -> 植田 慎也
B51: =【結果】個人成績表!$A$1 -> 第8回 阪神奈対抗戦 (奈良：キングスポット) | K51: =【結果】個人成績表!$A$1 -> 第8回 阪神奈対抗戦 (奈良：キングスポット) | T51: =【結果】個人成績表!$A$1 -> 第8回 阪神奈対抗戦 (奈良：キングスポット) | AC51: =【結果】個人成績表!$A$1 -> 第8回 阪神奈対抗戦 (奈良：キングスポット) | AL51: =【結果】個人成績表!$A$1 -> 第8回 阪神奈対抗戦 (奈良：キングスポット) | AU51: =【結果】個人成績表!$A$1 -> 第8回 阪神奈対抗戦 (奈良：キングスポット) | BD51: =【結果】個人成績表!$A$1 -> 第8回 阪神奈対抗戦 (奈良：キングスポット)
B53: G-No | C53: =【進行】結果入力表!B35 -> 29 | F53: T-No | K53: G-No | L53: =【進行】結果入力表!B36 -> 30 | O53: T-No | T53: G-No | U53: =【進行】結果入力表!B37 -> 31 | X53: T-No | AC53: G-No | AD53: =【進行】結果入力表!B38 -> 32 | AG53: T-No | AL53: G-No | AM53: =【進行】結果入力表!B39 -> 33 | AP53: T-No | AU53: G-No | AV53: =【進行】結果入力表!B40 -> 34 | AY53: T-No | BD53: G-No | BE53: =【進行】結果入力表!B41 -> 35 | BH53: T-No
B55: =VLOOKUP(C53,【進行】結果入力表!$B$7:$J$69,2,FALSE) -> HRC | E55: 所属 | F55: =VLOOKUP(C53,【進行】結果入力表!$B$7:$J$69,9,FALSE) -> NRC | K55: =VLOOKUP(L53,【進行】結果入力表!$B$7:$J$69,2,FALSE) -> HRC | N55: 所属 | O55: =VLOOKUP(L53,【進行】結果入力表!$B$7:$J$69,9,FALSE) -> NRC | T55: =VLOOKUP(U53,【進行】結果入力表!$B$7:$J$69,2,FALSE) -> HRC | W55: 所属 | X55: =VLOOKUP(U53,【進行】結果入力表!$B$7:$J$69,9,FALSE) -> NRC | AC55: =VLOOKUP(AD53,【進行】結果入力表!$B$7:$J$69,2,FALSE) -> HRC | AF55: 所属 | AG55: =VLOOKUP(AD53,【進行】結果入力表!$B$7:$J$69,9,FALSE) -> NRC | AL55: =VLOOKUP(AM53,【進行】結果入力表!$B$7:$J$69,2,FALSE) -> HRC | AO55: 所属 | AP55: =VLOOKUP(AM53,【進行】結果入力表!$B$7:$J$69,9,FALSE) -> NRC | AU55: =VLOOKUP(AV53,【進行】結果入力表!$B$7:$J$69,2,FALSE) -> HRC | AX55: 所属 | AY55: =VLOOKUP(AV53,【進行】結果入力表!$B$7:$J$69,9,FALSE) -> NRC | BD55: =VLOOKUP(BE53,【進行】結果入力表!$B$7:$J$69,2,FALSE) -> HRC | BG55: 所属 | BH55: =VLOOKUP(BE53,【進行】結果入力表!$B$7:$J$69,9,FALSE) -> NRC
B56: =VLOOKUP(C53,【進行】結果入力表!$B$7:$J$69,3,FALSE) -> 藤中健太郎 | E56: 氏名 | F56: =VLOOKUP(C53,【進行】結果入力表!$B$7:$J$69,8,FALSE) -> 宮野 早織 | K56: =VLOOKUP(L53,【進行】結果入力表!$B$7:$J$69,3,FALSE) -> 中平 美輪 | N56: 氏名 | O56: =VLOOKUP(L53,【進行】結果入力表!$B$7:$J$69,8,FALSE) -> 吉向 翔平 | T56: =VLOOKUP(U53,【進行】結果入力表!$B$7:$J$69,3,FALSE) -> 高木 俊行 | W56: 氏名 | X56: =VLOOKUP(U53,【進行】結果入力表!$B$7:$J$69,8,FALSE) -> 近藤 拓馬 | AC56: =VLOOKUP(AD53,【進行】結果入力表!$B$7:$J$69,3,FALSE) -> 堂園 雅也 | AF56: 氏名 | AG56: =VLOOKUP(AD53,【進行】結果入力表!$B$7:$J$69,8,FALSE) -> 金澤 茂昌 | AL56: =VLOOKUP(AM53,【進行】結果入力表!$B$7:$J$69,3,FALSE) -> 菊川 博功 | AO56: 氏名 | AP56: =VLOOKUP(AM53,【進行】結果入力表!$B$7:$J$69,8,FALSE) -> 斉藤 裕児 | AU56: =VLOOKUP(AV53,【進行】結果入力表!$B$7:$J$69,3,FALSE) -> 丹羽 俊也 | AX56: 氏名 | AY56: =VLOOKUP(AV53,【進行】結果入力表!$B$7:$J$69,8,FALSE) -> 岩本 剛 | BD56: =VLOOKUP(BE53,【進行】結果入力表!$B$7:$J$69,3,FALSE) -> 高山 普任 | BG56: 氏名 | BH56: =VLOOKUP(BE53,【進行】結果入力表!$B$7:$J$69,8,FALSE) -> 植田 慎也
E57: 得点 | N57: 得点 | W57: 得点 | AF57: 得点 | AO57: 得点 | AX57: 得点 | BG57: 得点
E58: HR | N58: HR | W58: HR | AF58: HR | AO58: HR | AX58: HR | BG58: HR
E60: レフリー： | F60: =VLOOKUP(C53,【進行】結果入力表!$B$7:$M$69,11,FALSE) -> ORC | G60: =VLOOKUP(C53,【進行】結果入力表!$B$7:$M$69,12,FALSE) -> 樹本 武士 | N60: レフリー： | O60: =VLOOKUP(L53,【進行】結果入力表!$B$7:$M$69,11,FALSE) -> ORC | P60: =VLOOKUP(L53,【進行】結果入力表!$B$7:$M$69,12,FALSE) -> 乾 伸綱 | W60: レフリー： | X60: =VLOOKUP(U53,【進行】結果入力表!$B$7:$M$69,11,FALSE) -> ORC | Y60: =VLOOKUP(U53,【進行】結果入力表!$B$7:$M$69,12,FALSE) -> 村上 泰辰 | AF60: レフリー： | AG60: =VLOOKUP(AD53,【進行】結果入力表!$B$7:$M$69,11,FALSE) -> ORC | AH60: =VLOOKUP(AD53,【進行】結果入力表!$B$7:$M$69,12,FALSE) -> 山岡 修二 | AO60: レフリー： | AP60: =VLOOKUP(AM53,【進行】結果入力表!$B$7:$M$69,11,FALSE) -> ORC | AQ60: =VLOOKUP(AM53,【進行】結果入力表!$B$7:$M$69,12,FALSE) -> 吉岡 保俊 | AX60: レフリー： | AY60: =VLOOKUP(AV53,【進行】結果入力表!$B$7:$M$69,11,FALSE) -> ORC | AZ60: =VLOOKUP(AV53,【進行】結果入力表!$B$7:$M$69,12,FALSE) -> 渡邊 孝行 | BG60: レフリー： | BH60: =VLOOKUP(BE53,【進行】結果入力表!$B$7:$M$69,11,FALSE) -> ORC | BI60: =VLOOKUP(BE53,【進行】結果入力表!$B$7:$M$69,12,FALSE) -> 山崎真紀子
B61: =【結果】個人成績表!$A$1 -> 第8回 阪神奈対抗戦 (奈良：キングスポット) | K61: =【結果】個人成績表!$A$1 -> 第8回 阪神奈対抗戦 (奈良：キングスポット) | T61: =【結果】個人成績表!$A$1 -> 第8回 阪神奈対抗戦 (奈良：キングスポット) | AC61: =【結果】個人成績表!$A$1 -> 第8回 阪神奈対抗戦 (奈良：キングスポット) | AL61: =【結果】個人成績表!$A$1 -> 第8回 阪神奈対抗戦 (奈良：キングスポット) | AU61: =【結果】個人成績表!$A$1 -> 第8回 阪神奈対抗戦 (奈良：キングスポット) | BD61: =【結果】個人成績表!$A$1 -> 第8回 阪神奈対抗戦 (奈良：キングスポット)
B63: G-No | C63: =【進行】結果入力表!B42 -> 36 | F63: T-No | K63: G-No | L63: =【進行】結果入力表!B43 -> 37 | O63: T-No | T63: G-No | U63: =【進行】結果入力表!B44 -> 38 | X63: T-No | AC63: G-No | AD63: =【進行】結果入力表!B45 -> 39 | AG63: T-No | AL63: G-No | AM63: =【進行】結果入力表!B46 -> 40 | AP63: T-No | AU63: G-No | AV63: =【進行】結果入力表!B47 -> 41 | AY63: T-No | BD63: G-No | BE63: =【進行】結果入力表!B48 -> 42 | BH63: T-No
B65: =VLOOKUP(C63,【進行】結果入力表!$B$7:$J$69,2,FALSE) -> NRC | E65: 所属 | F65: =VLOOKUP(C63,【進行】結果入力表!$B$7:$J$69,9,FALSE) -> ORC | K65: =VLOOKUP(L63,【進行】結果入力表!$B$7:$J$69,2,FALSE) -> NRC | N65: 所属 | O65: =VLOOKUP(L63,【進行】結果入力表!$B$7:$J$69,9,FALSE) -> ORC | T65: =VLOOKUP(U63,【進行】結果入力表!$B$7:$J$69,2,FALSE) -> NRC | W65: 所属 | X65: =VLOOKUP(U63,【進行】結果入力表!$B$7:$J$69,9,FALSE) -> ORC | AC65: =VLOOKUP(AD63,【進行】結果入力表!$B$7:$J$69,2,FALSE) -> NRC | AF65: 所属 | AG65: =VLOOKUP(AD63,【進行】結果入力表!$B$7:$J$69,9,FALSE) -> ORC | AL65: =VLOOKUP(AM63,【進行】結果入力表!$B$7:$J$69,2,FALSE) -> NRC | AO65: 所属 | AP65: =VLOOKUP(AM63,【進行】結果入力表!$B$7:$J$69,9,FALSE) -> ORC | AU65: =VLOOKUP(AV63,【進行】結果入力表!$B$7:$J$69,2,FALSE) -> NRC | AX65: 所属 | AY65: =VLOOKUP(AV63,【進行】結果入力表!$B$7:$J$69,9,FALSE) -> ORC | BD65: =VLOOKUP(BE63,【進行】結果入力表!$B$7:$J$69,2,FALSE) -> NRC | BG65: 所属 | BH65: =VLOOKUP(BE63,【進行】結果入力表!$B$7:$J$69,9,FALSE) -> ORC
B66: =VLOOKUP(C63,【進行】結果入力表!$B$7:$J$69,3,FALSE) -> 宮野 早織 | E66: 氏名 | F66: =VLOOKUP(C63,【進行】結果入力表!$B$7:$J$69,8,FALSE) -> 樹本 武士 | K66: =VLOOKUP(L63,【進行】結果入力表!$B$7:$J$69,3,FALSE) -> 吉向 翔平 | N66: 氏名 | O66: =VLOOKUP(L63,【進行】結果入力表!$B$7:$J$69,8,FALSE) -> 乾 伸綱 | T66: =VLOOKUP(U63,【進行】結果入力表!$B$7:$J$69,3,FALSE) -> 近藤 拓馬 | W66: 氏名 | X66: =VLOOKUP(U63,【進行】結果入力表!$B$7:$J$69,8,FALSE) -> 村上 泰辰 | AC66: =VLOOKUP(AD63,【進行】結果入力表!$B$7:$J$69,3,FALSE) -> 金澤 茂昌 | AF66: 氏名 | AG66: =VLOOKUP(AD63,【進行】結果入力表!$B$7:$J$69,8,FALSE) -> 山岡 修二 | AL66: =VLOOKUP(AM63,【進行】結果入力表!$B$7:$J$69,3,FALSE) -> 斉藤 裕児 | AO66: 氏名 | AP66: =VLOOKUP(AM63,【進行】結果入力表!$B$7:$J$69,8,FALSE) -> 吉岡 保俊 | AU66: =VLOOKUP(AV63,【進行】結果入力表!$B$7:$J$69,3,FALSE) -> 岩本 剛 | AX66: 氏名 | AY66: =VLOOKUP(AV63,【進行】結果入力表!$B$7:$J$69,8,FALSE) -> 渡邊 孝行 | BD66: =VLOOKUP(BE63,【進行】結果入力表!$B$7:$J$69,3,FALSE) -> 植田 慎也 | BG66: 氏名 | BH66: =VLOOKUP(BE63,【進行】結果入力表!$B$7:$J$69,8,FALSE) -> 山崎真紀子
E67: 得点 | N67: 得点 | W67: 得点 | AF67: 得点 | AO67: 得点 | AX67: 得点 | BG67: 得点
E68: HR | N68: HR | W68: HR | AF68: HR | AO68: HR | AX68: HR | BG68: HR
E70: レフリー： | F70: =VLOOKUP(C63,【進行】結果入力表!$B$7:$M$69,11,FALSE) -> HRC | G70: =VLOOKUP(C63,【進行】結果入力表!$B$7:$M$69,12,FALSE) -> 藤中健太郎 | N70: レフリー： | O70: =VLOOKUP(L63,【進行】結果入力表!$B$7:$M$69,11,FALSE) -> HRC | P70: =VLOOKUP(L63,【進行】結果入力表!$B$7:$M$69,12,FALSE) -> 中平 美輪 | W70: レフリー： | X70: =VLOOKUP(U63,【進行】結果入力表!$B$7:$M$69,11,FALSE) -> HRC | Y70: =VLOOKUP(U63,【進行】結果入力表!$B$7:$M$69,12,FALSE) -> 高木 俊行 | AF70: レフリー： | AG70: =VLOOKUP(AD63,【進行】結果入力表!$B$7:$M$69,11,FALSE) -> HRC | AH70: =VLOOKUP(AD63,【進行】結果入力表!$B$7:$M$69,12,FALSE) -> 堂園 雅也 | AO70: レフリー： | AP70: =VLOOKUP(AM63,【進行】結果入力表!$B$7:$M$69,11,FALSE) -> HRC | AQ70: =VLOOKUP(AM63,【進行】結果入力表!$B$7:$M$69,12,FALSE) -> 菊川 博功 | AX70: レフリー： | AY70: =VLOOKUP(AV63,【進行】結果入力表!$B$7:$M$69,11,FALSE) -> HRC | AZ70: =VLOOKUP(AV63,【進行】結果入力表!$B$7:$M$69,12,FALSE) -> 丹羽 俊也 | BG70: レフリー： | BH70: =VLOOKUP(BE63,【進行】結果入力表!$B$7:$M$69,11,FALSE) -> HRC | BI70: =VLOOKUP(BE63,【進行】結果入力表!$B$7:$M$69,12,FALSE) -> 高山 普任
B71: =【結果】個人成績表!$A$1 -> 第8回 阪神奈対抗戦 (奈良：キングスポット) | K71: =【結果】個人成績表!$A$1 -> 第8回 阪神奈対抗戦 (奈良：キングスポット) | T71: =【結果】個人成績表!$A$1 -> 第8回 阪神奈対抗戦 (奈良：キングスポット) | AC71: =【結果】個人成績表!$A$1 -> 第8回 阪神奈対抗戦 (奈良：キングスポット) | AL71: =【結果】個人成績表!$A$1 -> 第8回 阪神奈対抗戦 (奈良：キングスポット) | AU71: =【結果】個人成績表!$A$1 -> 第8回 阪神奈対抗戦 (奈良：キングスポット) | BD71: =【結果】個人成績表!$A$1 -> 第8回 阪神奈対抗戦 (奈良：キングスポット)
B73: G-No | C73: =【進行】結果入力表!B49 -> 43 | F73: T-No | K73: G-No | L73: =【進行】結果入力表!B50 -> 44 | O73: T-No | T73: G-No | U73: =【進行】結果入力表!B51 -> 45 | X73: T-No | AC73: G-No | AD73: =【進行】結果入力表!B52 -> 46 | AG73: T-No | AL73: G-No | AM73: =【進行】結果入力表!B53 -> 47 | AP73: T-No | AU73: G-No | AV73: =【進行】結果入力表!B54 -> 48 | AY73: T-No | BD73: G-No | BE73: =【進行】結果入力表!B55 -> 49 | BH73: T-No
B75: =VLOOKUP(C73,【進行】結果入力表!$B$7:$J$69,2,FALSE) -> HRC | E75: 所属 | F75: =VLOOKUP(C73,【進行】結果入力表!$B$7:$J$69,9,FALSE) -> ORC | K75: =VLOOKUP(L73,【進行】結果入力表!$B$7:$J$69,2,FALSE) -> HRC | N75: 所属 | O75: =VLOOKUP(L73,【進行】結果入力表!$B$7:$J$69,9,FALSE) -> ORC | T75: =VLOOKUP(U73,【進行】結果入力表!$B$7:$J$69,2,FALSE) -> HRC | W75: 所属 | X75: =VLOOKUP(U73,【進行】結果入力表!$B$7:$J$69,9,FALSE) -> ORC | AC75: =VLOOKUP(AD73,【進行】結果入力表!$B$7:$J$69,2,FALSE) -> HRC | AF75: 所属 | AG75: =VLOOKUP(AD73,【進行】結果入力表!$B$7:$J$69,9,FALSE) -> ORC | AL75: =VLOOKUP(AM73,【進行】結果入力表!$B$7:$J$69,2,FALSE) -> HRC | AO75: 所属 | AP75: =VLOOKUP(AM73,【進行】結果入力表!$B$7:$J$69,9,FALSE) -> ORC | AU75: =VLOOKUP(AV73,【進行】結果入力表!$B$7:$J$69,2,FALSE) -> HRC | AX75: 所属 | AY75: =VLOOKUP(AV73,【進行】結果入力表!$B$7:$J$69,9,FALSE) -> ORC | BD75: =VLOOKUP(BE73,【進行】結果入力表!$B$7:$J$69,2,FALSE) -> HRC | BG75: 所属 | BH75: =VLOOKUP(BE73,【進行】結果入力表!$B$7:$J$69,9,FALSE) -> ORC
B76: =VLOOKUP(C73,【進行】結果入力表!$B$7:$J$69,3,FALSE) -> 丹羽 俊也 | E76: 氏名 | F76: =VLOOKUP(C73,【進行】結果入力表!$B$7:$J$69,8,FALSE) -> 樹本 武士 | K76: =VLOOKUP(L73,【進行】結果入力表!$B$7:$J$69,3,FALSE) -> 高山 普任 | N76: 氏名 | O76: =VLOOKUP(L73,【進行】結果入力表!$B$7:$J$69,8,FALSE) -> 乾 伸綱 | T76: =VLOOKUP(U73,【進行】結果入力表!$B$7:$J$69,3,FALSE) -> 藤中健太郎 | W76: 氏名 | X76: =VLOOKUP(U73,【進行】結果入力表!$B$7:$J$69,8,FALSE) -> 村上 泰辰 | AC76: =VLOOKUP(AD73,【進行】結果入力表!$B$7:$J$69,3,FALSE) -> 中平 美輪 | AF76: 氏名 | AG76: =VLOOKUP(AD73,【進行】結果入力表!$B$7:$J$69,8,FALSE) -> 山岡 修二 | AL76: =VLOOKUP(AM73,【進行】結果入力表!$B$7:$J$69,3,FALSE) -> 高木 俊行 | AO76: 氏名 | AP76: =VLOOKUP(AM73,【進行】結果入力表!$B$7:$J$69,8,FALSE) -> 吉岡 保俊 | AU76: =VLOOKUP(AV73,【進行】結果入力表!$B$7:$J$69,3,FALSE) -> 堂園 雅也 | AX76: 氏名 | AY76: =VLOOKUP(AV73,【進行】結果入力表!$B$7:$J$69,8,FALSE) -> 渡邊 孝行 | BD76: =VLOOKUP(BE73,【進行】結果入力表!$B$7:$J$69,3,FALSE) -> 菊川 博功 | BG76: 氏名 | BH76: =VLOOKUP(BE73,【進行】結果入力表!$B$7:$J$69,8,FALSE) -> 山崎真紀子
E77: 得点 | N77: 得点 | W77: 得点 | AF77: 得点 | AO77: 得点 | AX77: 得点 | BG77: 得点
E78: HR | N78: HR | W78: HR | AF78: HR | AO78: HR | AX78: HR | BG78: HR
E80: レフリー： | F80: =VLOOKUP(C73,【進行】結果入力表!$B$7:$M$69,11,FALSE) -> NRC | G80: =VLOOKUP(C73,【進行】結果入力表!$B$7:$M$69,12,FALSE) -> 植田 慎也 | N80: レフリー： | O80: =VLOOKUP(L73,【進行】結果入力表!$B$7:$M$69,11,FALSE) -> NRC | P80: =VLOOKUP(L73,【進行】結果入力表!$B$7:$M$69,12,FALSE) -> 宮野 早織 | W80: レフリー： | X80: =VLOOKUP(U73,【進行】結果入力表!$B$7:$M$69,11,FALSE) -> NRC | Y80: =VLOOKUP(U73,【進行】結果入力表!$B$7:$M$69,12,FALSE) -> 吉向 翔平 | AF80: レフリー： | AG80: =VLOOKUP(AD73,【進行】結果入力表!$B$7:$M$69,11,FALSE) -> NRC | AH80: =VLOOKUP(AD73,【進行】結果入力表!$B$7:$M$69,12,FALSE) -> 近藤 拓馬 | AO80: レフリー： | AP80: =VLOOKUP(AM73,【進行】結果入力表!$B$7:$M$69,11,FALSE) -> NRC | AQ80: =VLOOKUP(AM73,【進行】結果入力表!$B$7:$M$69,12,FALSE) -> 金澤 茂昌 | AX80: レフリー： | AY80: =VLOOKUP(AV73,【進行】結果入力表!$B$7:$M$69,11,FALSE) -> NRC | AZ80: =VLOOKUP(AV73,【進行】結果入力表!$B$7:$M$69,12,FALSE) -> 斉藤 裕児 | BG80: レフリー： | BH80: =VLOOKUP(BE73,【進行】結果入力表!$B$7:$M$69,11,FALSE) -> NRC | BI80: =VLOOKUP(BE73,【進行】結果入力表!$B$7:$M$69,12,FALSE) -> 岩本 剛
B81: =【結果】個人成績表!$A$1 -> 第8回 阪神奈対抗戦 (奈良：キングスポット) | K81: =【結果】個人成績表!$A$1 -> 第8回 阪神奈対抗戦 (奈良：キングスポット) | T81: =【結果】個人成績表!$A$1 -> 第8回 阪神奈対抗戦 (奈良：キングスポット) | AC81: =【結果】個人成績表!$A$1 -> 第8回 阪神奈対抗戦 (奈良：キングスポット) | AL81: =【結果】個人成績表!$A$1 -> 第8回 阪神奈対抗戦 (奈良：キングスポット) | AU81: =【結果】個人成績表!$A$1 -> 第8回 阪神奈対抗戦 (奈良：キングスポット) | BD81: =【結果】個人成績表!$A$1 -> 第8回 阪神奈対抗戦 (奈良：キングスポット)
B83: G-No | C83: =【進行】結果入力表!B56 -> 50 | F83: T-No | K83: G-No | L83: =【進行】結果入力表!B57 -> 51 | O83: T-No | T83: G-No | U83: =【進行】結果入力表!B58 -> 52 | X83: T-No | AC83: G-No | AD83: =【進行】結果入力表!B59 -> 53 | AG83: T-No | AL83: G-No | AM83: =【進行】結果入力表!B60 -> 54 | AP83: T-No | AU83: G-No | AV83: =【進行】結果入力表!B61 -> 55 | AY83: T-No | BD83: G-No | BE83: =【進行】結果入力表!B62 -> 56 | BH83: T-No
B85: =VLOOKUP(C83,【進行】結果入力表!$B$7:$J$69,2,FALSE) -> HRC | E85: 所属 | F85: =VLOOKUP(C83,【進行】結果入力表!$B$7:$J$69,9,FALSE) -> NRC | K85: =VLOOKUP(L83,【進行】結果入力表!$B$7:$J$69,2,FALSE) -> HRC | N85: 所属 | O85: =VLOOKUP(L83,【進行】結果入力表!$B$7:$J$69,9,FALSE) -> NRC | T85: =VLOOKUP(U83,【進行】結果入力表!$B$7:$J$69,2,FALSE) -> HRC | W85: 所属 | X85: =VLOOKUP(U83,【進行】結果入力表!$B$7:$J$69,9,FALSE) -> NRC | AC85: =VLOOKUP(AD83,【進行】結果入力表!$B$7:$J$69,2,FALSE) -> HRC | AF85: 所属 | AG85: =VLOOKUP(AD83,【進行】結果入力表!$B$7:$J$69,9,FALSE) -> NRC | AL85: =VLOOKUP(AM83,【進行】結果入力表!$B$7:$J$69,2,FALSE) -> HRC | AO85: 所属 | AP85: =VLOOKUP(AM83,【進行】結果入力表!$B$7:$J$69,9,FALSE) -> NRC | AU85: =VLOOKUP(AV83,【進行】結果入力表!$B$7:$J$69,2,FALSE) -> HRC | AX85: 所属 | AY85: =VLOOKUP(AV83,【進行】結果入力表!$B$7:$J$69,9,FALSE) -> NRC | BD85: =VLOOKUP(BE83,【進行】結果入力表!$B$7:$J$69,2,FALSE) -> HRC | BG85: 所属 | BH85: =VLOOKUP(BE83,【進行】結果入力表!$B$7:$J$69,9,FALSE) -> NRC
B86: =VLOOKUP(C83,【進行】結果入力表!$B$7:$J$69,3,FALSE) -> 丹羽 俊也 | E86: 氏名 | F86: =VLOOKUP(C83,【進行】結果入力表!$B$7:$J$69,8,FALSE) -> 植田 慎也 | K86: =VLOOKUP(L83,【進行】結果入力表!$B$7:$J$69,3,FALSE) -> 高山 普任 | N86: 氏名 | O86: =VLOOKUP(L83,【進行】結果入力表!$B$7:$J$69,8,FALSE) -> 宮野 早織 | T86: =VLOOKUP(U83,【進行】結果入力表!$B$7:$J$69,3,FALSE) -> 藤中健太郎 | W86: 氏名 | X86: =VLOOKUP(U83,【進行】結果入力表!$B$7:$J$69,8,FALSE) -> 吉向 翔平 | AC86: =VLOOKUP(AD83,【進行】結果入力表!$B$7:$J$69,3,FALSE) -> 中平 美輪 | AF86: 氏名 | AG86: =VLOOKUP(AD83,【進行】結果入力表!$B$7:$J$69,8,FALSE) -> 近藤 拓馬 | AL86: =VLOOKUP(AM83,【進行】結果入力表!$B$7:$J$69,3,FALSE) -> 高木 俊行 | AO86: 氏名 | AP86: =VLOOKUP(AM83,【進行】結果入力表!$B$7:$J$69,8,FALSE) -> 金澤 茂昌 | AU86: =VLOOKUP(AV83,【進行】結果入力表!$B$7:$J$69,3,FALSE) -> 堂園 雅也 | AX86: 氏名 | AY86: =VLOOKUP(AV83,【進行】結果入力表!$B$7:$J$69,8,FALSE) -> 斉藤 裕児 | BD86: =VLOOKUP(BE83,【進行】結果入力表!$B$7:$J$69,3,FALSE) -> 菊川 博功 | BG86: 氏名 | BH86: =VLOOKUP(BE83,【進行】結果入力表!$B$7:$J$69,8,FALSE) -> 岩本 剛
E87: 得点 | N87: 得点 | W87: 得点 | AF87: 得点 | AO87: 得点 | AX87: 得点 | BG87: 得点
E88: HR | N88: HR | W88: HR | AF88: HR | AO88: HR | AX88: HR | BG88: HR
E90: レフリー： | F90: =VLOOKUP(C83,【進行】結果入力表!$B$7:$M$69,11,FALSE) -> ORC | G90: =VLOOKUP(C83,【進行】結果入力表!$B$7:$M$69,12,FALSE) -> 樹本 武士 | N90: レフリー： | O90: =VLOOKUP(L83,【進行】結果入力表!$B$7:$M$69,11,FALSE) -> ORC | P90: =VLOOKUP(L83,【進行】結果入力表!$B$7:$M$69,12,FALSE) -> 乾 伸綱 | W90: レフリー： | X90: =VLOOKUP(U83,【進行】結果入力表!$B$7:$M$69,11,FALSE) -> ORC | Y90: =VLOOKUP(U83,【進行】結果入力表!$B$7:$M$69,12,FALSE) -> 村上 泰辰 | AF90: レフリー： | AG90: =VLOOKUP(AD83,【進行】結果入力表!$B$7:$M$69,11,FALSE) -> ORC | AH90: =VLOOKUP(AD83,【進行】結果入力表!$B$7:$M$69,12,FALSE) -> 山岡 修二 | AO90: レフリー： | AP90: =VLOOKUP(AM83,【進行】結果入力表!$B$7:$M$69,11,FALSE) -> ORC | AQ90: =VLOOKUP(AM83,【進行】結果入力表!$B$7:$M$69,12,FALSE) -> 吉岡 保俊 | AX90: レフリー： | AY90: =VLOOKUP(AV83,【進行】結果入力表!$B$7:$M$69,11,FALSE) -> ORC | AZ90: =VLOOKUP(AV83,【進行】結果入力表!$B$7:$M$69,12,FALSE) -> 渡邊 孝行 | BG90: レフリー： | BH90: =VLOOKUP(BE83,【進行】結果入力表!$B$7:$M$69,11,FALSE) -> ORC | BI90: =VLOOKUP(BE83,【進行】結果入力表!$B$7:$M$69,12,FALSE) -> 山崎真紀子
B91: =【結果】個人成績表!$A$1 -> 第8回 阪神奈対抗戦 (奈良：キングスポット) | K91: =【結果】個人成績表!$A$1 -> 第8回 阪神奈対抗戦 (奈良：キングスポット) | T91: =【結果】個人成績表!$A$1 -> 第8回 阪神奈対抗戦 (奈良：キングスポット) | AC91: =【結果】個人成績表!$A$1 -> 第8回 阪神奈対抗戦 (奈良：キングスポット) | AL91: =【結果】個人成績表!$A$1 -> 第8回 阪神奈対抗戦 (奈良：キングスポット) | AU91: =【結果】個人成績表!$A$1 -> 第8回 阪神奈対抗戦 (奈良：キングスポット) | BD91: =【結果】個人成績表!$A$1 -> 第8回 阪神奈対抗戦 (奈良：キングスポット)
B93: G-No | C93: =【進行】結果入力表!B63 -> 57 | F93: T-No | K93: G-No | L93: =【進行】結果入力表!B64 -> 58 | O93: T-No | T93: G-No | U93: =【進行】結果入力表!B65 -> 59 | X93: T-No | AC93: G-No | AD93: =【進行】結果入力表!B66 -> 60 | AG93: T-No | AL93: G-No | AM93: =【進行】結果入力表!B67 -> 61 | AP93: T-No | AU93: G-No | AV93: =【進行】結果入力表!B68 -> 62 | AY93: T-No | BD93: G-No | BE93: =【進行】結果入力表!B69 -> 63 | BH93: T-No
B95: =VLOOKUP(C93,【進行】結果入力表!$B$7:$J$69,2,FALSE) -> NRC | E95: 所属 | F95: =VLOOKUP(C93,【進行】結果入力表!$B$7:$J$69,9,FALSE) -> ORC | K95: =VLOOKUP(L93,【進行】結果入力表!$B$7:$J$69,2,FALSE) -> NRC | N95: 所属 | O95: =VLOOKUP(L93,【進行】結果入力表!$B$7:$J$69,9,FALSE) -> ORC | T95: =VLOOKUP(U93,【進行】結果入力表!$B$7:$J$69,2,FALSE) -> NRC | W95: 所属 | X95: =VLOOKUP(U93,【進行】結果入力表!$B$7:$J$69,9,FALSE) -> ORC | AC95: =VLOOKUP(AD93,【進行】結果入力表!$B$7:$J$69,2,FALSE) -> NRC | AF95: 所属 | AG95: =VLOOKUP(AD93,【進行】結果入力表!$B$7:$J$69,9,FALSE) -> ORC | AL95: =VLOOKUP(AM93,【進行】結果入力表!$B$7:$J$69,2,FALSE) -> NRC | AO95: 所属 | AP95: =VLOOKUP(AM93,【進行】結果入力表!$B$7:$J$69,9,FALSE) -> ORC | AU95: =VLOOKUP(AV93,【進行】結果入力表!$B$7:$J$69,2,FALSE) -> NRC | AX95: 所属 | AY95: =VLOOKUP(AV93,【進行】結果入力表!$B$7:$J$69,9,FALSE) -> ORC | BD95: =VLOOKUP(BE93,【進行】結果入力表!$B$7:$J$69,2,FALSE) -> NRC | BG95: 所属 | BH95: =VLOOKUP(BE93,【進行】結果入力表!$B$7:$J$69,9,FALSE) -> ORC
B96: =VLOOKUP(C93,【進行】結果入力表!$B$7:$J$69,3,FALSE) -> 植田 慎也 | E96: 氏名 | F96: =VLOOKUP(C93,【進行】結果入力表!$B$7:$J$69,8,FALSE) -> 樹本 武士 | K96: =VLOOKUP(L93,【進行】結果入力表!$B$7:$J$69,3,FALSE) -> 宮野 早織 | N96: 氏名 | O96: =VLOOKUP(L93,【進行】結果入力表!$B$7:$J$69,8,FALSE) -> 乾 伸綱 | T96: =VLOOKUP(U93,【進行】結果入力表!$B$7:$J$69,3,FALSE) -> 吉向 翔平 | W96: 氏名 | X96: =VLOOKUP(U93,【進行】結果入力表!$B$7:$J$69,8,FALSE) -> 村上 泰辰 | AC96: =VLOOKUP(AD93,【進行】結果入力表!$B$7:$J$69,3,FALSE) -> 近藤 拓馬 | AF96: 氏名 | AG96: =VLOOKUP(AD93,【進行】結果入力表!$B$7:$J$69,8,FALSE) -> 山岡 修二 | AL96: =VLOOKUP(AM93,【進行】結果入力表!$B$7:$J$69,3,FALSE) -> 金澤 茂昌 | AO96: 氏名 | AP96: =VLOOKUP(AM93,【進行】結果入力表!$B$7:$J$69,8,FALSE) -> 吉岡 保俊 | AU96: =VLOOKUP(AV93,【進行】結果入力表!$B$7:$J$69,3,FALSE) -> 斉藤 裕児 | AX96: 氏名 | AY96: =VLOOKUP(AV93,【進行】結果入力表!$B$7:$J$69,8,FALSE) -> 渡邊 孝行 | BD96: =VLOOKUP(BE93,【進行】結果入力表!$B$7:$J$69,3,FALSE) -> 岩本 剛 | BG96: 氏名 | BH96: =VLOOKUP(BE93,【進行】結果入力表!$B$7:$J$69,8,FALSE) -> 山崎真紀子
E97: 得点 | N97: 得点 | W97: 得点 | AF97: 得点 | AO97: 得点 | AX97: 得点 | BG97: 得点
E98: HR | N98: HR | W98: HR | AF98: HR | AO98: HR | AX98: HR | BG98: HR
E100: レフリー： | F100: =VLOOKUP(C93,【進行】結果入力表!$B$7:$M$69,11,FALSE) -> HRC | G100: =VLOOKUP(C93,【進行】結果入力表!$B$7:$M$69,12,FALSE) -> 丹羽 俊也 | N100: レフリー： | O100: =VLOOKUP(L93,【進行】結果入力表!$B$7:$M$69,11,FALSE) -> HRC | P100: =VLOOKUP(L93,【進行】結果入力表!$B$7:$M$69,12,FALSE) -> 高山 普任 | W100: レフリー： | X100: =VLOOKUP(U93,【進行】結果入力表!$B$7:$M$69,11,FALSE) -> HRC | Y100: =VLOOKUP(U93,【進行】結果入力表!$B$7:$M$69,12,FALSE) -> 藤中健太郎 | AF100: レフリー： | AG100: =VLOOKUP(AD93,【進行】結果入力表!$B$7:$M$69,11,FALSE) -> HRC | AH100: =VLOOKUP(AD93,【進行】結果入力表!$B$7:$M$69,12,FALSE) -> 中平 美輪 | AO100: レフリー： | AP100: =VLOOKUP(AM93,【進行】結果入力表!$B$7:$M$69,11,FALSE) -> HRC | AQ100: =VLOOKUP(AM93,【進行】結果入力表!$B$7:$M$69,12,FALSE) -> 高木 俊行 | AX100: レフリー： | AY100: =VLOOKUP(AV93,【進行】結果入力表!$B$7:$M$69,11,FALSE) -> HRC | AZ100: =VLOOKUP(AV93,【進行】結果入力表!$B$7:$M$69,12,FALSE) -> 堂園 雅也 | BG100: レフリー： | BH100: =VLOOKUP(BE93,【進行】結果入力表!$B$7:$M$69,11,FALSE) -> HRC | BI100: =VLOOKUP(BE93,【進行】結果入力表!$B$7:$M$69,12,FALSE) -> 菊川 博功

Sheet 【進行】結果入力表
A6: 節 | B6: G-No | C6: 所属A | D6: 選手名A | E6: HR | F6: 得点 | G6: 得点 | H6: HR | I6: 選手名B | J6: 所属B | L6: レフリー | O6: ※敗者側のスコアを入力すると相手側に”ｗ”が自動表示されます。
A7: 第1節 | B7: 1 | C7: =IF(【準備】登録!B11="","",【準備】登録!B11) -> HRC | D7: =IF(【準備】登録!$D$11="","",【準備】登録!$D$11) -> 高木 俊行 | E7: 106 | F7: w | G7: 150 | I7: =IF(【準備】登録!$D$13="","",【準備】登録!$D$13) -> 樹本 武士 | J7: =IF(【準備】登録!B13="","",【準備】登録!B13) -> ORC | L7: =J14 -> NRC | M7: =I14 -> 吉向 翔平 | O7: ※入力行を間違えた場合は「Ctrl＋ｑ」でその行がクリアされます。
A8: 第1節 | B8: =B7+1 -> 2 | C8: =$C$7 -> HRC | D8: =IF(【準備】登録!$G$11="","",【準備】登録!$G$11) -> 堂園 雅也 | F8: w | G8: 141 | I8: =IF(【準備】登録!$G$13="","",【準備】登録!$G$13) -> 乾 伸綱 | J8: =$J$7 -> ORC | L8: NRC | M8: 近藤 拓馬
A9: 第1節 | B9: =B8+1 -> 3 | C9: HRC | D9: =IF(【準備】登録!$J$11="","",【準備】登録!$J$11) -> 菊川 博功 | F9: w | G9: 179 | I9: =IF(【準備】登録!$J$13="","",【準備】登録!$J$13) -> 村上 泰辰 | J9: ORC | L9: NRC | M9: 金澤 茂昌 | O9: ※各選手は節毎に２試合を行い、計３節、６試合を行います。
A10: 第1節 | B10: 4 | C10: HRC | D10: =IF(【準備】登録!$M$11="","",【準備】登録!$M$11) -> 丹羽 俊也 | F10: 103 | G10: w | H10: 109 | I10: =IF(【準備】登録!$M$13="","",【準備】登録!$M$13) -> 山岡 修二 | J10: ORC | L10: NRC | M10: 斉藤 裕児 | O10: ※節抜きには対応しておりません。
A11: 第1節 | B11: 5 | C11: HRC | D11: =IF(【準備】登録!$P$11="","",【準備】登録!$P$11) -> 高山 普任 | F11: w | G11: 115 | I11: =IF(【準備】登録!$P$13="","",【準備】登録!$P$13) -> 吉岡 保俊 | J11: ORC | L11: NRC | M11: 岩本 剛
A12: 第1節 | B12: 6 | C12: HRC | D12: =IF(【準備】登録!$S$11="","",【準備】登録!$S$11) -> 藤中健太郎 | F12: 150 | G12: w | I12: =IF(【準備】登録!$S$13="","",【準備】登録!$S$13) -> 渡邊 孝行 | J12: ORC | L12: NRC | M12: 植田 慎也
A13: 第1節 | B13: 7 | C13: HRC | D13: =IF(【準備】登録!$V$11="","",【準備】登録!$V$11) -> 中平 美輪 | F13: w | G13: 79 | I13: =IF(【準備】登録!$V$13="","",【準備】登録!$V$13) -> 山崎真紀子 | J13: ORC | L13: NRC | M13: 宮野 早織
A14: 第1節 | B14: 8 | C14: HRC | D14: =D7 -> 高木 俊行 | F14: w | G14: 96 | I14: =IF(【準備】登録!$D$12="","",【準備】登録!$D$12) -> 吉向 翔平 | J14: =$C$21 -> NRC | L14: =J7 -> ORC | M14: =I7 -> 樹本 武士
A15: 第1節 | B15: 9 | C15: HRC | D15: 堂園 雅也 | F15: 137 | G15: w | I15: =IF(【準備】登録!$G$12="","",【準備】登録!$G$12) -> 近藤 拓馬 | J15: NRC | L15: ORC | M15: 乾 伸綱
A16: 第1節 | B16: 10 | C16: HRC | D16: 菊川 博功 | F16: w | G16: 115 | I16: =IF(【準備】登録!$J$12="","",【準備】登録!$J$12) -> 金澤 茂昌 | J16: NRC | L16: ORC | M16: 村上 泰辰
A17: 第1節 | B17: 11 | C17: HRC | D17: 丹羽 俊也 | F17: 87 | G17: w | I17: =IF(【準備】登録!$M$12="","",【準備】登録!$M$12) -> 斉藤 裕児 | J17: NRC | L17: ORC | M17: 山岡 修二
A18: 第1節 | B18: 12 | C18: HRC | D18: 高山 普任 | F18: w | G18: 74 | I18: =IF(【準備】登録!$P$12="","",【準備】登録!$P$12) -> 岩本 剛 | J18: NRC | L18: ORC | M18: 吉岡 保俊
A19: 第1節 | B19: 13 | C19: HRC | D19: 藤中健太郎 | F19: w | G19: 36 | I19: =IF(【準備】登録!$S$12="","",【準備】登録!$S$12) -> 植田 慎也 | J19: NRC | L19: ORC | M19: 渡邊 孝行
A20: 第1節 | B20: 14 | C20: HRC | D20: 中平 美輪 | F20: w | G20: 92 | I20: =IF(【準備】登録!$V$12="","",【準備】登録!$V$12) -> 宮野 早織 | J20: NRC | L20: ORC | M20: 山崎真紀子
A21: 第1節 | B21: 15 | C21: =IF(【準備】登録!B12="","",【準備】登録!B12) -> NRC | D21: =I14 -> 吉向 翔平 | F21: w | G21: 86 | I21: =I7 -> 樹本 武士 | J21: =$J$7 -> ORC | L21: =C7 -> HRC | M21: =D14 -> 高木 俊行
A22: 第1節 | B22: 16 | C22: =$C$21 -> NRC | D22: 近藤 拓馬 | F22: w | G22: 109 | I22: 乾 伸綱 | J22: ORC | L22: HRC | M22: 堂園 雅也
A23: 第1節 | B23: 17 | C23: NRC | D23: 金澤 茂昌 | F23: 1 | G23: w | H23: 119 | I23: 村上 泰辰 | J23: ORC | L23: HRC | M23: 菊川 博功
A24: 第1節 | B24: 18 | C24: NRC | D24: 斉藤 裕児 | F24: 82 | G24: w | I24: 山岡 修二 | J24: ORC | L24: HRC | M24: 丹羽 俊也
A25: 第1節 | B25: 19 | C25: NRC | D25: 岩本 剛 | F25: 93 | G25: w | I25: 吉岡 保俊 | J25: ORC | L25: HRC | M25: 高山 普任
A26: 第1節 | B26: 20 | C26: NRC | D26: 植田 慎也 | F26: w | G26: 115 | I26: 渡邊 孝行 | J26: ORC | L26: HRC | M26: 藤中健太郎
A27: 第1節 | B27: 21 | C27: NRC | D27: 宮野 早織 | F27: 77 | G27: w | I27: 山崎真紀子 | J27: ORC | L27: HRC | M27: 中平 美輪
A28: 第2節 | B28: 22 | C28: =$C$7 -> HRC | D28: =D35 -> 藤中健太郎 | F28: 39 | G28: w | I28: =IF(【準備】登録!$D$13="","",【準備】登録!$D$13) -> 樹本 武士 | J28: ORC | L28: =J35 -> NRC | M28: =I35 -> 宮野 早織
A29: 第2節 | B29: 23 | C29: HRC | D29: 中平 美輪 | F29: 97 | G29: w | I29: =IF(【準備】登録!$G$13="","",【準備】登録!$G$13) -> 乾 伸綱 | J29: ORC | L29: NRC | M29: 吉向 翔平
A30: 第2節 | B30: 24 | C30: HRC | D30: 高木 俊行 | F30: 10 | G30: w | H30: 110 | I30: =IF(【準備】登録!$J$13="","",【準備】登録!$J$13) -> 村上 泰辰 | J30: ORC | L30: NRC | M30: 近藤 拓馬
A31: 第2節 | B31: 25 | C31: HRC | D31: 堂園 雅也 | F31: 35 | G31: w | I31: =IF(【準備】登録!$M$13="","",【準備】登録!$M$13) -> 山岡 修二 | J31: ORC | L31: NRC | M31: 金澤 茂昌
A32: 第2節 | B32: 26 | C32: HRC | D32: 菊川 博功 | F32: 29 | G32: w | I32: =IF(【準備】登録!$P$13="","",【準備】登録!$P$13) -> 吉岡 保俊 | J32: ORC | L32: NRC | M32: 斉藤 裕児
A33: 第2節 | B33: 27 | C33: HRC | D33: 丹羽 俊也 | F33: 149 | G33: w | I33: =IF(【準備】登録!$S$13="","",【準備】登録!$S$13) -> 渡邊 孝行 | J33: ORC | L33: NRC | M33: 岩本 剛
A34: 第2節 | B34: 28 | C34: HRC | D34: 高山 普任 | E34: 110 | F34: w | G34: 14 | I34: =IF(【準備】登録!$V$13="","",【準備】登録!$V$13) -> 山崎真紀子 | J34: ORC | L34: NRC | M34: 植田 慎也
A35: 第2節 | B35: 29 | C35: HRC | D35: =IF($D$7="","",IF(【準備】登録!Y11="",【準備】登録!S11,【準備】登録!$V$11)) -> 藤中健太郎 | F35: 66 | G35: w | I35: =IF($D$7="","",IF(【準備】登録!Y12="",【準備】登録!V12,【準備】登録!$Y$12)) -> 宮野 早織 | J35: =$C$21 -> NRC | L35: =J28 -> ORC | M35: =I28 -> 樹本 武士
A36: 第2節 | B36: 30 | C36: HRC | D36: =IF($D$7="","",IF(【準備】登録!$Y$11="",【準備】登録!V11,【準備】登録!Y11)) -> 中平 美輪 | F36: 45 | G36: w | I36: =IF($D$7="","",【準備】登録!$D$12) -> 吉向 翔平 | J36: NRC | L36: ORC | M36: 乾 伸綱
A37: 第2節 | B37: 31 | C37: HRC | D37: =IF($D$7="","",【準備】登録!$D$11) -> 高木 俊行 | F37: w | G37: 110 | I37: =IF($D$7="","",【準備】登録!$G$12) -> 近藤 拓馬 | J37: NRC | L37: ORC | M37: 村上 泰辰
A38: 第2節 | B38: 32 | C38: HRC | D38: =IF($D$7="","",【準備】登録!$G$11) -> 堂園 雅也 | F38: w | G38: 135 | I38: =IF($D$7="","",【準備】登録!$J$12) -> 金澤 茂昌 | J38: NRC | L38: ORC | M38: 山岡 修二
A39: 第2節 | B39: 33 | C39: HRC | D39: =IF($D$7="","",【準備】登録!$J$11) -> 菊川 博功 | F39: w | G39: 138 | I39: =IF($D$7="","",【準備】登録!$M$12) -> 斉藤 裕児 | J39: NRC | L39: ORC | M39: 吉岡 保俊
A40: 第2節 | B40: 34 | C40: HRC | D40: =IF($D$7="","",【準備】登録!$M$11) -> 丹羽 俊也 | F40: 157 | G40: w | I40: =IF($D$7="","",【準備】登録!$P$12) -> 岩本 剛 | J40: NRC | L40: ORC | M40: 渡邊 孝行
A41: 第2節 | B41: 35 | C41: HRC | D41: =IF($D$7="","",【準備】登録!$P$11) -> 高山 普任 | F41: w | G41: 86 | I41: =IF($D$7="","",【準備】登録!$S$12) -> 植田 慎也 | J41: NRC | L41: ORC | M41: 山崎真紀子
A42: 第2節 | B42: 36 | C42: =$C$21 -> NRC | D42: =I35 -> 宮野 早織 | F42: 56 | G42: w | I42: =I28 -> 樹本 武士 | J42: =$J$7 -> ORC | L42: =C35 -> HRC | M42: 藤中健太郎
A43: 第2節 | B43: 37 | C43: NRC | D43: 吉向 翔平 | F43: w | G43: 123 | I43: 乾 伸綱 | J43: ORC | L43: HRC | M43: 中平 美輪
A44: 第2節 | B44: 38 | C44: NRC | D44: 近藤 拓馬 | F44: 115 | G44: w | I44: 村上 泰辰 | J44: ORC | L44: HRC | M44: 高木 俊行
A45: 第2節 | B45: 39 | C45: NRC | D45: 金澤 茂昌 | F45: 104 | G45: w | I45: 山岡 修二 | J45: ORC | L45: HRC | M45: 堂園 雅也
A46: 第2節 | B46: 40 | C46: NRC | D46: 斉藤 裕児 | F46: 100 | G46: w | I46: 吉岡 保俊 | J46: ORC | L46: HRC | M46: 菊川 博功
A47: 第2節 | B47: 41 | C47: NRC | D47: 岩本 剛 | F47: 103 | G47: w | I47: 渡邊 孝行 | J47: ORC | L47: HRC | M47: 丹羽 俊也
A48: 第2節 | B48: 42 | C48: NRC | D48: 植田 慎也 | F48: 123 | G48: w | I48: 山崎真紀子 | J48: ORC | L48: HRC | M48: 高山 普任
A49: 第3節 | B49: 43 | C49: =$C$7 -> HRC | D49: =D56 -> 丹羽 俊也 | F49: w | G49: 123 | I49: =IF($D$7="","",【準備】登録!$D$13) -> 樹本 武士 | J49: ORC | L49: =J56 -> NRC | M49: =I56 -> 植田 慎也
A50: 第3節 | B50: 44 | C50: HRC | D50: 高山 普任 | E50: 124 | F50: 160 | G50: w | I50: =IF($D$7="","",【準備】登録!$G$13) -> 乾 伸綱 | J50: ORC | L50: NRC | M50: 宮野 早織
A51: 第3節 | B51: 45 | C51: HRC | D51: 藤中健太郎 | F51: 2 | G51: w | I51: =IF($D$7="","",【準備】登録!$J$13) -> 村上 泰辰 | J51: ORC | L51: NRC | M51: 吉向 翔平
A52: 第3節 | B52: 46 | C52: HRC | D52: 中平 美輪 | F52: 10 | G52: w | H52: 109 | I52: =IF($D$7="","",【準備】登録!$M$13) -> 山岡 修二 | J52: ORC | L52: NRC | M52: 近藤 拓馬
A53: 第3節 | B53: 47 | C53: HRC | D53: 高木 俊行 | F53: 156 | G53: w | I53: =IF($D$7="","",【準備】登録!$P$13) -> 吉岡 保俊 | J53: ORC | L53: NRC | M53: 金澤 茂昌
A54: 第3節 | B54: 48 | C54: HRC | D54: 堂園 雅也 | E54: 125 | F54: w | G54: 87 | I54: =IF($D$7="","",【準備】登録!$S$13) -> 渡邊 孝行 | J54: ORC | L54: NRC | M54: 斉藤 裕児
A55: 第3節 | B55: 49 | C55: HRC | D55: 菊川 博功 | F55: w | G55: 75 | I55: =IF($D$7="","",【準備】登録!$V$13) -> 山崎真紀子 | J55: ORC | L55: NRC | M55: 岩本 剛
A56: 第3節 | B56: 50 | C56: HRC | D56: =IF($D$7="","",IF(【準備】登録!Y11="",【準備】登録!M11,【準備】登録!$P$11)) -> 丹羽 俊也 | F56: w | G56: 76 | I56: =IF($D$7="","",IF(【準備】登録!Y12="",【準備】登録!S12,【準備】登録!$V$12)) -> 植田 慎也 | J56: =$C$21 -> NRC | L56: =J49 -> ORC | M56: =I49 -> 樹本 武士
A57: 第3節 | B57: 51 | C57: HRC | D57: =IF($D$7="","",IF(【準備】登録!Y11="",【準備】登録!P11,【準備】登録!$S$11)) -> 高山 普任 | F57: w | G57: 75 | I57: =IF($D$7="","",IF(【準備】登録!Y12="",【準備】登録!V12,【準備】登録!$Y$12)) -> 宮野 早織 | J57: NRC | L57: ORC | M57: 乾 伸綱
A58: 第3節 | B58: 52 | C58: HRC | D58: =IF($D$7="","",IF(【準備】登録!Y11="",【準備】登録!S11,【準備】登録!$V$11)) -> 藤中健太郎 | F58: 3 | G58: w | I58: =IF($D$7="","",【準備】登録!$D$12) -> 吉向 翔平 | J58: NRC | L58: ORC | M58: 村上 泰辰
A59: 第3節 | B59: 53 | C59: HRC | D59: =IF($D$7="","",IF(【準備】登録!Y11="",【準備】登録!V11,【準備】登録!$Y$11)) -> 中平 美輪 | F59: 56 | G59: w | I59: =IF($D$7="","",【準備】登録!$G$12) -> 近藤 拓馬 | J59: NRC | L59: ORC | M59: 山岡 修二
A60: 第3節 | B60: 54 | C60: HRC | D60: =IF($D$7="","",【準備】登録!$D$11) -> 高木 俊行 | F60: w | G60: 142 | I60: =IF($D$7="","",【準備】登録!$J$12) -> 金澤 茂昌 | J60: NRC | L60: ORC | M60: 吉岡 保俊
A61: 第3節 | B61: 55 | C61: HRC | D61: =IF($D$7="","",【準備】登録!$G$11) -> 堂園 雅也 | F61: w | G61: 36 | I61: =IF($D$7="","",【準備】登録!$M$12) -> 斉藤 裕児 | J61: NRC | L61: ORC | M61: 渡邊 孝行
A62: 第3節 | B62: 56 | C62: HRC | D62: =IF($D$7="","",【準備】登録!$J$11) -> 菊川 博功 | F62: w | G62: 82 | I62: =IF($D$7="","",【準備】登録!$P$12) -> 岩本 剛 | J62: NRC | L62: ORC | M62: 山崎真紀子
A63: 第3節 | B63: 57 | C63: =$C$21 -> NRC | D63: =I56 -> 植田 慎也 | F63: w | G63: 115 | I63: =I49 -> 樹本 武士 | J63: =$J$7 -> ORC | L63: =C56 -> HRC | M63: 丹羽 俊也
A64: 第3節 | B64: 58 | C64: NRC | D64: 宮野 早織 | F64: 9 | G64: w | I64: 乾 伸綱 | J64: ORC | L64: HRC | M64: 高山 普任
A65: 第3節 | B65: 59 | C65: NRC | D65: 吉向 翔平 | F65: 33 | G65: w | H65: 102 | I65: 村上 泰辰 | J65: ORC | L65: HRC | M65: 藤中健太郎
A66: 第3節 | B66: 60 | C66: NRC | D66: 近藤 拓馬 | F66: 67 | G66: w | I66: 山岡 修二 | J66: ORC | L66: HRC | M66: 中平 美輪
A67: 第3節 | B67: 61 | C67: NRC | D67: 金澤 茂昌 | F67: w | G67: 153 | I67: 吉岡 保俊 | J67: ORC | L67: HRC | M67: 高木 俊行
A68: 第3節 | B68: 62 | C68: NRC | D68: 斉藤 裕児 | F68: w | G68: 170 | I68: 渡邊 孝行 | J68: ORC | L68: HRC | M68: 堂園 雅也
A69: 第3節 | B69: 63 | C69: NRC | D69: 岩本 剛 | F69: 124 | G69: w | I69: 山崎真紀子 | J69: ORC | L69: HRC | M69: 菊川 博功

Sheet 【結果】個人成績表
A1: =【準備】登録!D2&【準備】登録!E2&【準備】登録!F2&" "&【準備】登録!G2&【準備】登録!I2&" "&"("&【準備】登録!K6&"："&【準備】登録!D6&")" -> 第8回 阪神奈対抗戦 (奈良：キングスポット)
BM2: =【準備】登録!D4 -> 2015-10-25
F4: 第１節 | X4: 第２節 | AR4: 第３節 | BL4: 順 | BM4: HR記録 | BT4: HR | BW4: HR_Point | BX4: HR_Rank | BY4: 氏名 | BZ4: クラブ | CA4: MAX | CC4: 途中経過
A5: =IF(【準備】登録!B11="","",【準備】登録!B11) -> HRC | B5: 選手名 | E5: 持点 | F5: =A25 -> ORC | H5: W | I5: L | J5: TP | L5: TP | N5: =A15 -> NRC | P5: W | Q5: L | R5: W | S5: L | T5: TP | V5: TP | X5: =F5 -> ORC | Z5: W | AA5: L | AB5: W | AC5: L | AD5: TP | AF5: TP | AH5: =N5 -> NRC | AJ5: W | AK5: L | AL5: W | AM5: L | AN5: TP | AP5: TP | AR5: =F5 -> ORC | AT5: W | AU5: L | AV5: W | AW5: L | AX5: TP | AZ5: TP | BB5: =N5 -> NRC | BD5: W | BE5: L | BF5: W | BG5: L | BH5: TP | BJ5: TP | BL5: R | BM5: 1G | BN5: 2G | BO5: 3G | BP5: 4G | BQ5: 5G | BR5: 6G | BT5: A | BU5: B | BV5: P | CC5: W | CD5: L | CE5: TP | CF5: R_P | CH5: HR_123 | CI5: 所 属 | CJ5: 名 前 | CK5: HR_Rank | CL5: W | CM5: L | CN5: R_P
B6: =IF(【準備】登録!$D$11=0,"",【準備】登録!$D$11) -> 高木 俊行 | E6: =【準備】登録!F11 -> 180 | F6: =IF(【進行】結果入力表!F7="","",【進行】結果入力表!F7) -> w | H6: =IF(F6="","",IF(F6="w",1,0)) -> 1 | I6: =IF(F6="","",IF(F6="w",0,1)) -> 0 | J6: =IF(F6="","",IF(F6="w",E6,F6)) -> 180 | L6: =IF($F6="","",J6/$E6*180) -> 180 | N6: =IF(【進行】結果入力表!F14="","",【進行】結果入力表!F14) -> w | P6: =IF(N6="","",IF(N6="w",1,0)) -> 1 | Q6: =IF(N6="","",IF(N6="w",0,1)) -> 0 | R6: =IF(N6="","",SUM(H6,P6)) -> 2 | S6: =IF(N6="","",SUM(I6,Q6)) -> 0 | T6: =IF(N6="","",IF(N6="w",E6+J6,N6+J6)) -> 360 | V6: =IF($N6="","",T6/$E6*180) -> 360 | X6: =IF(【進行】結果入力表!F30="","",【進行】結果入力表!F30) -> 10 | Z6: =IF(X6="","",IF(X6="w",1,0)) -> 0 | AA6: =IF(X6="","",IF(X6="w",0,1)) -> 1 | AB6: =IF(X6="","",SUM(R6,Z6)) -> 2 | AC6: =IF(X6="","",SUM(S6,AA6)) -> 1 | AD6: =IF(X6="","",IF(X6="w",T6+E6,X6+T6)) -> 370 | AF6: =IF($X6="","",AD6/$E6*180) -> 370 | AH6: =IF(【進行】結果入力表!F37="","",【進行】結果入力表!F37) -> w | AJ6: =IF(AH6="","",IF(AH6="w",1,0)) -> 1 | AK6: =IF(AH6="","",IF(AH6="w",0,1)) -> 0 | AL6: =IF(AH6="","",SUM(AB6,AJ6)) -> 3 | AM6: =IF(AH6="","",SUM(AC6,AK6)) -> 1 | AN6: =IF(AH6="","",IF(AH6="w",AD6+E6,AH6+AD6)) -> 550 | AP6: =IF($AH6="","",AN6/$E6*180) -> 550 | AR6: =IF(【進行】結果入力表!F53="","",【進行】結果入力表!F53) -> 156 | AT6: =IF(AR6="","",IF(AR6="w",1,0)) -> 0 | AU6: =IF(AR6="","",IF(AR6="w",0,1)) -> 1 | AV6: =IF(AR6="","",IF(AR6="w",AL6+1,AL6)) -> 3 | AW6: =IF(AR6="","",IF(AR6="w",AM6,AM6+1)) -> 2 | AX6: =IF(AR6="","",IF(AR6="w",AN6+E6,AR6+AN6)) -> 706 | AZ6: =IF($AR6="","",AX6/$E6*180) -> 706 | BB6: =IF(【進行】結果入力表!F60="","",【進行】結果入力表!F60) -> w | BD6: =IF(BB6="","",IF(BB6="w",1,0)) -> 1 | BE6: =IF(BB6="","",IF(BB6="w",0,1)) -> 0 | BF6: =IF(BB6="","",IF(BB6="w",AV6+1,AV6)) -> 4 | BG6: =IF(BB6="","",IF(BB6="w",AW6,AW6+1)) -> 2 | BH6: =IF(BB6="","",IF(BB6="w",AX6+E6,BB6+AX6)) -> 886 | BJ6: =IF($BB6="","",BH6/$E6*180) -> 886 | BL6: =IF(SUM(H6:I6,R6:S6)=0,"",IF(B$13="",RANK($CF$6:$CF$12,$CF$6:$CF$12,0),RANK($CF$6:$CF$13,$CF$6:$CF$13,0))) -> 4 | BM6: =IF(【進行】結果入力表!E7="","",【進行】結果入力表!E7) -> 106 | BN6: =IF(【進行】結果入力表!E14="","",【進行】結果入力表!E14) ->  | BO6: =IF(【進行】結果入力表!E30="","",【進行】結果入力表!E30) ->  | BP6: =IF(【進行】結果入力表!E37="","",【進行】結果入力表!E37) ->  | BQ6: =IF(【進行】結果入力表!E53="","",【進行】結果入力表!E53) ->  | BR6: =IF(【進行】結果入力表!E60="","",【進行】結果入力表!E60) ->  | BT6: =COUNTIF($BM6:$BR6,BT$5) -> 0 | BU6: 0 | BV6: =MAX($BM6:$BR6) -> 106 | BW6: =BT6*10000+BU6*1000+BV6 -> 106 | BX6: =RANK(BW6,$BW$6:$BW$33) -> 5 | BY6: =B6 -> 高木 俊行 | BZ6: =$A$5 -> HRC | CA6: =IF(BT6>0,"A"&E6,IF(BU6>0,"B"&E6,BV6)) -> 106 | CC6: =COUNTIF(F6:BC6,"w") -> 4 | CD6: =COUNT(F6,N6,AH6,X6,AR6,BB6) -> 2 | CE6: =CC6*180+SUM(F6,N6,AH6,X6,AR6,BB6)*180/E6 -> 886 | CF6: =CC6*100000+CE6 -> 400886 | CH6: =IF(ISERROR(RANK($CK6,$CK$6:$CK$8,1)),"",RANK($CK6,$CK$6:$CK$8,1)) -> 1 | CI6: =A5 -> HRC | CJ6: =IF(ISERROR(VLOOKUP(1,BL6:CF13,14,FALSE)),"",VLOOKUP(1,BL6:CF13,14,FALSE)) -> 高山 普任 | CK6: =IF(ISERROR(VLOOKUP(1,BL6:CF13,13,FALSE)),"",VLOOKUP(1,BL6:CF13,13,FALSE)) -> 2 | CL6: =IF(ISERROR(VLOOKUP(1,BL6:CF13,18,FALSE)),"",VLOOKUP(1,BL6:CF13,18,FALSE)) -> 5 | CM6: =IF(ISERROR(VLOOKUP(1,BL6:CF13,19,FALSE)),"",VLOOKUP(1,BL6:CF13,19,FALSE)) -> 1 | CN6: =IF(ISERROR(VLOOKUP(1,BL6:CF13,20,FALSE)),"",VLOOKUP(1,BL6:CF13,21,FALSE)) -> 501060
B7: =IF(【準備】登録!$D$11=0,"",【準備】登録!$G$11) -> 堂園 雅也 | E7: =【準備】登録!I11 -> 180 | F7: =IF(【進行】結果入力表!F8="","",【進行】結果入力表!F8) -> w | H7: 1 | I7: 0 | J7: 180 | L7: 180 | N7: =IF(【進行】結果入力表!F15="","",【進行】結果入力表!F15) -> 137 | P7: 0 | Q7: 1 | R7: 1 | S7: 1 | T7: 317 | V7: 317 | X7: =IF(【進行】結果入力表!F31="","",【進行】結果入力表!F31) -> 35 | Z7: 0 | AA7: 1 | AB7: 1 | AC7: 2 | AD7: 352 | AF7: 352 | AH7: =IF(【進行】結果入力表!F38="","",【進行】結果入力表!F38) -> w | AJ7: 1 | AK7: 0 | AL7: 2 | AM7: 2 | AN7: 532 | AP7: 532 | AR7: =IF(【進行】結果入力表!F54="","",【進行】結果入力表!F54) -> w | AT7: 1 | AU7: 0 | AV7: 3 | AW7: 2 | AX7: 712 | AZ7: 712 | BB7: =IF(【進行】結果入力表!F61="","",【進行】結果入力表!F61) -> w | BD7: 1 | BE7: 0 | BF7: 4 | BG7: 2 | BH7: 892 | BJ7: 892 | BL7: 3 | BM7: =IF(【進行】結果入力表!E8="","",【進行】結果入力表!E8) ->  | BN7: =IF(【進行】結果入力表!E15="","",【進行】結果入力表!E15) ->  | BO7: =IF(【進行】結果入力表!E31="","",【進行】結果入力表!E31) ->  | BP7: =IF(【進行】結果入力表!E38="","",【進行】結果入力表!E38) ->  | BQ7: =IF(【進行】結果入力表!E54="","",【進行】結果入力表!E54) -> 125 | BR7: =IF(【進行】結果入力表!E61="","",【進行】結果入力表!E61) ->  | BT7: 0 | BU7: 0 | BV7: 125 | BW7: 125 | BX7: 1 | BY7: 堂園 雅也 | BZ7: HRC | CA7: 125 | CC7: 4 | CD7: 2 | CE7: 892 | CF7: 400892 | CH7: =IF(ISERROR(RANK($CK7,$CK$6:$CK$8,1)),"",RANK($CK7,$CK$6:$CK$8,1)) -> 3 | CI7: =A15 -> NRC | CJ7: =IF(ISERROR(VLOOKUP(1,BL16:CF23,14,FALSE)),"",VLOOKUP(1,BL16:CF23,14,FALSE)) -> 吉向 翔平 | CK7: =IF(ISERROR(VLOOKUP(1,BL16:CF23,13,FALSE)),"",VLOOKUP(1,BL16:CF23,13,FALSE)) -> 6 | CL7: =IF(ISERROR(VLOOKUP(1,BL16:CF23,18,FALSE)),"",VLOOKUP(1,BL16:CF23,18,FALSE)) -> 4 | CM7: =IF(ISERROR(VLOOKUP(1,BL16:CF23,19,FALSE)),"",VLOOKUP(1,BL16:CF23,19,FALSE)) -> 2 | CN7: =IF(ISERROR(VLOOKUP(1,BL16:CF23,20,FALSE)),"",VLOOKUP(1,BL16:CF23,21,FALSE)) -> 400849
B8: =IF(【準備】登録!$D$11=0,"",【準備】登録!$J$11) -> 菊川 博功 | E8: =【準備】登録!L11 -> 180 | F8: =IF(【進行】結果入力表!F9="","",【進行】結果入力表!F9) -> w | H8: 1 | I8: 0 | J8: 180 | L8: 180 | N8: =IF(【進行】結果入力表!F16="","",【進行】結果入力表!F16) -> w | P8: 1 | Q8: 0 | R8: 2 | S8: 0 | T8: 360 | V8: 360 | X8: =IF(【進行】結果入力表!F32="","",【進行】結果入力表!F32) -> 29 | Z8: 0 | AA8: 1 | AB8: 2 | AC8: 1 | AD8: 389 | AF8: 389 | AH8: =IF(【進行】結果入力表!F39="","",【進行】結果入力表!F39) -> w | AJ8: 1 | AK8: 0 | AL8: 3 | AM8: 1 | AN8: 569 | AP8: 569 | AR8: =IF(【進行】結果入力表!F55="","",【進行】結果入力表!F55) -> w | AT8: 1 | AU8: 0 | AV8: 4 | AW8: 1 | AX8: 749 | AZ8: 749 | BB8: =IF(【進行】結果入力表!F62="","",【進行】結果入力表!F62) -> w | BD8: 1 | BE8: 0 | BF8: 5 | BG8: 1 | BH8: 929 | BJ8: 929 | BL8: 2 | BM8: =IF(【進行】結果入力表!E9="","",【進行】結果入力表!E9) ->  | BN8: =IF(【進行】結果入力表!E16="","",【進行】結果入力表!E16) ->  | BO8: =IF(【進行】結果入力表!E32="","",【進行】結果入力表!E32) ->  | BP8: =IF(【進行】結果入力表!E39="","",【進行】結果入力表!E39) ->  | BQ8: =IF(【進行】結果入力表!E55="","",【進行】結果入力表!E55) ->  | BR8: =IF(【進行】結果入力表!E62="","",【進行】結果入力表!E62) ->  | BT8: 0 | BU8: 0 | BV8: 0 | BW8: 0 | BX8: 6 | BY8: 菊川 博功 | BZ8: HRC | CA8: 0 | CC8: 5 | CD8: 1 | CE8: 929 | CF8: 500929 | CH8: =IF(ISERROR(RANK($CK8,$CK$6:$CK$8,1)),"",RANK($CK8,$CK$6:$CK$8,1)) -> 2 | CI8: =A25 -> ORC | CJ8: =IF(ISERROR(VLOOKUP(1,BL26:CF33,14,FALSE)),"",VLOOKUP(1,BL26:CF33,14,FALSE)) -> 山岡 修二 | CK8: =IF(ISERROR(VLOOKUP(1,BL26:CF33,13,FALSE)),"",VLOOKUP(1,BL26:CF33,13,FALSE)) -> 4 | CL8: =IF(ISERROR(VLOOKUP(1,BL26:CF33,18,FALSE)),"",VLOOKUP(1,BL26:CF33,18,FALSE)) -> 6 | CM8: =IF(ISERROR(VLOOKUP(1,BL26:CF33,19,FALSE)),"",VLOOKUP(1,BL26:CF33,19,FALSE)) -> 0 | CN8: =IF(ISERROR(VLOOKUP(1,BL26:CF33,20,FALSE)),"",VLOOKUP(1,BL26:CF33,21,FALSE)) -> 601080
B9: =IF(【準備】登録!$D$11=0,"",【準備】登録!$M$11) -> 丹羽 俊也 | E9: =【準備】登録!O11 -> 180 | F9: =IF(【進行】結果入力表!F10="","",【進行】結果入力表!F10) -> 103 | H9: 0 | I9: 1 | J9: 103 | L9: 103 | N9: =IF(【進行】結果入力表!F17="","",【進行】結果入力表!F17) -> 87 | P9: 0 | Q9: 1 | R9: 0 | S9: 2 | T9: 190 | V9: 190 | X9: =IF(【進行】結果入力表!F33="","",【進行】結果入力表!F33) -> 149 | Z9: 0 | AA9: 1 | AB9: 0 | AC9: 3 | AD9: 339 | AF9: 339 | AH9: =IF(【進行】結果入力表!F40="","",【進行】結果入力表!F40) -> 157 | AJ9: 0 | AK9: 1 | AL9: 0 | AM9: 4 | AN9: 496 | AP9: 496 | AR9: =IF(【進行】結果入力表!F49="","",【進行】結果入力表!F49) -> w | AT9: 1 | AU9: 0 | AV9: 1 | AW9: 4 | AX9: 676 | AZ9: 676 | BB9: =IF(【進行】結果入力表!F56="","",【進行】結果入力表!F56) -> w | BD9: 1 | BE9: 0 | BF9: 2 | BG9: 4 | BH9: 856 | BJ9: 856 | BL9: 5 | BM9: =IF(【進行】結果入力表!E10="","",【進行】結果入力表!E10) ->  | BN9: =IF(【進行】結果入力表!E17="","",【進行】結果入力表!E17) ->  | BO9: =IF(【進行】結果入力表!E33="","",【進行】結果入力表!E33) ->  | BP9: =IF(【進行】結果入力表!E40="","",【進行】結果入力表!E40) ->  | BQ9: =IF(【進行】結果入力表!E49="","",【進行】結果入力表!E49) ->  | BR9: =IF(【進行】結果入力表!E56="","",【進行】結果入力表!E56) ->  | BT9: 0 | BU9: 0 | BV9: 0 | BW9: 0 | BX9: 6 | BY9: 丹羽 俊也 | BZ9: HRC | CA9: 0 | CC9: 2 | CD9: 4 | CE9: 856 | CF9: 200856
B10: =IF(【準備】登録!$D$11=0,"",【準備】登録!$P$11) -> 高山 普任 | E10: =【準備】登録!R11 -> 180 | F10: =IF(【進行】結果入力表!F11="","",【進行】結果入力表!F11) -> w | H10: 1 | I10: 0 | J10: 180 | L10: 180 | N10: =IF(【進行】結果入力表!F18="","",【進行】結果入力表!F18) -> w | P10: 1 | Q10: 0 | R10: 2 | S10: 0 | T10: 360 | V10: 360 | X10: =IF(【進行】結果入力表!F34="","",【進行】結果入力表!F34) -> w | Z10: 1 | AA10: 0 | AB10: 3 | AC10: 0 | AD10: 540 | AF10: 540 | AH10: =IF(【進行】結果入力表!F41="","",【進行】結果入力表!F41) -> w | AJ10: 1 | AK10: 0 | AL10: 4 | AM10: 0 | AN10: 720 | AP10: 720 | AR10: =IF(【進行】結果入力表!F50="","",【進行】結果入力表!F50) -> 160 | AT10: 0 | AU10: 1 | AV10: 4 | AW10: 1 | AX10: 880 | AZ10: 880 | BB10: =IF(【進行】結果入力表!F57="","",【進行】結果入力表!F57) -> w | BD10: 1 | BE10: 0 | BF10: 5 | BG10: 1 | BH10: 1060 | BJ10: 1060 | BL10: 1 | BM10: =IF(【進行】結果入力表!E11="","",【進行】結果入力表!E11) ->  | BN10: =IF(【進行】結果入力表!E18="","",【進行】結果入力表!E18) ->  | BO10: =IF(【進行】結果入力表!E34="","",【進行】結果入力表!E34) -> 110 | BP10: =IF(【進行】結果入力表!E41="","",【進行】結果入力表!E41) ->  | BQ10: =IF(【進行】結果入力表!E50="","",【進行】結果入力表!E50) -> 124 | BR10: =IF(【進行】結果入力表!E57="","",【進行】結果入力表!E57) ->  | BT10: 0 | BU10: 0 | BV10: 124 | BW10: 124 | BX10: 2 | BY10: 高山 普任 | BZ10: HRC | CA10: 124 | CC10: 5 | CD10: 1 | CE10: 1060 | CF10: 501060 | CJ10: ↓並び替え（総合結果表の表示用）
B11: =IF(【準備】登録!$D$11=0,"",【準備】登録!$S$11) -> 藤中健太郎 | E11: =【準備】登録!U11 -> 180 | F11: =IF(【進行】結果入力表!F12="","",【進行】結果入力表!F12) -> 150 | H11: 0 | I11: 1 | J11: 150 | L11: 150 | N11: =IF(【進行】結果入力表!F19="","",【進行】結果入力表!F19) -> w | P11: 1 | Q11: 0 | R11: 1 | S11: 1 | T11: 330 | V11: 330 | X11: =IF(【進行】結果入力表!F28="","",【進行】結果入力表!F28) -> 39 | Z11: 0 | AA11: 1 | AB11: 1 | AC11: 2 | AD11: 369 | AF11: 369 | AH11: =IF(【進行】結果入力表!F35="","",【進行】結果入力表!F35) -> 66 | AJ11: 0 | AK11: 1 | AL11: 1 | AM11: 3 | AN11: 435 | AP11: 435 | AR11: =IF(【進行】結果入力表!F51="","",【進行】結果入力表!F51) -> 2 | AT11: 0 | AU11: 1 | AV11: 1 | AW11: 4 | AX11: 437 | AZ11: 437 | BB11: =IF(【進行】結果入力表!F58="","",【進行】結果入力表!F58) -> 3 | BD11: 0 | BE11: 1 | BF11: 1 | BG11: 5 | BH11: 440 | BJ11: 440 | BL11: 7 | BM11: =IF(【進行】結果入力表!E12="","",【進行】結果入力表!E12) ->  | BN11: =IF(【進行】結果入力表!E19="","",【進行】結果入力表!E19) ->  | BO11: =IF(【進行】結果入力表!E28="","",【進行】結果入力表!E28) ->  | BP11: =IF(【進行】結果入力表!E35="","",【進行】結果入力表!E35) ->  | BQ11: =IF(【進行】結果入力表!E51="","",【進行】結果入力表!E51) ->  | BR11: =IF(【進行】結果入力表!E58="","",【進行】結果入力表!E58) ->  | BT11: 0 | BU11: 0 | BV11: 0 | BW11: 0 | BX11: 6 | BY11: 藤中健太郎 | BZ11: HRC | CA11: 0 | CC11: 1 | CD11: 5 | CE11: 440 | CF11: 100440
B12: =IF(【準備】登録!$D$11=0,"",【準備】登録!$V$11) -> 中平 美輪 | E12: =【準備】登録!X11 -> 140 | F12: =IF(【進行】結果入力表!F13="","",【進行】結果入力表!F13) -> w | H12: 1 | I12: 0 | J12: 140 | L12: 180 | N12: =IF(【進行】結果入力表!F20="","",【進行】結果入力表!F20) -> w | P12: 1 | Q12: 0 | R12: 2 | S12: 0 | T12: 280 | V12: 360 | X12: =IF(【進行】結果入力表!F29="","",【進行】結果入力表!F29) -> 97 | Z12: 0 | AA12: 1 | AB12: 2 | AC12: 1 | AD12: 377 | AF12: 484.7142857 | AH12: =IF(【進行】結果入力表!F36="","",【進行】結果入力表!F36) -> 45 | AJ12: 0 | AK12: 1 | AL12: 2 | AM12: 2 | AN12: 422 | AP12: 542.5714286 | AR12: =IF(【進行】結果入力表!F52="","",【進行】結果入力表!F52) -> 10 | AT12: 0 | AU12: 1 | AV12: 2 | AW12: 3 | AX12: 432 | AZ12: 555.4285714 | BB12: =IF(【進行】結果入力表!F59="","",【進行】結果入力表!F59) -> 56 | BD12: 0 | BE12: 1 | BF12: 2 | BG12: 4 | BH12: 488 | BJ12: 627.4285714 | BL12: 6 | BM12: =IF(【進行】結果入力表!E13="","",【進行】結果入力表!E13) ->  | BN12: =IF(【進行】結果入力表!E20="","",【進行】結果入力表!E20) ->  | BO12: =IF(【進行】結果入力表!E29="","",【進行】結果入力表!E29) ->  | BP12: =IF(【進行】結果入力表!E36="","",【進行】結果入力表!E36) ->  | BQ12: =IF(【進行】結果入力表!E52="","",【進行】結果入力表!E52) ->  | BR12: =IF(【進行】結果入力表!E59="","",【進行】結果入力表!E59) ->  | BT12: 0 | BU12: 0 | BV12: 0 | BW12: 0 | BX12: 6 | BY12: 中平 美輪 | BZ12: HRC | CA12: 0 | CC12: 2 | CD12: 4 | CE12: 627.4285714 | CF12: 200627.4286
B14: Total | H14: =IF(COUNTBLANK(H6:H13)=8,"",SUM(H6:H13)) -> 5 | I14: =IF(COUNTBLANK(I6:I13)=8,"",SUM(I6:I13)) -> 2 | J14: =IF($B6="","",SUM(J6:J13)) -> 1113 | K14: =IF($B6="","",SUM(K6:K13)) -> 0 | L14: =IF(COUNTBLANK(L6:L13)=8,"",SUM(L6:L13)) -> 1153 | M14: =IF($B6="","",SUM(M6:M13)) -> 0 | P14: =SUM(P6:P13) -> 5 | Q14: =SUM(Q6:Q13) -> 2 | R14: =IF(COUNTBLANK(R6:R13)=8,"",SUM(H14,P14)) -> 10 | S14: =IF(COUNTBLANK(S6:S13)=8,"",SUM(I14,Q14)) -> 4 | T14: =IF($B6="","",SUM(T6:T13)) -> 2197 | U14: =IF($B6="","",SUM(U6:U13)) -> 0 | V14: =IF(COUNTBLANK(V6:V13)=8,"",SUM(V6:V13)) -> 2277 | W14: =IF($B6="","",SUM(W6:W13)) -> 0 | Z14: =SUM(Z6:Z13) -> 1 | AA14: =SUM(AA6:AA13) -> 6 | AB14: =IF(COUNTBLANK(AB6:AB13)=8,"",SUM(R14,Z14)) -> 11 | AC14: =IF(COUNTBLANK(AC6:AC13)=8,"",SUM(S14,AA14)) -> 10 | AD14: =IF($B6="","",SUM(AD6:AD13)) -> 2736 | AE14: =IF($B6="","",SUM(AE6:AE13)) -> 0 | AF14: =IF(COUNTBLANK(AF6:AF13)=8,"",SUM(AF6:AF13)) -> 2843.714286 | AG14: =IF($B6="","",SUM(AG6:AG13)) -> 0 | AJ14: =SUM(AJ6:AJ13) -> 4 | AK14: =SUM(AK6:AK13) -> 3 | AL14: =IF(COUNTBLANK(AL6:AL13)=8,"",SUM(AB14,AJ14)) -> 15 | AM14: =IF(COUNTBLANK(AM6:AM13)=8,"",SUM(AC14,AK14)) -> 13 | AN14: =IF($B6="","",SUM(AN6:AN13)) -> 3724 | AO14: =IF($B6="","",SUM(AO6:AO13)) -> 0 | AP14: =IF(COUNTBLANK(AP6:AP13)=8,"",SUM(AP6:AP13)) -> 3844.571429 | AQ14: =IF($B6="","",SUM(AQ6:AQ13)) -> 0 | AT14: =SUM(AT6:AT13) -> 3 | AU14: =SUM(AU6:AU13) -> 4 | AV14: =IF(COUNTBLANK(AV6:AV13)=8,"",SUM(AL14,AT14)) -> 18 | AW14: =IF(COUNTBLANK(AW6:AW13)=8,"",SUM(AM14,AU14)) -> 17 | AX14: =IF($B6="","",SUM(AX6:AX13)) -> 4592 | AY14: =IF($B6="","",SUM(AY6:AY13)) -> 0 | AZ14: =IF(COUNTBLANK(AZ6:AZ13)=8,"",SUM(AZ6:AZ13)) -> 4715.428571 | BA14: =IF($B6="","",SUM(BA6:BA13)) -> 0 | BD14: =SUM(BD6:BD13) -> 5 | BE14: =SUM(BE6:BE13) -> 2 | BF14: =IF(COUNTBLANK(BF6:BF13)=8,"",SUM(AV14,BD14)) -> 23 | BG14: =IF(COUNTBLANK(BG6:BG13)=8,"",SUM(AW14,BE14)) -> 19 | BH14: =IF(COUNTIF(BH6:BI13,"")=16,"",SUM(BH6:BH13)) -> 5551 | BI14: =IF($B6="","",SUM(BI6:BI13)) -> 0 | BJ14: =IF(COUNTBLANK(BJ6:BJ13)=8,"",SUM(BJ6:BJ13)) -> 5690.428571 | BK14: =IF($B6="","",SUM(BK6:BK13)) -> 0 | CC14: =SUM(CC6:CC13) -> 23 | CD14: =SUM(CD6:CD13) -> 19 | CE14: =SUM(CE6:CE13) -> 5690.428571 | CF14: =SUM(CF6:CF13) -> 2305690.429
A15: =IF(【準備】登録!B12="","",【準備】登録!B12) -> NRC | B15: =B5 -> 選手名 | E15: =E5 -> 持点 | F15: =A5 -> HRC | H15: W | I15: L | J15: TP | L15: TP | N15: =A25 -> ORC | P15: W | Q15: L | R15: W | S15: L | T15: TP | V15: TP | X15: =A5 -> HRC | Z15: W | AA15: L | AB15: W | AC15: L | AD15: TP | AF15: TP | AH15: =A25 -> ORC | AJ15: W | AK15: L | AL15: W | AM15: L | AN15: TP | AP15: TP | AR15: =A5 -> HRC | AT15: W | AU15: L | AV15: W | AW15: L | AX15: TP | AZ15: TP | BB15: =A25 -> ORC | BD15: W | BE15: L | BF15: W | BG15: L | BH15: TP | BJ15: TP | BL15: R | BM15: =BM$5 -> 1G | BN15: 2G | BO15: 3G | BP15: 4G | BQ15: 5G | BR15: 6G | CC15: =CC$5 -> W | CD15: =CD$5 -> L | CE15: =CE$5 -> TP | CF15: =CF$5 -> R_P | CI15: 所 属 | CJ15: 名 前 | CL15: W | CM15: L | CN15: R_P
B16: =IF(【準備】登録!$D$11=0,"",【準備】登録!$D$12) -> 吉向 翔平 | E16: =【準備】登録!F12 -> 180 | F16: =IF(【進行】結果入力表!G14="","",【進行】結果入力表!G14) -> 96 | H16: =IF(F16="","",IF(F16="w",1,0)) -> 0 | I16: =IF(F16="","",IF(F16="w",0,1)) -> 1 | J16: =IF(F16="","",IF(F16="w",E16,F16)) -> 96 | L16: =IF($F16="","",J16/$E16*180) -> 96 | N16: =IF(【進行】結果入力表!F21="","",【進行】結果入力表!F21) -> w | P16: =IF(N16="","",IF(N16="w",1,0)) -> 1 | Q16: =IF(N16="","",IF(N16="w",0,1)) -> 0 | R16: =IF(N16="","",SUM(H16,P16)) -> 1 | S16: =IF(N16="","",SUM(I16,Q16)) -> 1 | T16: =IF(N16="","",IF(N16="w",E16+J16,N16+J16)) -> 276 | V16: =IF($N16="","",T16/$E16*180) -> 276 | X16: =IF(【進行】結果入力表!G36="","",【進行】結果入力表!G36) -> w | Z16: =IF(X16="","",IF(X16="w",1,0)) -> 1 | AA16: =IF(X16="","",IF(X16="w",0,1)) -> 0 | AB16: =IF(X16="","",SUM(R16,Z16)) -> 2 | AC16: =IF(X16="","",SUM(S16,AA16)) -> 1 | AD16: =IF(X16="","",IF(X16="w",T16+E16,X16+T16)) -> 456 | AF16: =IF($X16="","",AD16/$E16*180) -> 456 | AH16: =IF(【進行】結果入力表!F43="","",【進行】結果入力表!F43) -> w | AJ16: =IF(AH16="","",IF(AH16="w",1,0)) -> 1 | AK16: =IF(AH16="","",IF(AH16="w",0,1)) -> 0 | AL16: =IF(AH16="","",SUM(AB16,AJ16)) -> 3 | AM16: =IF(AH16="","",SUM(AC16,AK16)) -> 1 | AN16: =IF(AH16="","",IF(AH16="w",AD16+E16,AH16+AD16)) -> 636 | AP16: =IF($AH16="","",AN16/$E16*180) -> 636 | AR16: =IF(【進行】結果入力表!G58="","",【進行】結果入力表!G58) -> w | AT16: =IF(AR16="","",IF(AR16="w",1,0)) -> 1 | AU16: =IF(AR16="","",IF(AR16="w",0,1)) -> 0 | AV16: =IF(AR16="","",IF(AR16="w",AL16+1,AL16)) -> 4 | AW16: =IF(AR16="","",IF(AR16="w",AM16,AM16+1)) -> 1 | AX16: =IF(AR16="","",IF(AR16="w",AN16+E16,AR16+AN16)) -> 816 | AZ16: =IF($AR16="","",AX16/$E16*180) -> 816 | BB16: =IF(【進行】結果入力表!F65="","",【進行】結果入力表!F65) -> 33 | BD16: =IF(BB16="","",IF(BB16="w",1,0)) -> 0 | BE16: =IF(BB16="","",IF(BB16="w",0,1)) -> 1 | BF16: =IF(BB16="","",IF(BB16="w",AV16+1,AV16)) -> 4 | BG16: =IF(BB16="","",IF(BB16="w",AW16,AW16+1)) -> 2 | BH16: =IF(BB16="","",IF(BB16="w",AX16+E16,BB16+AX16)) -> 849 | BJ16: =IF($BB16="","",BH16/$E16*180) -> 849 | BL16: =IF(SUM(H16:I16,R16:S16)=0,"",IF(B$13="",RANK($CF$16:$CF$22,$CF$16:$CF$22,0),RANK($CF$16:$CF$23,$CF$16:$CF$23,0))) -> 1 | BM16: =IF(【進行】結果入力表!H14="","",【進行】結果入力表!H14) ->  | BN16: =IF(【進行】結果入力表!E21="","",【進行】結果入力表!E21) ->  | BO16: =IF(【進行】結果入力表!H36="","",【進行】結果入力表!H36) ->  | BP16: =IF(【進行】結果入力表!E43="","",【進行】結果入力表!E43) ->  | BQ16: =IF(【進行】結果入力表!H58="","",【進行】結果入力表!H58) ->  | BR16: =IF(【進行】結果入力表!E65="","",【進行】結果入力表!E65) ->  | BT16: =COUNTIF($BM16:$BR16,BT$5) -> 0 | BU16: 0 | BV16: =MAX($BM16:$BR16) -> 0 | BW16: =BT16*10000+BU16*1000+BV16 -> 0 | BX16: =RANK(BW16,$BW$6:$BW$33) -> 6 | BY16: =B16 -> 吉向 翔平 | BZ16: =$A$15 -> NRC | CA16: =IF(BT16>0,"A"&E16,IF(BU16>0,"B"&E16,BV16)) -> 0 | CC16: =COUNTIF(F16:BC16,"w") -> 4 | CD16: =COUNT(F16,N16,AH16,X16,AR16,BB16) -> 2 | CE16: =CC16*180+SUM(F16,N16,AH16,X16,AR16,BB16)*180/E16 -> 849 | CF16: =CC16*100000+CE16 -> 400849 | CH16: MVP | CI16: =IF($CN16="","",INDEX($CH$6:$CN$8,MATCH($CN16,$CN$6:$CN$8,0),2)) -> ORC | CJ16: =INDEX($CH$6:$CN$8,MATCH($CN16,$CN$6:$CN$8,0),3) -> 山岡 修二 | CL16: =INDEX($CH$6:$CN$8,MATCH($CN16,$CN$6:$CN$8,0),5) -> 6 | CM16: =INDEX($CH$6:$CN$8,MATCH($CN16,$CN$6:$CN$8,0),6) -> 0 | CN16: =IF(ISERROR(LARGE($CN$6:$CN$8,1)),"",LARGE($CN$6:$CN$8,1)) -> 601080
B17: =IF(【準備】登録!$D$11=0,"",【準備】登録!$G$12) -> 近藤 拓馬 | E17: =【準備】登録!I12 -> 180 | F17: =IF(【進行】結果入力表!G15="","",【進行】結果入力表!G15) -> w | H17: 1 | I17: 0 | J17: 180 | L17: 180 | N17: =IF(【進行】結果入力表!F22="","",【進行】結果入力表!F22) -> w | P17: 1 | Q17: 0 | R17: 2 | S17: 0 | T17: 360 | V17: 360 | X17: =IF(【進行】結果入力表!G37="","",【進行】結果入力表!G37) -> 110 | Z17: 0 | AA17: 1 | AB17: 2 | AC17: 1 | AD17: 470 | AF17: 470 | AH17: =IF(【進行】結果入力表!F44="","",【進行】結果入力表!F44) -> 115 | AJ17: 0 | AK17: 1 | AL17: 2 | AM17: 2 | AN17: 585 | AP17: 585 | AR17: =IF(【進行】結果入力表!G59="","",【進行】結果入力表!G59) -> w | AT17: 1 | AU17: 0 | AV17: 3 | AW17: 2 | AX17: 765 | AZ17: 765 | BB17: =IF(【進行】結果入力表!F66="","",【進行】結果入力表!F66) -> 67 | BD17: 0 | BE17: 1 | BF17: 3 | BG17: 3 | BH17: 832 | BJ17: 832 | BL17: 2 | BM17: =IF(【進行】結果入力表!H15="","",【進行】結果入力表!H15) ->  | BN17: =IF(【進行】結果入力表!E22="","",【進行】結果入力表!E22) ->  | BO17: =IF(【進行】結果入力表!H37="","",【進行】結果入力表!H37) ->  | BP17: =IF(【進行】結果入力表!E44="","",【進行】結果入力表!E44) ->  | BQ17: =IF(【進行】結果入力表!H59="","",【進行】結果入力表!H59) ->  | BR17: =IF(【進行】結果入力表!E66="","",【進行】結果入力表!E66) ->  | BT17: 0 | BU17: 0 | BV17: 0 | BW17: 0 | BX17: 6 | BY17: 近藤 拓馬 | BZ17: NRC | CA17: 0 | CC17: 3 | CD17: 3 | CE17: 832 | CF17: 300832 | CH17: VP | CI17: =IF($CN17="","",INDEX($CH$6:$CN$8,MATCH($CN17,$CN$6:$CN$8,0),2)) -> HRC | CJ17: =INDEX($CH$6:$CN$8,MATCH($CN17,$CN$6:$CN$8,0),3) -> 高山 普任 | CL17: =INDEX($CH$6:$CN$8,MATCH($CN17,$CN$6:$CN$8,0),5) -> 5 | CM17: =INDEX($CH$6:$CN$8,MATCH($CN17,$CN$6:$CN$8,0),6) -> 1 | CN17: =IF(ISERROR(LARGE($CN$6:$CN$8,2)),"",LARGE($CN$6:$CN$8,2)) -> 501060
B18: =IF(【準備】登録!$D$11=0,"",【準備】登録!$J$12) -> 金澤 茂昌 | E18: =【準備】登録!L12 -> 180 | F18: =IF(【進行】結果入力表!G16="","",【進行】結果入力表!G16) -> 115 | H18: 0 | I18: 1 | J18: 115 | L18: 115 | N18: =IF(【進行】結果入力表!F23="","",【進行】結果入力表!F23) -> 1 | P18: 0 | Q18: 1 | R18: 0 | S18: 2 | T18: 116 | V18: 116 | X18: =IF(【進行】結果入力表!G38="","",【進行】結果入力表!G38) -> 135 | Z18: 0 | AA18: 1 | AB18: 0 | AC18: 3 | AD18: 251 | AF18: 251 | AH18: =IF(【進行】結果入力表!F45="","",【進行】結果入力表!F45) -> 104 | AJ18: 0 | AK18: 1 | AL18: 0 | AM18: 4 | AN18: 355 | AP18: 355 | AR18: =IF(【進行】結果入力表!G60="","",【進行】結果入力表!G60) -> 142 | AT18: 0 | AU18: 1 | AV18: 0 | AW18: 5 | AX18: 497 | AZ18: 497 | BB18: =IF(【進行】結果入力表!F67="","",【進行】結果入力表!F67) -> w | BD18: 1 | BE18: 0 | BF18: 1 | BG18: 5 | BH18: 677 | BJ18: 677 | BL18: 5 | BM18: =IF(【進行】結果入力表!H16="","",【進行】結果入力表!H16) ->  | BN18: =IF(【進行】結果入力表!E23="","",【進行】結果入力表!E23) ->  | BO18: =IF(【進行】結果入力表!H38="","",【進行】結果入力表!H38) ->  | BP18: =IF(【進行】結果入力表!E45="","",【進行】結果入力表!E45) ->  | BQ18: =IF(【進行】結果入力表!H60="","",【進行】結果入力表!H60) ->  | BR18: =IF(【進行】結果入力表!E67="","",【進行】結果入力表!E67) ->  | BT18: 0 | BU18: 0 | BV18: 0 | BW18: 0 | BX18: 6 | BY18: 金澤 茂昌 | BZ18: NRC | CA18: 0 | CC18: 1 | CD18: 5 | CE18: 677 | CF18: 100677 | CH18: VP | CI18: =IF($CN18="","",INDEX($CH$6:$CN$8,MATCH($CN18,$CN$6:$CN$8,0),2)) -> NRC | CJ18: =INDEX($CH$6:$CN$8,MATCH($CN18,$CN$6:$CN$8,0),3) -> 吉向 翔平 | CL18: =INDEX($CH$6:$CN$8,MATCH($CN18,$CN$6:$CN$8,0),5) -> 4 | CM18: =INDEX($CH$6:$CN$8,MATCH($CN18,$CN$6:$CN$8,0),6) -> 2 | CN18: =IF(ISERROR(LARGE($CN$6:$CN$8,3)),"",LARGE($CN$6:$CN$8,3)) -> 400849
B19: =IF(【準備】登録!$D$11=0,"",【準備】登録!$M$12) -> 斉藤 裕児 | E19: =【準備】登録!O12 -> 180 | F19: =IF(【進行】結果入力表!G17="","",【進行】結果入力表!G17) -> w | H19: 1 | I19: 0 | J19: 180 | L19: 180 | N19: =IF(【進行】結果入力表!F24="","",【進行】結果入力表!F24) -> 82 | P19: 0 | Q19: 1 | R19: 1 | S19: 1 | T19: 262 | V19: 262 | X19: =IF(【進行】結果入力表!G39="","",【進行】結果入力表!G39) -> 138 | Z19: 0 | AA19: 1 | AB19: 1 | AC19: 2 | AD19: 400 | AF19: 400 | AH19: =IF(【進行】結果入力表!F46="","",【進行】結果入力表!F46) -> 100 | AJ19: 0 | AK19: 1 | AL19: 1 | AM19: 3 | AN19: 500 | AP19: 500 | AR19: =IF(【進行】結果入力表!G61="","",【進行】結果入力表!G61) -> 36 | AT19: 0 | AU19: 1 | AV19: 1 | AW19: 4 | AX19: 536 | AZ19: 536 | BB19: =IF(【進行】結果入力表!F68="","",【進行】結果入力表!F68) -> w | BD19: 1 | BE19: 0 | BF19: 2 | BG19: 4 | BH19: 716 | BJ19: 716 | BL19: 3 | BM19: =IF(【進行】結果入力表!H17="","",【進行】結果入力表!H17) ->  | BN19: =IF(【進行】結果入力表!E24="","",【進行】結果入力表!E24) ->  | BO19: =IF(【進行】結果入力表!H39="","",【進行】結果入力表!H39) ->  | BP19: =IF(【進行】結果入力表!E46="","",【進行】結果入力表!E46) ->  | BQ19: =IF(【進行】結果入力表!H61="","",【進行】結果入力表!H61) ->  | BR19: =IF(【進行】結果入力表!E68="","",【進行】結果入力表!E68) ->  | BT19: 0 | BU19: 0 | BV19: 0 | BW19: 0 | BX19: 6 | BY19: 斉藤 裕児 | BZ19: NRC | CA19: 0 | CC19: 2 | CD19: 4 | CE19: 716 | CF19: 200716
B20: =IF(【準備】登録!$D$11=0,"",【準備】登録!$P$12) -> 岩本 剛 | E20: =【準備】登録!R12 -> 180 | F20: =IF(【進行】結果入力表!G18="","",【進行】結果入力表!G18) -> 74 | H20: 0 | I20: 1 | J20: 74 | L20: 74 | N20: =IF(【進行】結果入力表!F25="","",【進行】結果入力表!F25) -> 93 | P20: 0 | Q20: 1 | R20: 0 | S20: 2 | T20: 167 | V20: 167 | X20: =IF(【進行】結果入力表!G40="","",【進行】結果入力表!G40) -> w | Z20: 1 | AA20: 0 | AB20: 1 | AC20: 2 | AD20: 347 | AF20: 347 | AH20: =IF(【進行】結果入力表!F47="","",【進行】結果入力表!F47) -> 103 | AJ20: 0 | AK20: 1 | AL20: 1 | AM20: 3 | AN20: 450 | AP20: 450 | AR20: =IF(【進行】結果入力表!G62="","",【進行】結果入力表!G62) -> 82 | AT20: 0 | AU20: 1 | AV20: 1 | AW20: 4 | AX20: 532 | AZ20: 532 | BB20: =IF(【進行】結果入力表!F69="","",【進行】結果入力表!F69) -> 124 | BD20: 0 | BE20: 1 | BF20: 1 | BG20: 5 | BH20: 656 | BJ20: 656 | BL20: 6 | BM20: =IF(【進行】結果入力表!H18="","",【進行】結果入力表!H18) ->  | BN20: =IF(【進行】結果入力表!E25="","",【進行】結果入力表!E25) ->  | BO20: =IF(【進行】結果入力表!H40="","",【進行】結果入力表!H40) ->  | BP20: =IF(【進行】結果入力表!E47="","",【進行】結果入力表!E47) ->  | BQ20: =IF(【進行】結果入力表!H62="","",【進行】結果入力表!H62) ->  | BR20: =IF(【進行】結果入力表!E69="","",【進行】結果入力表!E69) ->  | BT20: 0 | BU20: 0 | BV20: 0 | BW20: 0 | BX20: 6 | BY20: 岩本 剛 | BZ20: NRC | CA20: 0 | CC20: 1 | CD20: 5 | CE20: 656 | CF20: 100656 | CI20: 所 属 | CJ20: 名 前 | CN20: 最高HR
B21: =IF(【準備】登録!$D$11=0,"",【準備】登録!$S$12) -> 植田 慎也 | E21: =【準備】登録!U12 -> 180 | F21: =IF(【進行】結果入力表!G19="","",【進行】結果入力表!G19) -> 36 | H21: 0 | I21: 1 | J21: 36 | L21: 36 | N21: =IF(【進行】結果入力表!F26="","",【進行】結果入力表!F26) -> w | P21: 1 | Q21: 0 | R21: 1 | S21: 1 | T21: 216 | V21: 216 | X21: =IF(【進行】結果入力表!G41="","",【進行】結果入力表!G41) -> 86 | Z21: 0 | AA21: 1 | AB21: 1 | AC21: 2 | AD21: 302 | AF21: 302 | AH21: =IF(【進行】結果入力表!F48="","",【進行】結果入力表!F48) -> 123 | AJ21: 0 | AK21: 1 | AL21: 1 | AM21: 3 | AN21: 425 | AP21: 425 | AR21: =IF(【進行】結果入力表!G56="","",【進行】結果入力表!G56) -> 76 | AT21: 0 | AU21: 1 | AV21: 1 | AW21: 4 | AX21: 501 | AZ21: 501 | BB21: =IF(【進行】結果入力表!F63="","",【進行】結果入力表!F63) -> w | BD21: 1 | BE21: 0 | BF21: 2 | BG21: 4 | BH21: 681 | BJ21: 681 | BL21: 4 | BM21: =IF(【進行】結果入力表!H19="","",【進行】結果入力表!H19) ->  | BN21: =IF(【進行】結果入力表!E26="","",【進行】結果入力表!E26) ->  | BO21: =IF(【進行】結果入力表!H41="","",【進行】結果入力表!H41) ->  | BP21: =IF(【進行】結果入力表!E48="","",【進行】結果入力表!E48) ->  | BQ21: =IF(【進行】結果入力表!H56="","",【進行】結果入力表!H56) ->  | BR21: =IF(【進行】結果入力表!E63="","",【進行】結果入力表!E63) ->  | BT21: 0 | BU21: 0 | BV21: 0 | BW21: 0 | BX21: 6 | BY21: 植田 慎也 | BZ21: NRC | CA21: 0 | CC21: 2 | CD21: 4 | CE21: 681 | CF21: 200681 | CH21: HR | CI21: =IF(CN21 = "","",INDEX($BY$6:$CA$33,MATCH($CN21,$CA$6:$CA$33,0),2)) -> HRC | CJ21: =IF(CN21 = "","",INDEX($BY$6:$CA$33,MATCH($CN21,$CA$6:$CA$33,0),1)) -> 堂園 雅也 | CN21: =IF(LARGE($CA$6:$CA$33,1) >= 100,LARGE($CA$6:$CA$33,1),"") -> 125
B22: =IF(【準備】登録!$D$11=0,"",【準備】登録!$V$12) -> 宮野 早織 | E22: =【準備】登録!X12 -> 140 | F22: =IF(【進行】結果入力表!G20="","",【進行】結果入力表!G20) -> 92 | H22: 0 | I22: 1 | J22: 92 | L22: 118.2857143 | N22: =IF(【進行】結果入力表!F27="","",【進行】結果入力表!F27) -> 77 | P22: 0 | Q22: 1 | R22: 0 | S22: 2 | T22: 169 | V22: 217.2857143 | X22: =IF(【進行】結果入力表!G35="","",【進行】結果入力表!G35) -> w | Z22: 1 | AA22: 0 | AB22: 1 | AC22: 2 | AD22: 309 | AF22: 397.2857143 | AH22: =IF(【進行】結果入力表!F42="","",【進行】結果入力表!F42) -> 56 | AJ22: 0 | AK22: 1 | AL22: 1 | AM22: 3 | AN22: 365 | AP22: 469.2857143 | AR22: =IF(【進行】結果入力表!G57="","",【進行】結果入力表!G57) -> 75 | AT22: 0 | AU22: 1 | AV22: 1 | AW22: 4 | AX22: 440 | AZ22: 565.7142857 | BB22: =IF(【進行】結果入力表!F64="","",【進行】結果入力表!F64) -> 9 | BD22: 0 | BE22: 1 | BF22: 1 | BG22: 5 | BH22: 449 | BJ22: 577.2857143 | BL22: 7 | BM22: =IF(【進行】結果入力表!H20="","",【進行】結果入力表!H20) ->  | BN22: =IF(【進行】結果入力表!E27="","",【進行】結果入力表!E27) ->  | BO22: =IF(【進行】結果入力表!H35="","",【進行】結果入力表!H35) ->  | BP22: =IF(【進行】結果入力表!E42="","",【進行】結果入力表!E42) ->  | BQ22: =IF(【進行】結果入力表!H57="","",【進行】結果入力表!H57) ->  | BR22: =IF(【進行】結果入力表!E64="","",【進行】結果入力表!E64) ->  | BT22: 0 | BU22: 0 | BV22: 0 | BW22: 0 | BX22: 6 | BY22: 宮野 早織 | BZ22: NRC | CA22: 0 | CC22: 1 | CD22: 5 | CE22: 577.2857143 | CF22: 100577.2857
B24: Total | H24: =IF(COUNTBLANK(H16:H23)=8,"",SUM(H16:H23)) -> 2 | I24: =IF(COUNTBLANK(I16:I23)=8,"",SUM(I16:I23)) -> 5 | J24: =IF($B16="","",SUM(J16:J23)) -> 773 | K24: =IF($B16="","",SUM(K16:K23)) -> 0 | L24: =IF(COUNTBLANK(L16:L23)=8,"",SUM(L16:L23)) -> 799.2857143 | M24: =IF($B16="","",SUM(M16:M23)) -> 0 | P24: =SUM(P16:P23) -> 3 | Q24: =SUM(Q16:Q23) -> 4 | R24: =IF(COUNTBLANK(R16:R23)=8,"",SUM(H24,P24)) -> 5 | S24: =IF(COUNTBLANK(S16:S23)=8,"",SUM(I24,Q24)) -> 9 | T24: =IF($B16="","",SUM(T16:T23)) -> 1566 | U24: =IF($B16="","",SUM(U16:U23)) -> 0 | V24: =IF(COUNTBLANK(V16:V23)=8,"",SUM(V16:V23)) -> 1614.285714 | W24: =IF($B16="","",SUM(W16:W23)) -> 0 | Z24: =SUM(Z16:Z23) -> 3 | AA24: =SUM(AA16:AA23) -> 4 | AB24: =IF(COUNTBLANK(AB16:AB23)=8,"",SUM(R24,Z24)) -> 8 | AC24: =IF(COUNTBLANK(AC16:AC23)=8,"",SUM(S24,AA24)) -> 13 | AD24: =IF($B16="","",SUM(AD16:AD23)) -> 2535 | AE24: =IF($B16="","",SUM(AE16:AE23)) -> 0 | AF24: =IF(COUNTBLANK(AF16:AF23)=8,"",SUM(AF16:AF23)) -> 2623.285714 | AG24: =IF($B16="","",SUM(AG16:AG23)) -> 0 | AJ24: =SUM(AJ16:AJ23) -> 1 | AK24: =SUM(AK16:AK23) -> 6 | AL24: =IF(COUNTBLANK(AL16:AL23)=8,"",SUM(AB24,AJ24)) -> 9 | AM24: =IF(COUNTBLANK(AM16:AM23)=8,"",SUM(AC24,AK24)) -> 19 | AN24: =IF($B16="","",SUM(AN16:AN23)) -> 3316 | AO24: =IF($B16="","",SUM(AO16:AO23)) -> 0 | AP24: =IF(COUNTBLANK(AP16:AP23)=8,"",SUM(AP16:AP23)) -> 3420.285714 | AQ24: =IF($B16="","",SUM(AQ16:AQ23)) -> 0 | AT24: =SUM(AT16:AT23) -> 2 | AU24: =SUM(AU16:AU23) -> 5 | AV24: =IF(COUNTBLANK(AV16:AV23)=8,"",SUM(AL24,AT24)) -> 11 | AW24: =IF(COUNTBLANK(AW16:AW23)=8,"",SUM(AM24,AU24)) -> 24 | AX24: =IF($B16="","",SUM(AX16:AX23)) -> 4087 | AY24: =IF($B16="","",SUM(AY16:AY23)) -> 0 | AZ24: =IF(COUNTBLANK(AZ16:AZ23)=8,"",SUM(AZ16:AZ23)) -> 4212.714286 | BA24: =IF($B16="","",SUM(BA16:BA23)) -> 0 | BD24: =SUM(BD16:BD23) -> 3 | BE24: =SUM(BE16:BE23) -> 4 | BF24: =IF(COUNTBLANK(BF16:BF23)=8,"",SUM(AV24,BD24)) -> 14 | BG24: =IF(COUNTBLANK(BG16:BG23)=8,"",SUM(AW24,BE24)) -> 28 | BH24: =IF(COUNTIF(BH16:BI23,"")=16,"",SUM(BH16:BH23)) -> 4860 | BI24: =IF($B16="","",SUM(BI16:BI23)) -> 0 | BJ24: =IF(COUNTBLANK(BJ16:BJ23)=8,"",SUM(BJ16:BJ23)) -> 4988.285714 | BK24: =IF($B16="","",SUM(BK16:BK23)) -> 0 | CC24: =SUM(CC16:CC23) -> 14 | CD24: =SUM(CD16:CD23) -> 28 | CE24: =SUM(CE16:CE23) -> 4988.285714 | CF24: =SUM(CF16:CF23) -> 1404988.286
A25: =IF(【準備】登録!B13="","",【準備】登録!B13) -> ORC | B25: =B5 -> 選手名 | E25: =E5 -> 持点 | F25: =A5 -> HRC | H25: W | I25: L | J25: TP | L25: TP | N25: =A15 -> NRC | P25: W | Q25: L | R25: W | S25: L | T25: TP | V25: TP | X25: =A5 -> HRC | Z25: W | AA25: L | AB25: W | AC25: L | AD25: TP | AF25: TP | AH25: =A15 -> NRC | AJ25: W | AK25: L | AL25: W | AM25: L | AN25: TP | AP25: TP | AR25: =A5 -> HRC | AT25: W | AU25: L | AV25: W | AW25: L | AX25: TP | AZ25: TP | BB25: =A15 -> NRC | BD25: W | BE25: L | BF25: W | BG25: L | BH25: TP | BJ25: TP | BL25: R | BM25: =BM$5 -> 1G | BN25: 2G | BO25: 3G | BP25: 4G | BQ25: 5G | BR25: 6G | CC25: =CC$5 -> W | CD25: =CD$5 -> L | CE25: =CE$5 -> TP | CF25: =CF$5 -> R_P
B26: =IF(【準備】登録!$D$11=0,"",【準備】登録!$D$13) -> 樹本 武士 | E26: =【準備】登録!F13 -> 180 | F26: =IF(【進行】結果入力表!G7="","",【進行】結果入力表!G7) -> 150 | H26: =IF(F26="","",IF(F26="w",1,0)) -> 0 | I26: =IF(F26="","",IF(F26="w",0,1)) -> 1 | J26: =IF(F26="","",IF(F26="w",E26,F26)) -> 150 | L26: =IF($F26="","",J26/$E26*180) -> 150 | N26: =IF(【進行】結果入力表!G21="","",【進行】結果入力表!G21) -> 86 | P26: =IF(N26="","",IF(N26="w",1,0)) -> 0 | Q26: =IF(N26="","",IF(N26="w",0,1)) -> 1 | R26: =IF(N26="","",SUM(H26,P26)) -> 0 | S26: =IF(N26="","",SUM(I26,Q26)) -> 2 | T26: =IF(N26="","",IF(N26="w",E26+J26,N26+J26)) -> 236 | V26: =IF($N26="","",T26/$E26*180) -> 236 | X26: =IF(【進行】結果入力表!G28="","",【進行】結果入力表!G28) -> w | Z26: =IF(X26="","",IF(X26="w",1,0)) -> 1 | AA26: =IF(X26="","",IF(X26="w",0,1)) -> 0 | AB26: =IF(X26="","",SUM(R26,Z26)) -> 1 | AC26: =IF(X26="","",SUM(S26,AA26)) -> 2 | AD26: =IF(X26="","",IF(X26="w",T26+E26,X26+T26)) -> 416 | AF26: =IF($X26="","",AD26/$E26*180) -> 416 | AH26: =IF(【進行】結果入力表!G42="","",【進行】結果入力表!G42) -> w | AJ26: =IF(AH26="","",IF(AH26="w",1,0)) -> 1 | AK26: =IF(AH26="","",IF(AH26="w",0,1)) -> 0 | AL26: =IF(AH26="","",SUM(AB26,AJ26)) -> 2 | AM26: =IF(AH26="","",SUM(AC26,AK26)) -> 2 | AN26: =IF(AH26="","",IF(AH26="w",AD26+E26,AH26+AD26)) -> 596 | AP26: =IF($AH26="","",AN26/$E26*180) -> 596 | AR26: =IF(【進行】結果入力表!G49="","",【進行】結果入力表!G49) -> 123 | AT26: =IF(AR26="","",IF(AR26="w",1,0)) -> 0 | AU26: =IF(AR26="","",IF(AR26="w",0,1)) -> 1 | AV26: =IF(AR26="","",IF(AR26="w",AL26+1,AL26)) -> 2 | AW26: =IF(AR26="","",IF(AR26="w",AM26,AM26+1)) -> 3 | AX26: =IF(AR26="","",IF(AR26="w",AN26+E26,AR26+AN26)) -> 719 | AZ26: =IF($AR26="","",AX26/$E26*180) -> 719 | BB26: =IF(【進行】結果入力表!G63="","",【進行】結果入力表!G63) -> 115 | BD26: =IF(BB26="","",IF(BB26="w",1,0)) -> 0 | BE26: =IF(BB26="","",IF(BB26="w",0,1)) -> 1 | BF26: =IF(BB26="","",IF(BB26="w",AV26+1,AV26)) -> 2 | BG26: =IF(BB26="","",IF(BB26="w",AW26,AW26+1)) -> 4 | BH26: =IF(BB26="","",IF(BB26="w",AX26+E26,BB26+AX26)) -> 834 | BJ26: =IF($BB26="","",BH26/$E26*180) -> 834 | BL26: =IF(SUM(H26:I26,R26:S26)=0,"",IF(B$13="",RANK($CF$26:$CF$32,$CF$26:$CF$32,0),RANK($CF$26:$CF$33,$CF$26:$CF$33,0))) -> 7 | BM26: =IF(【進行】結果入力表!H7="","",【進行】結果入力表!H7) ->  | BN26: =IF(【進行】結果入力表!H21="","",【進行】結果入力表!H21) ->  | BO26: =IF(【進行】結果入力表!H28="","",【進行】結果入力表!H28) ->  | BP26: =IF(【進行】結果入力表!H42="","",【進行】結果入力表!H42) ->  | BQ26: =IF(【進行】結果入力表!H49="","",【進行】結果入力表!H49) ->  | BR26: =IF(【進行】結果入力表!H63="","",【進行】結果入力表!H63) ->  | BT26: =COUNTIF($BM26:$BR26,BT$5) -> 0 | BU26: 0 | BV26: =MAX($BM26:$BR26) -> 0 | BW26: =BT26*10000+BU26*1000+BV26 -> 0 | BX26: =RANK(BW26,$BW$6:$BW$33) -> 6 | BY26: =B26 -> 樹本 武士 | BZ26: =$A$25 -> ORC | CA26: =IF(BT26>0,"A"&E26,IF(BU26>0,"B"&E26,BV26)) -> 0 | CC26: =COUNTIF(F26:BC26,"w") -> 2 | CD26: =COUNT(F26,N26,AH26,X26,AR26,BB26) -> 4 | CE26: =CC26*180+SUM(F26,N26,AH26,X26,AR26,BB26)*180/E26 -> 834 | CF26: =CC26*100000+CE26 -> 200834
B27: =IF(【準備】登録!$D$11=0,"",【準備】登録!$G$13) -> 乾 伸綱 | E27: =【準備】登録!I13 -> 180 | F27: =IF(【進行】結果入力表!G8="","",【進行】結果入力表!G8) -> 141 | H27: 0 | I27: 1 | J27: 141 | L27: 141 | N27: =IF(【進行】結果入力表!G22="","",【進行】結果入力表!G22) -> 109 | P27: 0 | Q27: 1 | R27: 0 | S27: 2 | T27: 250 | V27: 250 | X27: =IF(【進行】結果入力表!G29="","",【進行】結果入力表!G29) -> w | Z27: 1 | AA27: 0 | AB27: 1 | AC27: 2 | AD27: 430 | AF27: 430 | AH27: =IF(【進行】結果入力表!G43="","",【進行】結果入力表!G43) -> 123 | AJ27: 0 | AK27: 1 | AL27: 1 | AM27: 3 | AN27: 553 | AP27: 553 | AR27: =IF(【進行】結果入力表!G50="","",【進行】結果入力表!G50) -> w | AT27: 1 | AU27: 0 | AV27: 2 | AW27: 3 | AX27: 733 | AZ27: 733 | BB27: =IF(【進行】結果入力表!G64="","",【進行】結果入力表!G64) -> w | BD27: 1 | BE27: 0 | BF27: 3 | BG27: 3 | BH27: 913 | BJ27: 913 | BL27: 4 | BM27: =IF(【進行】結果入力表!H8="","",【進行】結果入力表!H8) ->  | BN27: =IF(【進行】結果入力表!H22="","",【進行】結果入力表!H22) ->  | BO27: =IF(【進行】結果入力表!H29="","",【進行】結果入力表!H29) ->  | BP27: =IF(【進行】結果入力表!H43="","",【進行】結果入力表!H43) ->  | BQ27: =IF(【進行】結果入力表!H50="","",【進行】結果入力表!H50) ->  | BR27: =IF(【進行】結果入力表!H64="","",【進行】結果入力表!H64) ->  | BT27: 0 | BU27: 0 | BV27: 0 | BW27: 0 | BX27: 6 | BY27: 乾 伸綱 | BZ27: ORC | CA27: 0 | CC27: 3 | CD27: 3 | CE27: 913 | CF27: 300913
B28: =IF(【準備】登録!$D$11=0,"",【準備】登録!$J$13) -> 村上 泰辰 | E28: =【準備】登録!L13 -> 180 | F28: =IF(【進行】結果入力表!G9="","",【進行】結果入力表!G9) -> 179 | H28: 0 | I28: 1 | J28: 179 | L28: 179 | N28: =IF(【進行】結果入力表!G23="","",【進行】結果入力表!G23) -> w | P28: 1 | Q28: 0 | R28: 1 | S28: 1 | T28: 359 | V28: 359 | X28: =IF(【進行】結果入力表!G30="","",【進行】結果入力表!G30) -> w | Z28: 1 | AA28: 0 | AB28: 2 | AC28: 1 | AD28: 539 | AF28: 539 | AH28: =IF(【進行】結果入力表!G44="","",【進行】結果入力表!G44) -> w | AJ28: 1 | AK28: 0 | AL28: 3 | AM28: 1 | AN28: 719 | AP28: 719 | AR28: =IF(【進行】結果入力表!G51="","",【進行】結果入力表!G51) -> w | AT28: 1 | AU28: 0 | AV28: 4 | AW28: 1 | AX28: 899 | AZ28: 899 | BB28: =IF(【進行】結果入力表!G65="","",【進行】結果入力表!G65) -> w | BD28: 1 | BE28: 0 | BF28: 5 | BG28: 1 | BH28: 1079 | BJ28: 1079 | BL28: 2 | BM28: =IF(【進行】結果入力表!H9="","",【進行】結果入力表!H9) ->  | BN28: =IF(【進行】結果入力表!H23="","",【進行】結果入力表!H23) -> 119 | BO28: =IF(【進行】結果入力表!H30="","",【進行】結果入力表!H30) -> 110 | BP28: =IF(【進行】結果入力表!H44="","",【進行】結果入力表!H44) ->  | BQ28: =IF(【進行】結果入力表!H51="","",【進行】結果入力表!H51) ->  | BR28: =IF(【進行】結果入力表!H65="","",【進行】結果入力表!H65) -> 102 | BT28: 0 | BU28: 0 | BV28: 119 | BW28: 119 | BX28: 3 | BY28: 村上 泰辰 | BZ28: ORC | CA28: 119 | CC28: 5 | CD28: 1 | CE28: 1079 | CF28: 501079
B29: =IF(【準備】登録!$D$11=0,"",【準備】登録!$M$13) -> 山岡 修二 | E29: =【準備】登録!O13 -> 180 | F29: =IF(【進行】結果入力表!G10="","",【進行】結果入力表!G10) -> w | H29: 1 | I29: 0 | J29: 180 | L29: 180 | N29: =IF(【進行】結果入力表!G24="","",【進行】結果入力表!G24) -> w | P29: 1 | Q29: 0 | R29: 2 | S29: 0 | T29: 360 | V29: 360 | X29: =IF(【進行】結果入力表!G31="","",【進行】結果入力表!G31) -> w | Z29: 1 | AA29: 0 | AB29: 3 | AC29: 0 | AD29: 540 | AF29: 540 | AH29: =IF(【進行】結果入力表!G45="","",【進行】結果入力表!G45) -> w | AJ29: 1 | AK29: 0 | AL29: 4 | AM29: 0 | AN29: 720 | AP29: 720 | AR29: =IF(【進行】結果入力表!G52="","",【進行】結果入力表!G52) -> w | AT29: 1 | AU29: 0 | AV29: 5 | AW29: 0 | AX29: 900 | AZ29: 900 | BB29: =IF(【進行】結果入力表!G66="","",【進行】結果入力表!G66) -> w | BD29: 1 | BE29: 0 | BF29: 6 | BG29: 0 | BH29: 1080 | BJ29: 1080 | BL29: 1 | BM29: =IF(【進行】結果入力表!H10="","",【進行】結果入力表!H10) -> 109 | BN29: =IF(【進行】結果入力表!H24="","",【進行】結果入力表!H24) ->  | BO29: =IF(【進行】結果入力表!H31="","",【進行】結果入力表!H31) ->  | BP29: =IF(【進行】結果入力表!H45="","",【進行】結果入力表!H45) ->  | BQ29: =IF(【進行】結果入力表!H52="","",【進行】結果入力表!H52) -> 109 | BR29: =IF(【進行】結果入力表!H66="","",【進行】結果入力表!H66) ->  | BT29: 0 | BU29: 0 | BV29: 109 | BW29: 109 | BX29: 4 | BY29: 山岡 修二 | BZ29: ORC | CA29: 109 | CC29: 6 | CD29: 0 | CE29: 1080 | CF29: 601080
B30: =IF(【準備】登録!$D$11=0,"",【準備】登録!$P$13) -> 吉岡 保俊 | E30: =【準備】登録!R13 -> 180 | F30: =IF(【進行】結果入力表!G11="","",【進行】結果入力表!G11) -> 115 | H30: 0 | I30: 1 | J30: 115 | L30: 115 | N30: =IF(【進行】結果入力表!G25="","",【進行】結果入力表!G25) -> w | P30: 1 | Q30: 0 | R30: 1 | S30: 1 | T30: 295 | V30: 295 | X30: =IF(【進行】結果入力表!G32="","",【進行】結果入力表!G32) -> w | Z30: 1 | AA30: 0 | AB30: 2 | AC30: 1 | AD30: 475 | AF30: 475 | AH30: =IF(【進行】結果入力表!G46="","",【進行】結果入力表!G46) -> w | AJ30: 1 | AK30: 0 | AL30: 3 | AM30: 1 | AN30: 655 | AP30: 655 | AR30: =IF(【進行】結果入力表!G53="","",【進行】結果入力表!G53) -> w | AT30: 1 | AU30: 0 | AV30: 4 | AW30: 1 | AX30: 835 | AZ30: 835 | BB30: =IF(【進行】結果入力表!G67="","",【進行】結果入力表!G67) -> 153 | BD30: 0 | BE30: 1 | BF30: 4 | BG30: 2 | BH30: 988 | BJ30: 988 | BL30: 3 | BM30: =IF(【進行】結果入力表!H11="","",【進行】結果入力表!H11) ->  | BN30: =IF(【進行】結果入力表!H25="","",【進行】結果入力表!H25) ->  | BO30: =IF(【進行】結果入力表!H32="","",【進行】結果入力表!H32) ->  | BP30: =IF(【進行】結果入力表!H46="","",【進行】結果入力表!H46) ->  | BQ30: =IF(【進行】結果入力表!H53="","",【進行】結果入力表!H53) ->  | BR30: =IF(【進行】結果入力表!H67="","",【進行】結果入力表!H67) ->  | BT30: 0 | BU30: 0 | BV30: 0 | BW30: 0 | BX30: 6 | BY30: 吉岡 保俊 | BZ30: ORC | CA30: 0 | CC30: 4 | CD30: 2 | CE30: 988 | CF30: 400988
B31: =IF(【準備】登録!$D$11=0,"",【準備】登録!$S$13) -> 渡邊 孝行 | E31: =【準備】登録!U13 -> 180 | F31: =IF(【進行】結果入力表!G12="","",【進行】結果入力表!G12) -> w | H31: 1 | I31: 0 | J31: 180 | L31: 180 | N31: =IF(【進行】結果入力表!G26="","",【進行】結果入力表!G26) -> 115 | P31: 0 | Q31: 1 | R31: 1 | S31: 1 | T31: 295 | V31: 295 | X31: =IF(【進行】結果入力表!G33="","",【進行】結果入力表!G33) -> w | Z31: 1 | AA31: 0 | AB31: 2 | AC31: 1 | AD31: 475 | AF31: 475 | AH31: =IF(【進行】結果入力表!G47="","",【進行】結果入力表!G47) -> w | AJ31: 1 | AK31: 0 | AL31: 3 | AM31: 1 | AN31: 655 | AP31: 655 | AR31: =IF(【進行】結果入力表!G54="","",【進行】結果入力表!G54) -> 87 | AT31: 0 | AU31: 1 | AV31: 3 | AW31: 2 | AX31: 742 | AZ31: 742 | BB31: =IF(【進行】結果入力表!G68="","",【進行】結果入力表!G68) -> 170 | BD31: 0 | BE31: 1 | BF31: 3 | BG31: 3 | BH31: 912 | BJ31: 912 | BL31: 5 | BM31: =IF(【進行】結果入力表!H12="","",【進行】結果入力表!H12) ->  | BN31: =IF(【進行】結果入力表!H26="","",【進行】結果入力表!H26) ->  | BO31: =IF(【進行】結果入力表!H33="","",【進行】結果入力表!H33) ->  | BP31: =IF(【進行】結果入力表!H47="","",【進行】結果入力表!H47) ->  | BQ31: =IF(【進行】結果入力表!H54="","",【進行】結果入力表!H54) ->  | BR31: =IF(【進行】結果入力表!H68="","",【進行】結果入力表!H68) ->  | BT31: 0 | BU31: 0 | BV31: 0 | BW31: 0 | BX31: 6 | BY31: 渡邊 孝行 | BZ31: ORC | CA31: 0 | CC31: 3 | CD31: 3 | CE31: 912 | CF31: 300912
B32: =IF(【準備】登録!$D$11=0,"",【準備】登録!$V$13) -> 山崎真紀子 | E32: =【準備】登録!X13 -> 140 | F32: =IF(【進行】結果入力表!G13="","",【進行】結果入力表!G13) -> 79 | H32: 0 | I32: 1 | J32: 79 | L32: 101.5714286 | N32: =IF(【進行】結果入力表!G27="","",【進行】結果入力表!G27) -> w | P32: 1 | Q32: 0 | R32: 1 | S32: 1 | T32: 219 | V32: 281.5714286 | X32: =IF(【進行】結果入力表!G34="","",【進行】結果入力表!G34) -> 14 | Z32: 0 | AA32: 1 | AB32: 1 | AC32: 2 | AD32: 233 | AF32: 299.5714286 | AH32: =IF(【進行】結果入力表!G48="","",【進行】結果入力表!G48) -> w | AJ32: 1 | AK32: 0 | AL32: 2 | AM32: 2 | AN32: 373 | AP32: 479.5714286 | AR32: =IF(【進行】結果入力表!G55="","",【進行】結果入力表!G55) -> 75 | AT32: 0 | AU32: 1 | AV32: 2 | AW32: 3 | AX32: 448 | AZ32: 576 | BB32: =IF(【進行】結果入力表!G69="","",【進行】結果入力表!G69) -> w | BD32: 1 | BE32: 0 | BF32: 3 | BG32: 3 | BH32: 588 | BJ32: 756 | BL32: 6 | BM32: =IF(【進行】結果入力表!H13="","",【進行】結果入力表!H13) ->  | BN32: =IF(【進行】結果入力表!H27="","",【進行】結果入力表!H27) ->  | BO32: =IF(【進行】結果入力表!H34="","",【進行】結果入力表!H34) ->  | BP32: =IF(【進行】結果入力表!H48="","",【進行】結果入力表!H48) ->  | BQ32: =IF(【進行】結果入力表!H55="","",【進行】結果入力表!H55) ->  | BR32: =IF(【進行】結果入力表!H69="","",【進行】結果入力表!H69) ->  | BT32: 0 | BU32: 0 | BV32: 0 | BW32: 0 | BX32: 6 | BY32: 山崎真紀子 | BZ32: ORC | CA32: 0 | CC32: 3 | CD32: 3 | CE32: 756 | CF32: 300756
B34: Total | H34: =IF(COUNTBLANK(H26:H33)=8,"",SUM(H26:H33)) -> 2 | I34: =IF(COUNTBLANK(I26:I33)=8,"",SUM(I26:I33)) -> 5 | J34: =IF($B26="","",SUM(J26:J33)) -> 1024 | K34: =IF($B26="","",SUM(K26:K33)) -> 0 | L34: =IF(COUNTBLANK(L26:L33)=8,"",SUM(L26:L33)) -> 1046.571429 | M34: =IF($B26="","",SUM(M26:M33)) -> 0 | P34: =SUM(P26:P33) -> 4 | Q34: =SUM(Q26:Q33) -> 3 | R34: =IF(COUNTBLANK(R26:R33)=8,"",SUM(H34,P34)) -> 6 | S34: =IF(COUNTBLANK(S26:S33)=8,"",SUM(I34,Q34)) -> 8 | T34: =IF($B26="","",SUM(T26:T33)) -> 2014 | U34: =IF($B26="","",SUM(U26:U33)) -> 0 | V34: =IF(COUNTBLANK(V26:V33)=8,"",SUM(V26:V33)) -> 2076.571429 | W34: =IF($B26="","",SUM(W26:W33)) -> 0 | Z34: =SUM(Z26:Z33) -> 6 | AA34: =SUM(AA26:AA33) -> 1 | AB34: =IF(COUNTBLANK(AB26:AB33)=8,"",SUM(R34,Z34)) -> 12 | AC34: =IF(COUNTBLANK(AC26:AC33)=8,"",SUM(S34,AA34)) -> 9 | AD34: =IF($B26="","",SUM(AD26:AD33)) -> 3108 | AE34: =IF($B26="","",SUM(AE26:AE33)) -> 0 | AF34: =IF(COUNTBLANK(AF26:AF33)=8,"",SUM(AF26:AF33)) -> 3174.571429 | AG34: =IF($B26="","",SUM(AG26:AG33)) -> 0 | AJ34: =SUM(AJ26:AJ33) -> 6 | AK34: =SUM(AK26:AK33) -> 1 | AL34: =IF(COUNTBLANK(AL26:AL33)=8,"",SUM(AB34,AJ34)) -> 18 | AM34: =IF(COUNTBLANK(AM26:AM33)=8,"",SUM(AC34,AK34)) -> 10 | AN34: =IF($B26="","",SUM(AN26:AN33)) -> 4271 | AO34: =IF($B26="","",SUM(AO26:AO33)) -> 0 | AP34: =IF(COUNTBLANK(AP26:AP33)=8,"",SUM(AP26:AP33)) -> 4377.571429 | AQ34: =IF($B26="","",SUM(AQ26:AQ33)) -> 0 | AT34: =SUM(AT26:AT33) -> 4 | AU34: =SUM(AU26:AU33) -> 3 | AV34: =IF(COUNTBLANK(AV26:AV33)=8,"",SUM(AL34,AT34)) -> 22 | AW34: =IF(COUNTBLANK(AW26:AW33)=8,"",SUM(AM34,AU34)) -> 13 | AX34: =IF($B26="","",SUM(AX26:AX33)) -> 5276 | AY34: =IF($B26="","",SUM(AY26:AY33)) -> 0 | AZ34: =IF(COUNTBLANK(AZ26:AZ33)=8,"",SUM(AZ26:AZ33)) -> 5404 | BA34: =IF($B26="","",SUM(BA26:BA33)) -> 0 | BD34: =SUM(BD26:BD33) -> 4 | BE34: =SUM(BE26:BE33) -> 3 | BF34: =IF(COUNTBLANK(BF26:BF33)=8,"",SUM(AV34,BD34)) -> 26 | BG34: =IF(COUNTBLANK(BG26:BG33)=8,"",SUM(AW34,BE34)) -> 16 | BH34: =IF(COUNTIF(BH26:BI33,"")=16,"",SUM(BH26:BH33)) -> 6394 | BI34: =IF($B26="","",SUM(BI26:BI33)) -> 0 | BJ34: =IF(COUNTBLANK(BJ26:BJ33)=8,"",SUM(BJ26:BJ33)) -> 6562 | BK34: =IF($B26="","",SUM(BK26:BK33)) -> 0 | CC34: =SUM(CC26:CC33) -> 26 | CD34: =SUM(CD26:CD33) -> 16 | CE34: =SUM(CE26:CE33) -> 6562 | CF34: =SUM(CF26:CF33) -> 2606562
B35: ※ | C35: TPの数字は、ハンデによる換算後の得点を示す。

Sheet 【結果】リーグ成績表
A1: =【結果】個人成績表!A1 -> 第8回 阪神奈対抗戦 (奈良：キングスポット)
AZ2: =【準備】登録!D4 -> 2015-10-25
A3: 第１節 | U3: 第２節 | AO3: 第３節
A4: =【準備】登録!D9 -> 1 | C4: Name | E4: 持点 | F4: =$A$5 -> HRC | H4: =$A$6 -> NRC | J4: =$A$7 -> ORC | L4: W | M4: L | N4: TP | P4: TP | Q4: LP | R4: R_P | S4: R | U4: 1 | W4: Name | Y4: =$E$4 -> 持点 | Z4: =$A$5 -> HRC | AB4: =$A$6 -> NRC | AD4: =$A$7 -> ORC | AF4: W | AG4: L | AH4: TP | AJ4: TP | AK4: LP | AL4: R_P | AM4: R | AO4: 1 | AQ4: Name | AS4: =$E$4 -> 持点 | AT4: =$A$5 -> HRC | AV4: =$A$6 -> NRC | AX4: =$A$7 -> ORC | AZ4: W | BA4: L | BB4: TP | BD4: TP | BE4: LP | BF4: R_P | BG4: R
A5: =IF(【準備】登録!$B$11="","",【準備】登録!$B$11) -> HRC | C5: =【進行】結果入力表!D7 -> 高木 俊行 | E5: =【準備】登録!F11 -> 180 | H5: =IF(【進行】結果入力表!F14="","",【進行】結果入力表!F14) -> w | J5: =IF(【進行】結果入力表!F7="","",【進行】結果入力表!F7) -> w | L5: =IF(J5="","",COUNTIF(F5:K5,"w")) -> 2 | M5: =IF(J5="","",COUNT(H5,J5)) -> 0 | N5: =SUM(F5:K5)+L5*E5 -> 360 | P5: =IF(J5="","",N5/E5*180) -> 360 | Q5: =IF(F6="w",180,F6/E5*180)+IF(F7="w",180,F7/E5*180) -> 246 | R5: =L5*10000000+P5*L10004*10000000+P5*1000-Q5 -> 20359754 | S5: =IF(J5="","",RANK(R5:R7,R5:R7,0)) -> 1 | U5: =$A$5 -> HRC | W5: =【進行】結果入力表!D35 -> 藤中健太郎 | Y5: =【準備】登録!U11 -> 180 | AB5: =IF(【進行】結果入力表!F35="","",【進行】結果入力表!F35) -> 66 | AD5: =IF(【進行】結果入力表!F28="","",【進行】結果入力表!F28) -> 39 | AF5: =IF(AD5="","",COUNTIF(Z5:AE5,"w")) -> 0 | AG5: =IF(AD5="","",COUNT(AB5,AD5)) -> 2 | AH5: =SUM(Z5:AE5)+AF5*Y5 -> 105 | AJ5: =IF(AD5="","",AH5/Y5*180) -> 105 | AK5: =IF(Z6="w",180,Z6/Y5*180)+IF(Z7="w",180,Z7/Y5*180) -> 360 | AL5: =AF5*10000000+AJ5*AF10004*10000000+AJ5*1000-AK5 -> 104640 | AM5: =IF(AD5="","",RANK(AL5:AL7,AL5:AL7,0)) -> 3 | AO5: =$A$5 -> HRC | AQ5: =【進行】結果入力表!D56 -> 丹羽 俊也 | AS5: =【準備】登録!O11 -> 180 | AV5: =IF(【進行】結果入力表!F56="","",【進行】結果入力表!F56) -> w | AX5: =IF(【進行】結果入力表!F49="","",【進行】結果入力表!F49) -> w | AZ5: =IF(AX5="","",COUNTIF(AT5:AY5,"w")) -> 2 | BA5: =IF(AX5="","",COUNT(AV5,AX5)) -> 0 | BB5: =SUM(AT5:AY5)+AZ5*AS5 -> 360 | BD5: =IF(AX5="","",BB5/AS5*180) -> 360 | BE5: =IF(AT6="w",180,AT6/AS5*180)+IF(AT7="w",180,AT7/AS5*180) -> 199 | BF5: =AZ5*10000000+BD5*AZ10004*10000000+BD5*1000-BE5 -> 20359801 | BG5: =IF(AX5="","",RANK(BF5:BF7,BF5:BF7,0)) -> 1
A6: =IF(【準備】登録!$B$12="","",【準備】登録!$B$12) -> NRC | C6: =【進行】結果入力表!I14 -> 吉向 翔平 | E6: =【準備】登録!F12 -> 180 | F6: =IF(【進行】結果入力表!G14="","",【進行】結果入力表!G14) -> 96 | J6: =IF(【進行】結果入力表!F21="","",【進行】結果入力表!F21) -> w | L6: =IF(J5="","",COUNTIF(F6:K6,"w")) -> 1 | M6: =IF(J5="","",COUNT(F6,J6)) -> 1 | N6: =SUM(F6:K6)+L6*E6 -> 276 | P6: =IF(J5="","",N6/E6*180) -> 276 | Q6: =IF(H5="w",180,H5/E6*180)+IF(H7="w",180,H7/E6*180) -> 266 | R6: =L6*10000000+P6*L10005*10000000+P6*1000-Q6 -> 10275734 | S6: =IF(J5="","",RANK(R5:R7,R5:R7,0)) -> 2 | U6: =$A$6 -> NRC | W6: =【進行】結果入力表!I35 -> 宮野 早織 | Y6: =【準備】登録!X12 -> 140 | Z6: =IF(【進行】結果入力表!G35="","",【進行】結果入力表!G35) -> w | AD6: =IF(【進行】結果入力表!F42="","",【進行】結果入力表!F42) -> 56 | AF6: =IF(AD5="","",COUNTIF(Z6:AE6,"w")) -> 1 | AG6: =IF(AD5="","",COUNT(Z6,AD6)) -> 1 | AH6: =SUM(Z6:AE6)+AF6*Y6 -> 196 | AJ6: =IF(AD5="","",AH6/Y6*180) -> 252 | AK6: =IF(AB5="w",180,AB5/Y6*180)+IF(AB7="w",180,AB7/Y6*180) -> 264.8571429 | AL6: =AF6*10000000+AJ6*AF10005*10000000+AJ6*1000-AK6 -> 10251735.14 | AM6: =IF(AD5="","",RANK(AL5:AL7,AL5:AL7,0)) -> 2 | AO6: =$A$6 -> NRC | AQ6: =【進行】結果入力表!I56 -> 植田 慎也 | AS6: =【準備】登録!U12 -> 180 | AT6: =IF(【進行】結果入力表!G56="","",【進行】結果入力表!G56) -> 76 | AX6: =IF(【進行】結果入力表!F63="","",【進行】結果入力表!F63) -> w | AZ6: =IF(AX5="","",COUNTIF(AT6:AY6,"w")) -> 1 | BA6: =IF(AX5="","",COUNT(AT6,AX6)) -> 1 | BB6: =SUM(AT6:AY6)+AZ6*AS6 -> 256 | BD6: =IF(AX5="","",BB6/AS6*180) -> 256 | BE6: =IF(AV5="w",180,AV5/AS6*180)+IF(AV7="w",180,AV7/AS6*180) -> 295 | BF6: =AZ6*10000000+BD6*AZ10005*10000000+BD6*1000-BE6 -> 10255705 | BG6: =IF(AX5="","",RANK(BF5:BF7,BF5:BF7,0)) -> 2
A7: =IF(【準備】登録!$B$13="","",【準備】登録!$B$13) -> ORC | C7: =【進行】結果入力表!I7 -> 樹本 武士 | E7: =【準備】登録!F13 -> 180 | F7: =IF(【進行】結果入力表!G7="","",【進行】結果入力表!G7) -> 150 | H7: =IF(【進行】結果入力表!G21="","",【進行】結果入力表!G21) -> 86 | L7: =IF(J5="","",COUNTIF(F7:K7,"w")) -> 0 | M7: =IF(J5="","",COUNT(F7,H7)) -> 2 | N7: =SUM(F7:K7)+L7*E7 -> 236 | P7: =IF(J5="","",(N7/E7*180)) -> 236 | Q7: =IF(J5="w",180,J5/E7*180)+IF(J6="w",180,J6/E7*180) -> 360 | R7: =L7*10000000+P7*L10006*10000000+P7*1000-Q7 -> 235640 | S7: =IF(J5="","",RANK(R5:R7,R5:R7,0)) -> 3 | U7: =$A$7 -> ORC | W7: =【進行】結果入力表!I28 -> 樹本 武士 | Y7: =【準備】登録!F13 -> 180 | Z7: =IF(【進行】結果入力表!G28="","",【進行】結果入力表!G28) -> w | AB7: =IF(【進行】結果入力表!G42="","",【進行】結果入力表!G42) -> w | AF7: =IF(AD5="","",COUNTIF(Z7:AE7,"w")) -> 2 | AG7: =IF(AD5="","",COUNT(Z7,AB7)) -> 0 | AH7: =SUM(Z7:AE7)+AF7*Y7 -> 360 | AJ7: =IF(AD5="","",AH7/Y7*180) -> 360 | AK7: =IF(AD5="w",180,AD5/Y7*180)+IF(AD6="w",180,AD6/Y7*180) -> 95 | AL7: =AF7*10000000+AJ7*AF10006*10000000+AJ7*1000-AK7 -> 20359905 | AM7: =IF(AD5="","",RANK(AL5:AL7,AL5:AL7,0)) -> 1 | AO7: =$A$7 -> ORC | AQ7: =【進行】結果入力表!I49 -> 樹本 武士 | AS7: =【準備】登録!F13 -> 180 | AT7: =IF(【進行】結果入力表!G49="","",【進行】結果入力表!G49) -> 123 | AV7: =IF(【進行】結果入力表!G63="","",【進行】結果入力表!G63) -> 115 | AZ7: =IF(AX5="","",COUNTIF(AT7:AY7,"w")) -> 0 | BA7: =IF(AX5="","",COUNT(AT7,AV7)) -> 2 | BB7: =SUM(AT7:AY7)+AZ7*AS7 -> 238 | BD7: =IF(AX5="","",BB7/AS7*180) -> 238 | BE7: =IF(AX5="w",180,AX5/AS7*180)+IF(AX6="w",180,AX6/AS7*180) -> 360 | BF7: =AZ7*10000000+BD7*AZ10006*10000000+BD7*1000-BE7 -> 237640 | BG7: =IF(AX5="","",RANK(BF5:BF7,BF5:BF7,0)) -> 3
A9: 2 | C9: Name | E9: =$E$4 -> 持点 | F9: =$A$5 -> HRC | H9: =$A$6 -> NRC | J9: =$A$7 -> ORC | L9: W | M9: L | N9: TP | P9: TP | Q9: LP | R9: R_P | S9: R | U9: 2 | W9: Name | Y9: =$E$4 -> 持点 | Z9: =$A$5 -> HRC | AB9: =$A$6 -> NRC | AD9: =$A$7 -> ORC | AF9: W | AG9: L | AH9: TP | AJ9: TP | AK9: LP | AL9: R_P | AM9: R | AO9: 2 | AQ9: Name | AS9: =$E$4 -> 持点 | AT9: =$A$5 -> HRC | AV9: =$A$6 -> NRC | AX9: =$A$7 -> ORC | AZ9: W | BA9: L | BB9: TP | BD9: TP | BE9: LP | BF9: R_P | BG9: R
A10: =$A$5 -> HRC | C10: =【進行】結果入力表!D8 -> 堂園 雅也 | E10: =【準備】登録!I11 -> 180 | H10: =IF(【進行】結果入力表!F15="","",【進行】結果入力表!F15) -> 137 | J10: =IF(【進行】結果入力表!F8="","",【進行】結果入力表!F8) -> w | L10: =IF(J10="","",COUNTIF(F10:K10,"w")) -> 1 | M10: =IF(J10="","",COUNT(H10,J10)) -> 1 | N10: =SUM(F10:K10)+L10*E10 -> 317 | P10: =IF(J10="","",N10/E10*180) -> 317 | Q10: =IF(F11="w",180,F11/E10*180)+IF(F12="w",180,F12/E10*180) -> 321 | R10: =L10*10000000+P10*L10009*10000000+P10*1000-Q10 -> 10316679 | S10: =IF(J10="","",RANK(R10:R12,R10:R12,0)) -> 2 | U10: =$A$5 -> HRC | W10: =【進行】結果入力表!D36 -> 中平 美輪 | Y10: =【準備】登録!X11 -> 140 | AB10: =IF(【進行】結果入力表!F36="","",【進行】結果入力表!F36) -> 45 | AD10: =IF(【進行】結果入力表!F29="","",【進行】結果入力表!F29) -> 97 | AF10: =IF(AD10="","",COUNTIF(Z10:AE10,"w")) -> 0 | AG10: =IF(AD10="","",COUNT(AB10,AD10)) -> 2 | AH10: =SUM(Z10:AE10)+AF10*Y10 -> 142 | AJ10: =IF(AD10="","",AH10/Y10*180) -> 182.5714286 | AK10: =IF(Z11="w",180,Z11/Y10*180)+IF(Z12="w",180,Z12/Y10*180) -> 360 | AL10: =AF10*10000000+AJ10*AF10009*10000000+AJ10*1000-AK10 -> 182211.4286 | AM10: =IF(AD10="","",RANK(AL10:AL12,AL10:AL12,0)) -> 3 | AO10: =$A$5 -> HRC | AQ10: =【進行】結果入力表!D57 -> 高山 普任 | AS10: =【準備】登録!R11 -> 180 | AV10: =IF(【進行】結果入力表!F57="","",【進行】結果入力表!F57) -> w | AX10: =IF(【進行】結果入力表!F50="","",【進行】結果入力表!F50) -> 160 | AZ10: =IF(AX10="","",COUNTIF(AT10:AY10,"w")) -> 1 | BA10: =IF(AX10="","",COUNT(AV10,AX10)) -> 1 | BB10: =SUM(AT10:AY10)+AZ10*AS10 -> 340 | BD10: =IF(AX10="","",BB10/AS10*180) -> 340 | BE10: =IF(AT11="w",180,AT11/AS10*180)+IF(AT12="w",180,AT12/AS10*180) -> 255 | BF10: =AZ10*10000000+BD10*AZ10009*10000000+BD10*1000-BE10 -> 10339745 | BG10: =IF(AX10="","",RANK(BF10:BF12,BF10:BF12,0)) -> 2
A11: =$A$6 -> NRC | C11: =【進行】結果入力表!I15 -> 近藤 拓馬 | E11: =【準備】登録!I12 -> 180 | F11: =IF(【進行】結果入力表!G15="","",【進行】結果入力表!G15) -> w | J11: =IF(【進行】結果入力表!F22="","",【進行】結果入力表!F22) -> w | L11: =IF(J10="","",COUNTIF(F11:K11,"w")) -> 2 | M11: =IF(J10="","",COUNT(F11,J11)) -> 0 | N11: =SUM(F11:K11)+L11*E11 -> 360 | P11: =IF(J10="","",N11/E11*180) -> 360 | Q11: =IF(H10="w",180,H10/E11*180)+IF(H12="w",180,H12/E11*180) -> 246 | R11: =L11*10000000+P11*L10010*10000000+P11*1000-Q11 -> 20359754 | S11: =IF(J10="","",RANK(R10:R12,R10:R12,0)) -> 1 | U11: =$A$6 -> NRC | W11: =【進行】結果入力表!I36 -> 吉向 翔平 | Y11: =【準備】登録!F12 -> 180 | Z11: =IF(【進行】結果入力表!G36="","",【進行】結果入力表!G36) -> w | AD11: =IF(【進行】結果入力表!F43="","",【進行】結果入力表!F43) -> w | AF11: =IF(AD10="","",COUNTIF(Z11:AE11,"w")) -> 2 | AG11: =IF(AD10="","",COUNT(Z11,AD11)) -> 0 | AH11: =SUM(Z11:AE11)+AF11*Y11 -> 360 | AJ11: =IF(AD10="","",AH11/Y11*180) -> 360 | AK11: =IF(AB10="w",180,AB10/Y11*180)+IF(AB12="w",180,AB12/Y11*180) -> 168 | AL11: =AF11*10000000+AJ11*AF10010*10000000+AJ11*1000-AK11 -> 20359832 | AM11: =IF(AD10="","",RANK(AL10:AL12,AL10:AL12,0)) -> 1 | AO11: =$A$6 -> NRC | AQ11: =【進行】結果入力表!I57 -> 宮野 早織 | AS11: =【準備】登録!X12 -> 140 | AT11: =IF(【進行】結果入力表!G57="","",【進行】結果入力表!G57) -> 75 | AX11: =IF(【進行】結果入力表!F64="","",【進行】結果入力表!F64) -> 9 | AZ11: =IF(AX10="","",COUNTIF(AT11:AY11,"w")) -> 0 | BA11: =IF(AX10="","",COUNT(AT11,AX11)) -> 2 | BB11: =SUM(AT11:AY11)+AZ11*AS11 -> 84 | BD11: =IF(AX10="","",BB11/AS11*180) -> 108 | BE11: =IF(AV10="w",180,AV10/AS11*180)+IF(AV12="w",180,AV12/AS11*180) -> 360 | BF11: =AZ11*10000000+BD11*AZ10010*10000000+BD11*1000-BE11 -> 107640 | BG11: =IF(AX10="","",RANK(BF10:BF12,BF10:BF12,0)) -> 3
A12: =$A$7 -> ORC | C12: =【進行】結果入力表!I8 -> 乾 伸綱 | E12: =【準備】登録!I13 -> 180 | F12: =IF(【進行】結果入力表!G8="","",【進行】結果入力表!G8) -> 141 | H12: =IF(【進行】結果入力表!G22="","",【進行】結果入力表!G22) -> 109 | L12: =IF(J10="","",COUNTIF(F12:K12,"w")) -> 0 | M12: =IF(J10="","",COUNT(F12,H12)) -> 2 | N12: =SUM(F12:K12)+L12*E12 -> 250 | P12: =IF(J10="","",N12/E12*180) -> 250 | Q12: =IF(J10="w",180,J10/E12*180)+IF(J11="w",180,J11/E12*180) -> 360 | R12: =L12*10000000+P12*L10011*10000000+P12*1000-Q12 -> 249640 | S12: =IF(J10="","",RANK(R10:R12,R10:R12,0)) -> 3 | U12: =$A$7 -> ORC | W12: =【進行】結果入力表!I29 -> 乾 伸綱 | Y12: =【準備】登録!I13 -> 180 | Z12: =IF(【進行】結果入力表!G29="","",【進行】結果入力表!G29) -> w | AB12: =IF(【進行】結果入力表!G43="","",【進行】結果入力表!G43) -> 123 | AF12: =IF(AD10="","",COUNTIF(Z12:AE12,"w")) -> 1 | AG12: =IF(AD10="","",COUNT(Z12,AB12)) -> 1 | AH12: =SUM(Z12:AE12)+AF12*Y12 -> 303 | AJ12: =IF(AD10="","",AH12/Y12*180) -> 303 | AK12: =IF(AD10="w",180,AD10/Y12*180)+IF(AD11="w",180,AD11/Y12*180) -> 277 | AL12: =AF12*10000000+AJ12*AF10011*10000000+AJ12*1000-AK12 -> 10302723 | AM12: =IF(AD10="","",RANK(AL10:AL12,AL10:AL12,0)) -> 2 | AO12: =$A$7 -> ORC | AQ12: =【進行】結果入力表!I50 -> 乾 伸綱 | AS12: =【準備】登録!I13 -> 180 | AT12: =IF(【進行】結果入力表!G50="","",【進行】結果入力表!G50) -> w | AV12: =IF(【進行】結果入力表!G64="","",【進行】結果入力表!G64) -> w | AZ12: =IF(AX10="","",COUNTIF(AT12:AY12,"w")) -> 2 | BA12: =IF(AX10="","",COUNT(AT12,AV12)) -> 0 | BB12: =SUM(AT12:AY12)+AZ12*AS12 -> 360 | BD12: =IF(AX10="","",BB12/AS12*180) -> 360 | BE12: =IF(AX10="w",180,AX10/AS12*180)+IF(AX11="w",180,AX11/AS12*180) -> 169 | BF12: =AZ12*10000000+BD12*AZ10011*10000000+BD12*1000-BE12 -> 20359831 | BG12: =IF(AX10="","",RANK(BF10:BF12,BF10:BF12,0)) -> 1
A14: 3 | C14: Name | E14: =E$4 -> 持点 | F14: =$A$5 -> HRC | H14: =$A$6 -> NRC | J14: =$A$7 -> ORC | L14: W | M14: L | N14: TP | P14: TP | Q14: LP | R14: R_P | S14: R | U14: 3 | W14: Name | Y14: =$E$4 -> 持点 | Z14: =$A$5 -> HRC | AB14: =$A$6 -> NRC | AD14: =$A$7 -> ORC | AF14: W | AG14: L | AH14: TP | AJ14: TP | AK14: LP | AL14: R_P | AM14: R | AO14: 3 | AQ14: Name | AS14: =$E$4 -> 持点 | AT14: =$A$5 -> HRC | AV14: =$A$6 -> NRC | AX14: =$A$7 -> ORC | AZ14: W | BA14: L | BB14: TP | BD14: TP | BE14: LP | BF14: R_P | BG14: R
A15: =$A$5 -> HRC | C15: =【進行】結果入力表!D9 -> 菊川 博功 | E15: =【準備】登録!L11 -> 180 | H15: =IF(【進行】結果入力表!F16="","",【進行】結果入力表!F16) -> w | J15: =IF(【進行】結果入力表!F9="","",【進行】結果入力表!F9) -> w | L15: =IF(J15="","",COUNTIF(F15:K15,"w")) -> 2 | M15: =IF(J15="","",COUNT(H15,J15)) -> 0 | N15: =SUM(F15:K15)+L15*E15 -> 360 | P15: =IF(J15="","",N15/E15*180) -> 360 | Q15: =IF(F16="w",180,F16/E15*180)+IF(F17="w",180,F17/E15*180) -> 294 | R15: =L15*10000000+P15*L10014*10000000+P15*1000-Q15 -> 20359706 | S15: =IF(J15="","",RANK(R15:R17,R15:R17,0)) -> 1 | U15: =$A$5 -> HRC | W15: =【進行】結果入力表!D37 -> 高木 俊行 | Y15: =【準備】登録!F11 -> 180 | AB15: =IF(【進行】結果入力表!F37="","",【進行】結果入力表!F37) -> w | AD15: =IF(【進行】結果入力表!F30="","",【進行】結果入力表!F30) -> 10 | AF15: =IF(AD15="","",COUNTIF(Z15:AE15,"w")) -> 1 | AG15: =IF(AD15="","",COUNT(AB15,AD15)) -> 1 | AH15: =SUM(Z15:AE15)+AF15*Y15 -> 190 | AJ15: =IF(AD15="","",AH15/Y15*180) -> 190 | AK15: =IF(Z16="w",180,Z16/Y15*180)+IF(Z17="w",180,Z17/Y15*180) -> 290 | AL15: =AF15*10000000+AJ15*AF10014*10000000+AJ15*1000-AK15 -> 10189710 | AM15: =IF(AD15="","",RANK(AL15:AL17,AL15:AL17,0)) -> 2 | AO15: =$A$5 -> HRC | AQ15: =【進行】結果入力表!D58 -> 藤中健太郎 | AS15: =【準備】登録!U11 -> 180 | AV15: =IF(【進行】結果入力表!F58="","",【進行】結果入力表!F58) -> 3 | AX15: =IF(【進行】結果入力表!F51="","",【進行】結果入力表!F51) -> 2 | AZ15: =IF(AX15="","",COUNTIF(AT15:AY15,"w")) -> 0 | BA15: =IF(AX15="","",COUNT(AV15,AX15)) -> 2 | BB15: =SUM(AT15:AY15)+AZ15*AS15 -> 5 | BD15: =IF(AX15="","",BB15/AS15*180) -> 5 | BE15: =IF(AT16="w",180,AT16/AS15*180)+IF(AT17="w",180,AT17/AS15*180) -> 360 | BF15: =AZ15*10000000+BD15*AZ10014*10000000+BD15*1000-BE15 -> 4640 | BG15: =IF(AX15="","",RANK(BF15:BF17,BF15:BF17,0)) -> 3
A16: =$A$6 -> NRC | C16: =【進行】結果入力表!I16 -> 金澤 茂昌 | E16: =【準備】登録!L12 -> 180 | F16: =IF(【進行】結果入力表!G16="","",【進行】結果入力表!G16) -> 115 | J16: =IF(【進行】結果入力表!F23="","",【進行】結果入力表!F23) -> 1 | L16: =IF(J15="","",COUNTIF(F16:K16,"w")) -> 0 | M16: =IF(J15="","",COUNT(F16,J16)) -> 2 | N16: =SUM(F16:K16)+L16*E16 -> 116 | P16: =IF(J15="","",N16/E16*180) -> 116 | Q16: =IF(H15="w",180,H15/E16*180)+IF(H17="w",180,H17/E16*180) -> 360 | R16: =L16*10000000+P16*L10015*10000000+P16*1000-Q16 -> 115640 | S16: =IF(J15="","",RANK(R15:R17,R15:R17,0)) -> 3 | U16: =$A$6 -> NRC | W16: =【進行】結果入力表!I37 -> 近藤 拓馬 | Y16: =【準備】登録!I12 -> 180 | Z16: =IF(【進行】結果入力表!G37="","",【進行】結果入力表!G37) -> 110 | AD16: =IF(【進行】結果入力表!F44="","",【進行】結果入力表!F44) -> 115 | AF16: =IF(AD15="","",COUNTIF(Z16:AE16,"w")) -> 0 | AG16: =IF(AD15="","",COUNT(Z16,AD16)) -> 2 | AH16: =SUM(Z16:AE16)+AF16*Y16 -> 225 | AJ16: =IF(AD15="","",AH16/Y16*180) -> 225 | AK16: =IF(AB15="w",180,AB15/Y16*180)+IF(AB17="w",180,AB17/Y16*180) -> 360 | AL16: =AF16*10000000+AJ16*AF10015*10000000+AJ16*1000-AK16 -> 224640 | AM16: =IF(AD15="","",RANK(AL15:AL17,AL15:AL17,0)) -> 3 | AO16: =$A$6 -> NRC | AQ16: =【進行】結果入力表!I58 -> 吉向 翔平 | AS16: =【準備】登録!F12 -> 180 | AT16: =IF(【進行】結果入力表!G58="","",【進行】結果入力表!G58) -> w | AX16: =IF(【進行】結果入力表!F65="","",【進行】結果入力表!F65) -> 33 | AZ16: =IF(AX15="","",COUNTIF(AT16:AY16,"w")) -> 1 | BA16: =IF(AX15="","",COUNT(AT16,AX16)) -> 1 | BB16: =SUM(AT16:AY16)+AZ16*AS16 -> 213 | BD16: =IF(AX15="","",BB16/AS16*180) -> 213 | BE16: =IF(AV15="w",180,AV15/AS16*180)+IF(AV17="w",180,AV17/AS16*180) -> 183 | BF16: =AZ16*10000000+BD16*AZ10015*10000000+BD16*1000-BE16 -> 10212817 | BG16: =IF(AX15="","",RANK(BF15:BF17,BF15:BF17,0)) -> 2
A17: =$A$7 -> ORC | C17: =【進行】結果入力表!I9 -> 村上 泰辰 | E17: =【準備】登録!L13 -> 180 | F17: =IF(【進行】結果入力表!G9="","",【進行】結果入力表!G9) -> 179 | H17: =IF(【進行】結果入力表!G23="","",【進行】結果入力表!G23) -> w | L17: =IF(J15="","",COUNTIF(F17:K17,"w")) -> 1 | M17: =IF(J15="","",COUNT(F17,H17)) -> 1 | N17: =SUM(F17:K17)+L17*E17 -> 359 | P17: =IF(J15="","",N17/E17*180) -> 359 | Q17: =IF(J15="w",180,J15/E17*180)+IF(J16="w",180,J16/E17*180) -> 181 | R17: =L17*10000000+P17*L10016*10000000+P17*1000-Q17 -> 10358819 | S17: =IF(J15="","",RANK(R15:R17,R15:R17,0)) -> 2 | U17: =$A$7 -> ORC | W17: =【進行】結果入力表!I30 -> 村上 泰辰 | Y17: =【準備】登録!L13 -> 180 | Z17: =IF(【進行】結果入力表!G30="","",【進行】結果入力表!G30) -> w | AB17: =IF(【進行】結果入力表!G44="","",【進行】結果入力表!G44) -> w | AF17: =IF(AD15="","",COUNTIF(Z17:AE17,"w")) -> 2 | AG17: =IF(AD15="","",COUNT(Z17,AB17)) -> 0 | AH17: =SUM(Z17:AE17)+AF17*Y17 -> 360 | AJ17: =IF(AD15="","",AH17/Y17*180) -> 360 | AK17: =IF(AD15="w",180,AD15/Y17*180)+IF(AD16="w",180,AD16/Y17*180) -> 125 | AL17: =AF17*10000000+AJ17*AF10016*10000000+AJ17*1000-AK17 -> 20359875 | AM17: =IF(AD15="","",RANK(AL15:AL17,AL15:AL17,0)) -> 1 | AO17: =$A$7 -> ORC | AQ17: =【進行】結果入力表!I51 -> 村上 泰辰 | AS17: =【準備】登録!L13 -> 180 | AT17: =IF(【進行】結果入力表!G51="","",【進行】結果入力表!G51) -> w | AV17: =IF(【進行】結果入力表!G65="","",【進行】結果入力表!G65) -> w | AZ17: =IF(AX15="","",COUNTIF(AT17:AY17,"w")) -> 2 | BA17: =IF(AX15="","",COUNT(AT17,AV17)) -> 0 | BB17: =SUM(AT17:AY17)+AZ17*AS17 -> 360 | BD17: =IF(AX15="","",BB17/AS17*180) -> 360 | BE17: =IF(AX15="w",180,AX15/AS17*180)+IF(AX16="w",180,AX16/AS17*180) -> 35 | BF17: =AZ17*10000000+BD17*AZ10016*10000000+BD17*1000-BE17 -> 20359965 | BG17: =IF(AX15="","",RANK(BF15:BF17,BF15:BF17,0)) -> 1
A19: 4 | C19: Name | E19: =E$4 -> 持点 | F19: =$A$5 -> HRC | H19: =$A$6 -> NRC | J19: =$A$7 -> ORC | L19: W | M19: L | N19: TP | P19: TP | Q19: LP | R19: R_P | S19: R | U19: 4 | W19: Name | Y19: =$E$4 -> 持点 | Z19: =$A$5 -> HRC | AB19: =$A$6 -> NRC | AD19: =$A$7 -> ORC | AF19: W | AG19: L | AH19: TP | AJ19: TP | AK19: LP | AL19: R_P | AM19: R | AO19: 4 | AQ19: Name | AS19: =$E$4 -> 持点 | AT19: =$A$5 -> HRC | AV19: =$A$6 -> NRC | AX19: =$A$7 -> ORC | AZ19: W | BA19: L | BB19: TP | BD19: TP | BE19: LP | BF19: R_P | BG19: R
A20: =$A$5 -> HRC | C20: =【進行】結果入力表!D10 -> 丹羽 俊也 | E20: =【準備】登録!O11 -> 180 | H20: =IF(【進行】結果入力表!F17="","",【進行】結果入力表!F17) -> 87 | J20: =IF(【進行】結果入力表!F10="","",【進行】結果入力表!F10) -> 103 | L20: =IF(J20="","",COUNTIF(F20:K20,"w")) -> 0 | M20: =IF(J20="","",COUNT(H20,J20)) -> 2 | N20: =SUM(F20:K20)+L20*E20 -> 190 | P20: =IF(J20="","",N20/E20*180) -> 190 | Q20: =IF(F21="w",180,F21/E20*180)+IF(F22="w",180,F22/E20*180) -> 360 | R20: =L20*10000000+P20*L10019*10000000+P20*1000-Q20 -> 189640 | S20: =IF(J20="","",RANK(R20:R22,R20:R22,0)) -> 3 | U20: =$A$5 -> HRC | W20: =【進行】結果入力表!D38 -> 堂園 雅也 | Y20: =【準備】登録!I11 -> 180 | AB20: =IF(【進行】結果入力表!F38="","",【進行】結果入力表!F38) -> w | AD20: =IF(【進行】結果入力表!F31="","",【進行】結果入力表!F31) -> 35 | AF20: =IF(AD20="","",COUNTIF(Z20:AE20,"w")) -> 1 | AG20: =IF(AD20="","",COUNT(AB20,AD20)) -> 1 | AH20: =SUM(Z20:AE20)+AF20*Y20 -> 215 | AJ20: =IF(AD20="","",AH20/Y20*180) -> 215 | AK20: =IF(Z21="w",180,Z21/Y20*180)+IF(Z22="w",180,Z22/Y20*180) -> 315 | AL20: =AF20*10000000+AJ20*AF10019*10000000+AJ20*1000-AK20 -> 10214685 | AM20: =IF(AD20="","",RANK(AL20:AL22,AL20:AL22,0)) -> 2 | AO20: =$A$5 -> HRC | AQ20: =【進行】結果入力表!D59 -> 中平 美輪 | AS20: =【準備】登録!X11 -> 140 | AV20: =IF(【進行】結果入力表!F59="","",【進行】結果入力表!F59) -> 56 | AX20: =IF(【進行】結果入力表!F52="","",【進行】結果入力表!F52) -> 10 | AZ20: =IF(AX20="","",COUNTIF(AT20:AY20,"w")) -> 0 | BA20: =IF(AX20="","",COUNT(AV20,AX20)) -> 2 | BB20: =SUM(AT20:AY20)+AZ20*AS20 -> 66 | BD20: =IF(AX20="","",BB20/AS20*180) -> 84.85714286 | BE20: =IF(AT21="w",180,AT21/AS20*180)+IF(AT22="w",180,AT22/AS20*180) -> 360 | BF20: =AZ20*10000000+BD20*AZ10019*10000000+BD20*1000-BE20 -> 84497.14286 | BG20: =IF(AX20="","",RANK(BF20:BF22,BF20:BF22,0)) -> 3
A21: =$A$6 -> NRC | C21: =【進行】結果入力表!I17 -> 斉藤 裕児 | E21: =【準備】登録!O12 -> 180 | F21: =IF(【進行】結果入力表!G17="","",【進行】結果入力表!G17) -> w | J21: =IF(【進行】結果入力表!F24="","",【進行】結果入力表!F24) -> 82 | L21: =IF(J20="","",COUNTIF(F21:K21,"w")) -> 1 | M21: =IF(J20="","",COUNT(F21,J21)) -> 1 | N21: =SUM(F21:K21)+L21*E21 -> 262 | P21: =IF(J20="","",N21/E21*180) -> 262 | Q21: =IF(H20="w",180,H20/E21*180)+IF(H22="w",180,H22/E21*180) -> 267 | R21: =L21*10000000+P21*L10020*10000000+P21*1000-Q21 -> 10261733 | S21: =IF(J20="","",RANK(R20:R22,R20:R22,0)) -> 2 | U21: =$A$6 -> NRC | W21: =【進行】結果入力表!I38 -> 金澤 茂昌 | Y21: =【準備】登録!L12 -> 180 | Z21: =IF(【進行】結果入力表!G38="","",【進行】結果入力表!G38) -> 135 | AD21: =IF(【進行】結果入力表!F45="","",【進行】結果入力表!F45) -> 104 | AF21: =IF(AD20="","",COUNTIF(Z21:AE21,"w")) -> 0 | AG21: =IF(AD20="","",COUNT(Z21,AD21)) -> 2 | AH21: =SUM(Z21:AE21)+AF21*Y21 -> 239 | AJ21: =IF(AD20="","",AH21/Y21*180) -> 239 | AK21: =IF(AB20="w",180,AB20/Y21*180)+IF(AB22="w",180,AB22/Y21*180) -> 360 | AL21: =AF21*10000000+AJ21*AF10020*10000000+AJ21*1000-AK21 -> 238640 | AM21: =IF(AD20="","",RANK(AL20:AL22,AL20:AL22,0)) -> 3 | AO21: =$A$6 -> NRC | AQ21: =【進行】結果入力表!I59 -> 近藤 拓馬 | AS21: =【準備】登録!I12 -> 180 | AT21: =IF(【進行】結果入力表!G59="","",【進行】結果入力表!G59) -> w | AX21: =IF(【進行】結果入力表!F66="","",【進行】結果入力表!F66) -> 67 | AZ21: =IF(AX20="","",COUNTIF(AT21:AY21,"w")) -> 1 | BA21: =IF(AX20="","",COUNT(AT21,AX21)) -> 1 | BB21: =SUM(AT21:AY21)+AZ21*AS21 -> 247 | BD21: =IF(AX20="","",BB21/AS21*180) -> 247 | BE21: =IF(AV20="w",180,AV20/AS21*180)+IF(AV22="w",180,AV22/AS21*180) -> 236 | BF21: =AZ21*10000000+BD21*AZ10020*10000000+BD21*1000-BE21 -> 10246764 | BG21: =IF(AX20="","",RANK(BF20:BF22,BF20:BF22,0)) -> 2
A22: =$A$7 -> ORC | C22: =【進行】結果入力表!I10 -> 山岡 修二 | E22: =【準備】登録!O13 -> 180 | F22: =IF(【進行】結果入力表!G10="","",【進行】結果入力表!G10) -> w | H22: =IF(【進行】結果入力表!G24="","",【進行】結果入力表!G24) -> w | L22: =IF(J20="","",COUNTIF(F22:K22,"w")) -> 2 | M22: =IF(J20="","",COUNT(F22,H22)) -> 0 | N22: =SUM(F22:K22)+L22*E22 -> 360 | P22: =IF(J20="","",N22/E22*180) -> 360 | Q22: =IF(J20="w",180,J20/E22*180)+IF(J21="w",180,J21/E22*180) -> 185 | R22: =L22*10000000+P22*L10021*10000000+P22*1000-Q22 -> 20359815 | S22: =IF(J20="","",RANK(R20:R22,R20:R22,0)) -> 1 | U22: =$A$7 -> ORC | W22: =【進行】結果入力表!I31 -> 山岡 修二 | Y22: =【準備】登録!O13 -> 180 | Z22: =IF(【進行】結果入力表!G31="","",【進行】結果入力表!G31) -> w | AB22: =IF(【進行】結果入力表!G45="","",【進行】結果入力表!G45) -> w | AF22: =IF(AD20="","",COUNTIF(Z22:AE22,"w")) -> 2 | AG22: =IF(AD20="","",COUNT(Z22,AB22)) -> 0 | AH22: =SUM(Z22:AE22)+AF22*Y22 -> 360 | AJ22: =IF(AD20="","",AH22/Y22*180) -> 360 | AK22: =IF(AD20="w",180,AD20/Y22*180)+IF(AD21="w",180,AD21/Y22*180) -> 139 | AL22: =AF22*10000000+AJ22*AF10021*10000000+AJ22*1000-AK22 -> 20359861 | AM22: =IF(AD20="","",RANK(AL20:AL22,AL20:AL22,0)) -> 1 | AO22: =$A$7 -> ORC | AQ22: =【進行】結果入力表!I52 -> 山岡 修二 | AS22: =【準備】登録!O13 -> 180 | AT22: =IF(【進行】結果入力表!G52="","",【進行】結果入力表!G52) -> w | AV22: =IF(【進行】結果入力表!G66="","",【進行】結果入力表!G66) -> w | AZ22: =IF(AX20="","",COUNTIF(AT22:AY22,"w")) -> 2 | BA22: =IF(AX20="","",COUNT(AT22,AV22)) -> 0 | BB22: =SUM(AT22:AY22)+AZ22*AS22 -> 360 | BD22: =IF(AX20="","",BB22/AS22*180) -> 360 | BE22: =IF(AX20="w",180,AX20/AS22*180)+IF(AX21="w",180,AX21/AS22*180) -> 77 | BF22: =AZ22*10000000+BD22*AZ10021*10000000+BD22*1000-BE22 -> 20359923 | BG22: =IF(AX20="","",RANK(BF20:BF22,BF20:BF22,0)) -> 1
A24: 5 | C24: Name | E24: =E$4 -> 持点 | F24: =$A$5 -> HRC | H24: =$A$6 -> NRC | J24: =$A$7 -> ORC | L24: W | M24: L | N24: TP | P24: TP | Q24: LP | R24: R_P | S24: R | U24: 5 | W24: Name | Y24: =$E$4 -> 持点 | Z24: =$A$5 -> HRC | AB24: =$A$6 -> NRC | AD24: =$A$7 -> ORC | AF24: W | AG24: L | AH24: TP | AJ24: TP | AK24: LP | AL24: R_P | AM24: R | AO24: 5 | AQ24: Name | AS24: =$E$4 -> 持点 | AT24: =$A$5 -> HRC | AV24: =$A$6 -> NRC | AX24: =$A$7 -> ORC | AZ24: W | BA24: L | BB24: TP | BD24: TP | BE24: LP | BF24: R_P | BG24: R
A25: =$A$5 -> HRC | C25: =【進行】結果入力表!D11 -> 高山 普任 | E25: =【準備】登録!R11 -> 180 | H25: =IF(【進行】結果入力表!F18="","",【進行】結果入力表!F18) -> w | J25: =IF(【進行】結果入力表!F11="","",【進行】結果入力表!F11) -> w | L25: =IF(J25="","",COUNTIF(F25:K25,"w")) -> 2 | M25: =IF(J25="","",COUNT(H25,J25)) -> 0 | N25: =SUM(F25:K25)+L25*E25 -> 360 | P25: =IF(J25="","",N25/E25*180) -> 360 | Q25: =IF(F26="w",180,F26/E25*180)+IF(F27="w",180,F27/E25*180) -> 189 | R25: =L25*10000000+P25*L10024*10000000+P25*1000-Q25 -> 20359811 | S25: =IF(J25="","",RANK(R25:R27,R25:R27,0)) -> 1 | U25: =$A$5 -> HRC | W25: =【進行】結果入力表!D39 -> 菊川 博功 | Y25: =【準備】登録!L11 -> 180 | AB25: =IF(【進行】結果入力表!F39="","",【進行】結果入力表!F39) -> w | AD25: =IF(【進行】結果入力表!F32="","",【進行】結果入力表!F32) -> 29 | AF25: =IF(AD25="","",COUNTIF(Z25:AE25,"w")) -> 1 | AG25: =IF(AD25="","",COUNT(AB25,AD25)) -> 1 | AH25: =SUM(Z25:AE25)+AF25*Y25 -> 209 | AJ25: =IF(AD25="","",AH25/Y25*180) -> 209 | AK25: =IF(Z26="w",180,Z26/Y25*180)+IF(Z27="w",180,Z27/Y25*180) -> 318 | AL25: =AF25*10000000+AJ25*AF10024*10000000+AJ25*1000-AK25 -> 10208682 | AM25: =IF(AD25="","",RANK(AL25:AL27,AL25:AL27,0)) -> 2 | AO25: =$A$5 -> HRC | AQ25: =【進行】結果入力表!D60 -> 高木 俊行 | AS25: =【準備】登録!F11 -> 180 | AV25: =IF(【進行】結果入力表!F60="","",【進行】結果入力表!F60) -> w | AX25: =IF(【進行】結果入力表!F53="","",【進行】結果入力表!F53) -> 156 | AZ25: =IF(AX25="","",COUNTIF(AT25:AY25,"w")) -> 1 | BA25: =IF(AX25="","",COUNT(AV25,AX25)) -> 1 | BB25: =SUM(AT25:AY25)+AZ25*AS25 -> 336 | BD25: =IF(AX25="","",BB25/AS25*180) -> 336 | BE25: =IF(AT26="w",180,AT26/AS25*180)+IF(AT27="w",180,AT27/AS25*180) -> 322 | BF25: =AZ25*10000000+BD25*AZ10024*10000000+BD25*1000-BE25 -> 10335678 | BG25: =IF(AX25="","",RANK(BF25:BF27,BF25:BF27,0)) -> 1
A26: =$A$6 -> NRC | C26: =【進行】結果入力表!I18 -> 岩本 剛 | E26: =【準備】登録!R12 -> 180 | F26: =IF(【進行】結果入力表!G18="","",【進行】結果入力表!G18) -> 74 | J26: =IF(【進行】結果入力表!F25="","",【進行】結果入力表!F25) -> 93 | L26: =IF(J25="","",COUNTIF(F26:K26,"w")) -> 0 | M26: =IF(J25="","",COUNT(F26,J26)) -> 2 | N26: =SUM(F26:K26)+L26*E26 -> 167 | P26: =IF(J25="","",N26/E26*180) -> 167 | Q26: =IF(H25="w",180,H25/E26*180)+IF(H27="w",180,H27/E26*180) -> 360 | R26: =L26*10000000+P26*L10025*10000000+P26*1000-Q26 -> 166640 | S26: =IF(J25="","",RANK(R25:R27,R25:R27,0)) -> 3 | U26: =$A$6 -> NRC | W26: =【進行】結果入力表!I39 -> 斉藤 裕児 | Y26: =【準備】登録!O12 -> 180 | Z26: =IF(【進行】結果入力表!G39="","",【進行】結果入力表!G39) -> 138 | AD26: =IF(【進行】結果入力表!F46="","",【進行】結果入力表!F46) -> 100 | AF26: =IF(AD25="","",COUNTIF(Z26:AE26,"w")) -> 0 | AG26: =IF(AD25="","",COUNT(Z26,AD26)) -> 2 | AH26: =SUM(Z26:AE26)+AF26*Y26 -> 238 | AJ26: =IF(AD25="","",AH26/Y26*180) -> 238 | AK26: =IF(AB25="w",180,AB25/Y26*180)+IF(AB27="w",180,AB27/Y26*180) -> 360 | AL26: =AF26*10000000+AJ26*AF10025*10000000+AJ26*1000-AK26 -> 237640 | AM26: =IF(AD25="","",RANK(AL25:AL27,AL25:AL27,0)) -> 3 | AO26: =$A$6 -> NRC | AQ26: =【進行】結果入力表!I60 -> 金澤 茂昌 | AS26: =【準備】登録!L12 -> 180 | AT26: =IF(【進行】結果入力表!G60="","",【進行】結果入力表!G60) -> 142 | AX26: =IF(【進行】結果入力表!F67="","",【進行】結果入力表!F67) -> w | AZ26: =IF(AX25="","",COUNTIF(AT26:AY26,"w")) -> 1 | BA26: =IF(AX25="","",COUNT(AT26,AX26)) -> 1 | BB26: =SUM(AT26:AY26)+AZ26*AS26 -> 322 | BD26: =IF(AX25="","",BB26/AS26*180) -> 322 | BE26: =IF(AV25="w",180,AV25/AS26*180)+IF(AV27="w",180,AV27/AS26*180) -> 333 | BF26: =AZ26*10000000+BD26*AZ10025*10000000+BD26*1000-BE26 -> 10321667 | BG26: =IF(AX25="","",RANK(BF25:BF27,BF25:BF27,0)) -> 3
A27: =$A$7 -> ORC | C27: =【進行】結果入力表!I11 -> 吉岡 保俊 | E27: =【準備】登録!R13 -> 180 | F27: =IF(【進行】結果入力表!G11="","",【進行】結果入力表!G11) -> 115 | H27: =IF(【進行】結果入力表!G25="","",【進行】結果入力表!G25) -> w | L27: =IF(J25="","",COUNTIF(F27:K27,"w")) -> 1 | M27: =IF(J25="","",COUNT(F27,H27)) -> 1 | N27: =SUM(F27:K27)+L27*E27 -> 295 | P27: =IF(J25="","",N27/E27*180) -> 295 | Q27: =IF(J25="w",180,J25/E27*180)+IF(J26="w",180,J26/E27*180) -> 273 | R27: =L27*10000000+P27*L10026*10000000+P27*1000-Q27 -> 10294727 | S27: =IF(J25="","",RANK(R25:R27,R25:R27,0)) -> 2 | U27: =$A$7 -> ORC | W27: =【進行】結果入力表!I32 -> 吉岡 保俊 | Y27: =【準備】登録!R13 -> 180 | Z27: =IF(【進行】結果入力表!G32="","",【進行】結果入力表!G32) -> w | AB27: =IF(【進行】結果入力表!G46="","",【進行】結果入力表!G46) -> w | AF27: =IF(AD25="","",COUNTIF(Z27:AE27,"w")) -> 2 | AG27: =IF(AD25="","",COUNT(Z27,AB27)) -> 0 | AH27: =SUM(Z27:AE27)+AF27*Y27 -> 360 | AJ27: =IF(AD25="","",AH27/Y27*180) -> 360 | AK27: =IF(AD25="w",180,AD25/Y27*180)+IF(AD26="w",180,AD26/Y27*180) -> 129 | AL27: =AF27*10000000+AJ27*AF10026*10000000+AJ27*1000-AK27 -> 20359871 | AM27: =IF(AD25="","",RANK(AL25:AL27,AL25:AL27,0)) -> 1 | AO27: =$A$7 -> ORC | AQ27: =【進行】結果入力表!I53 -> 吉岡 保俊 | AS27: =【準備】登録!R13 -> 180 | AT27: =IF(【進行】結果入力表!G53="","",【進行】結果入力表!G53) -> w | AV27: =IF(【進行】結果入力表!G67="","",【進行】結果入力表!G67) -> 153 | AZ27: =IF(AX25="","",COUNTIF(AT27:AY27,"w")) -> 1 | BA27: =IF(AX25="","",COUNT(AT27,AV27)) -> 1 | BB27: =SUM(AT27:AY27)+AZ27*AS27 -> 333 | BD27: =IF(AX25="","",BB27/AS27*180) -> 333 | BE27: =IF(AX25="w",180,AX25/AS27*180)+IF(AX26="w",180,AX26/AS27*180) -> 336 | BF27: =AZ27*10000000+BD27*AZ10026*10000000+BD27*1000-BE27 -> 10332664 | BG27: =IF(AX25="","",RANK(BF25:BF27,BF25:BF27,0)) -> 2
A29: 6 | C29: Name | E29: =E$4 -> 持点 | F29: =$A$5 -> HRC | H29: =$A$6 -> NRC | J29: =$A$7 -> ORC | L29: W | M29: L | N29: TP | P29: TP | Q29: LP | R29: R_P | S29: R | U29: 6 | W29: Name | Y29: =$E$4 -> 持点 | Z29: =$A$5 -> HRC | AB29: =$A$6 -> NRC | AD29: =$A$7 -> ORC | AF29: W | AG29: L | AH29: TP | AJ29: TP | AK29: LP | AL29: R_P | AM29: R | AO29: 6 | AQ29: Name | AS29: =$E$4 -> 持点 | AT29: =$A$5 -> HRC | AV29: =$A$6 -> NRC | AX29: =$A$7 -> ORC | AZ29: W | BA29: L | BB29: TP | BD29: TP | BE29: LP | BF29: R_P | BG29: R
A30: =$A$5 -> HRC | C30: =【進行】結果入力表!D12 -> 藤中健太郎 | E30: =【準備】登録!U11 -> 180 | H30: =IF(【進行】結果入力表!F19="","",【進行】結果入力表!F19) -> w | J30: =IF(【進行】結果入力表!F12="","",【進行】結果入力表!F12) -> 150 | L30: =IF(J30="","",COUNTIF(F30:K30,"w")) -> 1 | M30: =IF(J30="","",COUNT(H30,J30)) -> 1 | N30: =SUM(F30:K30)+L30*E30 -> 330 | P30: =IF(J30="","",N30/E30*180) -> 330 | Q30: =IF(F31="w",180,F31/E30*180)+IF(F32="w",180,F32/E30*180) -> 216 | R30: =L30*10000000+P30*L10029*10000000+P30*1000-Q30 -> 10329784 | S30: =IF(J30="","",RANK(R30:R32,R30:R32,0)) -> 1 | U30: =$A$5 -> HRC | W30: =【進行】結果入力表!D40 -> 丹羽 俊也 | Y30: =【準備】登録!O11 -> 180 | AB30: =IF(【進行】結果入力表!F40="","",【進行】結果入力表!F40) -> 157 | AD30: =IF(【進行】結果入力表!F33="","",【進行】結果入力表!F33) -> 149 | AF30: =IF(AD30="","",COUNTIF(Z30:AE30,"w")) -> 0 | AG30: =IF(AD30="","",COUNT(AB30,AD30)) -> 2 | AH30: =SUM(Z30:AE30)+AF30*Y30 -> 306 | AJ30: =IF(AD30="","",AH30/Y30*180) -> 306 | AK30: =IF(Z31="w",180,Z31/Y30*180)+IF(Z32="w",180,Z32/Y30*180) -> 360 | AL30: =AF30*10000000+AJ30*AF10029*10000000+AJ30*1000-AK30 -> 305640 | AM30: =IF(AD30="","",RANK(AL30:AL32,AL30:AL32,0)) -> 3 | AO30: =$A$5 -> HRC | AQ30: =【進行】結果入力表!D61 -> 堂園 雅也 | AS30: =【準備】登録!I11 -> 180 | AV30: =IF(【進行】結果入力表!F61="","",【進行】結果入力表!F61) -> w | AX30: =IF(【進行】結果入力表!F54="","",【進行】結果入力表!F54) -> w | AZ30: =IF(AX30="","",COUNTIF(AT30:AY30,"w")) -> 2 | BA30: =IF(AX30="","",COUNT(AV30,AX30)) -> 0 | BB30: =SUM(AT30:AY30)+AZ30*AS30 -> 360 | BD30: =IF(AX30="","",BB30/AS30*180) -> 360 | BE30: =IF(AT31="w",180,AT31/AS30*180)+IF(AT32="w",180,AT32/AS30*180) -> 123 | BF30: =AZ30*10000000+BD30*AZ10029*10000000+BD30*1000-BE30 -> 20359877 | BG30: =IF(AX30="","",RANK(BF30:BF32,BF30:BF32,0)) -> 1
A31: =$A$6 -> NRC | C31: =【進行】結果入力表!I19 -> 植田 慎也 | E31: =【準備】登録!U12 -> 180 | F31: =IF(【進行】結果入力表!G19="","",【進行】結果入力表!G19) -> 36 | J31: =IF(【進行】結果入力表!F26="","",【進行】結果入力表!F26) -> w | L31: =IF(J30="","",COUNTIF(F31:K31,"w")) -> 1 | M31: =IF(J30="","",COUNT(F31,J31)) -> 1 | N31: =SUM(F31:K31)+L31*E31 -> 216 | P31: =IF(J30="","",N31/E31*180) -> 216 | Q31: =IF(H30="w",180,H30/E31*180)+IF(H32="w",180,H32/E31*180) -> 295 | R31: =L31*10000000+P31*L10030*10000000+P31*1000-Q31 -> 10215705 | S31: =IF(J30="","",RANK(R30:R32,R30:R32,0)) -> 3 | U31: =$A$6 -> NRC | W31: =【進行】結果入力表!I40 -> 岩本 剛 | Y31: =【準備】登録!R12 -> 180 | Z31: =IF(【進行】結果入力表!G40="","",【進行】結果入力表!G40) -> w | AD31: =IF(【進行】結果入力表!F47="","",【進行】結果入力表!F47) -> 103 | AF31: =IF(AD30="","",COUNTIF(Z31:AE31,"w")) -> 1 | AG31: =IF(AD30="","",COUNT(Z31,AD31)) -> 1 | AH31: =SUM(Z31:AE31)+AF31*Y31 -> 283 | AJ31: =IF(AD30="","",AH31/Y31*180) -> 283 | AK31: =IF(AB30="w",180,AB30/Y31*180)+IF(AB32="w",180,AB32/Y31*180) -> 337 | AL31: =AF31*10000000+AJ31*AF10030*10000000+AJ31*1000-AK31 -> 10282663 | AM31: =IF(AD30="","",RANK(AL30:AL32,AL30:AL32,0)) -> 2 | AO31: =$A$6 -> NRC | AQ31: =【進行】結果入力表!I61 -> 斉藤 裕児 | AS31: =【準備】登録!O12 -> 180 | AT31: =IF(【進行】結果入力表!G61="","",【進行】結果入力表!G61) -> 36 | AX31: =IF(【進行】結果入力表!F68="","",【進行】結果入力表!F68) -> w | AZ31: =IF(AX30="","",COUNTIF(AT31:AY31,"w")) -> 1 | BA31: =IF(AX30="","",COUNT(AT31,AX31)) -> 1 | BB31: =SUM(AT31:AY31)+AZ31*AS31 -> 216 | BD31: =IF(AX30="","",BB31/AS31*180) -> 216 | BE31: =IF(AV30="w",180,AV30/AS31*180)+IF(AV32="w",180,AV32/AS31*180) -> 350 | BF31: =AZ31*10000000+BD31*AZ10030*10000000+BD31*1000-BE31 -> 10215650 | BG31: =IF(AX30="","",RANK(BF30:BF32,BF30:BF32,0)) -> 2
A32: =$A$7 -> ORC | C32: =【進行】結果入力表!I12 -> 渡邊 孝行 | E32: =【準備】登録!U13 -> 180 | F32: =IF(【進行】結果入力表!G12="","",【進行】結果入力表!G12) -> w | H32: =IF(【進行】結果入力表!G26="","",【進行】結果入力表!G26) -> 115 | L32: =IF(J30="","",COUNTIF(F32:K32,"w")) -> 1 | M32: =IF(J30="","",COUNT(F32,H32)) -> 1 | N32: =SUM(F32:K32)+L32*E32 -> 295 | P32: =IF(J30="","",N32/E32*180) -> 295 | Q32: =IF(J30="w",180,J30/E32*180)+IF(J31="w",180,J31/E32*180) -> 330 | R32: =L32*10000000+P32*L10031*10000000+P32*1000-Q32 -> 10294670 | S32: =IF(J30="","",RANK(R30:R32,R30:R32,0)) -> 2 | U32: =$A$7 -> ORC | W32: =【進行】結果入力表!I33 -> 渡邊 孝行 | Y32: =【準備】登録!U13 -> 180 | Z32: =IF(【進行】結果入力表!G33="","",【進行】結果入力表!G33) -> w | AB32: =IF(【進行】結果入力表!G47="","",【進行】結果入力表!G47) -> w | AF32: =IF(AD30="","",COUNTIF(Z32:AE32,"w")) -> 2 | AG32: =IF(AD30="","",COUNT(Z32,AB32)) -> 0 | AH32: =SUM(Z32:AE32)+AF32*Y32 -> 360 | AJ32: =IF(AD30="","",AH32/Y32*180) -> 360 | AK32: =IF(AD30="w",180,AD30/Y32*180)+IF(AD31="w",180,AD31/Y32*180) -> 252 | AL32: =AF32*10000000+AJ32*AF10031*10000000+AJ32*1000-AK32 -> 20359748 | AM32: =IF(AD30="","",RANK(AL30:AL32,AL30:AL32,0)) -> 1 | AO32: =$A$7 -> ORC | AQ32: =【進行】結果入力表!I54 -> 渡邊 孝行 | AS32: =【準備】登録!U13 -> 180 | AT32: =IF(【進行】結果入力表!G54="","",【進行】結果入力表!G54) -> 87 | AV32: =IF(【進行】結果入力表!G68="","",【進行】結果入力表!G68) -> 170 | AZ32: =IF(AX30="","",COUNTIF(AT32:AY32,"w")) -> 0 | BA32: =IF(AX30="","",COUNT(AT32,AV32)) -> 2 | BB32: =SUM(AT32:AY32)+AZ32*AS32 -> 257 | BD32: =IF(AX30="","",BB32/AS32*180) -> 257 | BE32: =IF(AX30="w",180,AX30/AS32*180)+IF(AX31="w",180,AX31/AS32*180) -> 360 | BF32: =AZ32*10000000+BD32*AZ10031*10000000+BD32*1000-BE32 -> 256640 | BG32: =IF(AX30="","",RANK(BF30:BF32,BF30:BF32,0)) -> 3
A34: 7 | C34: Name | E34: =E$4 -> 持点 | F34: =$A$5 -> HRC | H34: =$A$6 -> NRC | J34: =$A$7 -> ORC | L34: W | M34: L | N34: TP | P34: TP | Q34: LP | R34: R_P | S34: R | U34: 7 | W34: Name | Y34: =$E$4 -> 持点 | Z34: =$A$5 -> HRC | AB34: =$A$6 -> NRC | AD34: =$A$7 -> ORC | AF34: W | AG34: L | AH34: TP | AJ34: TP | AK34: LP | AL34: R_P | AM34: R | AO34: 7 | AQ34: Name | AS34: =$E$4 -> 持点 | AT34: =$A$5 -> HRC | AV34: =$A$6 -> NRC | AX34: =$A$7 -> ORC | AZ34: W | BA34: L | BB34: TP | BD34: TP | BE34: LP | BF34: R_P | BG34: R
A35: =$A$5 -> HRC | C35: =【進行】結果入力表!D13 -> 中平 美輪 | E35: =【準備】登録!X11 -> 140 | H35: =IF(【進行】結果入力表!F20="","",【進行】結果入力表!F20) -> w | J35: =IF(【進行】結果入力表!F13="","",【進行】結果入力表!F13) -> w | L35: =IF(J35="","",COUNTIF(F35:K35,"w")) -> 2 | M35: =IF(J35="","",COUNT(H35,J35)) -> 0 | N35: =SUM(F35:K35)+L35*E35 -> 280 | P35: =IF(J35="","",N35/E35*180) -> 360 | Q35: =IF(F36="w",180,F36/E35*180)+IF(F37="w",180,F37/E35*180) -> 219.8571429 | R35: =L35*10000000+P35*L10034*10000000+P35*1000-Q35 -> 20359780.14 | S35: =IF(J35="","",RANK(R35:R37,R35:R37,0)) -> 1 | U35: =$A$5 -> HRC | W35: =【進行】結果入力表!D41 -> 高山 普任 | Y35: =【準備】登録!R11 -> 180 | AB35: =IF(【進行】結果入力表!F41="","",【進行】結果入力表!F41) -> w | AD35: =IF(【進行】結果入力表!F34="","",【進行】結果入力表!F34) -> w | AF35: =IF(AD35="","",COUNTIF(Z35:AE35,"w")) -> 2 | AG35: =IF(AD35="","",COUNT(AB35,AD35)) -> 0 | AH35: =SUM(Z35:AE35)+AF35*Y35 -> 360 | AJ35: =IF(AD35="","",AH35/Y35*180) -> 360 | AK35: =IF(Z36="w",180,Z36/Y35*180)+IF(Z37="w",180,Z37/Y35*180) -> 100 | AL35: =AF35*10000000+AJ35*AF10034*10000000+AJ35*1000-AK35 -> 20359900 | AM35: =IF(AD35="","",RANK(AL35:AL37,AL35:AL37,0)) -> 1 | AO35: =$A$5 -> HRC | AQ35: =【進行】結果入力表!D62 -> 菊川 博功 | AS35: =【準備】登録!L11 -> 180 | AV35: =IF(【進行】結果入力表!F62="","",【進行】結果入力表!F62) -> w | AX35: =IF(【進行】結果入力表!F55="","",【進行】結果入力表!F55) -> w | AZ35: =IF(AX35="","",COUNTIF(AT35:AY35,"w")) -> 2 | BA35: =IF(AX35="","",COUNT(AV35,AX35)) -> 0 | BB35: =SUM(AT35:AY35)+AZ35*AS35 -> 360 | BD35: =IF(AX35="","",BB35/AS35*180) -> 360 | BE35: =IF(AT36="w",180,AT36/AS35*180)+IF(AT37="w",180,AT37/AS35*180) -> 157 | BF35: =AZ35*10000000+BD35*AZ10034*10000000+BD35*1000-BE35 -> 20359843 | BG35: =IF(AX35="","",RANK(BF35:BF37,BF35:BF37,0)) -> 1
A36: =$A$6 -> NRC | C36: =【進行】結果入力表!I20 -> 宮野 早織 | E36: =【準備】登録!X12 -> 140 | F36: =IF(【進行】結果入力表!G20="","",【進行】結果入力表!G20) -> 92 | J36: =IF(【進行】結果入力表!F27="","",【進行】結果入力表!F27) -> 77 | L36: =IF(J35="","",COUNTIF(F36:K36,"w")) -> 0 | M36: =IF(J35="","",COUNT(F36,J36)) -> 2 | N36: =SUM(F36:K36)+L36*E36 -> 169 | P36: =IF(J35="","",N36/E36*180) -> 217.2857143 | Q36: =IF(H35="w",180,H35/E36*180)+IF(H37="w",180,H37/E36*180) -> 360 | R36: =L36*10000000+P36*L10035*10000000+P36*1000-Q36 -> 216925.7143 | S36: =IF(J35="","",RANK(R35:R37,R35:R37,0)) -> 3 | U36: =$A$6 -> NRC | W36: =【進行】結果入力表!I41 -> 植田 慎也 | Y36: =【準備】登録!U12 -> 180 | Z36: =IF(【進行】結果入力表!G41="","",【進行】結果入力表!G41) -> 86 | AD36: =IF(【進行】結果入力表!F48="","",【進行】結果入力表!F48) -> 123 | AF36: =IF(AD35="","",COUNTIF(Z36:AE36,"w")) -> 0 | AG36: =IF(AD35="","",COUNT(Z36,AD36)) -> 2 | AH36: =SUM(Z36:AE36)+AF36*Y36 -> 209 | AJ36: =IF(AD35="","",AH36/Y36*180) -> 209 | AK36: =IF(AB35="w",180,AB35/Y36*180)+IF(AB37="w",180,AB37/Y36*180) -> 360 | AL36: =AF36*10000000+AJ36*AF10035*10000000+AJ36*1000-AK36 -> 208640 | AM36: =IF(AD35="","",RANK(AL35:AL37,AL35:AL37,0)) -> 3 | AO36: =$A$6 -> NRC | AQ36: =【進行】結果入力表!I62 -> 岩本 剛 | AS36: =【準備】登録!R12 -> 180 | AT36: =IF(【進行】結果入力表!G62="","",【進行】結果入力表!G62) -> 82 | AX36: =IF(【進行】結果入力表!F69="","",【進行】結果入力表!F69) -> 124 | AZ36: =IF(AX35="","",COUNTIF(AT36:AY36,"w")) -> 0 | BA36: =IF(AX35="","",COUNT(AT36,AX36)) -> 2 | BB36: =SUM(AT36:AY36)+AZ36*AS36 -> 206 | BD36: =IF(AX35="","",BB36/AS36*180) -> 206 | BE36: =IF(AV35="w",180,AV35/AS36*180)+IF(AV37="w",180,AV37/AS36*180) -> 360 | BF36: =AZ36*10000000+BD36*AZ10035*10000000+BD36*1000-BE36 -> 205640 | BG36: =IF(AX35="","",RANK(BF35:BF37,BF35:BF37,0)) -> 3
A37: =$A$7 -> ORC | C37: =【進行】結果入力表!I13 -> 山崎真紀子 | E37: =【準備】登録!X13 -> 140 | F37: =IF(【進行】結果入力表!G13="","",【進行】結果入力表!G13) -> 79 | H37: =IF(【進行】結果入力表!G27="","",【進行】結果入力表!G27) -> w | L37: =IF(J35="","",COUNTIF(F37:K37,"w")) -> 1 | M37: =IF(J35="","",COUNT(F37,H37)) -> 1 | N37: =SUM(F37:K37)+L37*E37 -> 219 | P37: =IF(J35="","",N37/E37*180) -> 281.5714286 | Q37: =IF(J35="w",180,J35/E37*180)+IF(J36="w",180,J36/E37*180) -> 279 | R37: =L37*10000000+P37*L10036*10000000+P37*1000-Q37 -> 10281292.43 | S37: =IF(J35="","",RANK(R35:R37,R35:R37,0)) -> 2 | U37: =$A$7 -> ORC | W37: =【進行】結果入力表!I34 -> 山崎真紀子 | Y37: =【準備】登録!X13 -> 140 | Z37: =IF(【進行】結果入力表!G34="","",【進行】結果入力表!G34) -> 14 | AB37: =IF(【進行】結果入力表!G48="","",【進行】結果入力表!G48) -> w | AF37: =IF(AD35="","",COUNTIF(Z37:AE37,"w")) -> 1 | AG37: =IF(AD35="","",COUNT(Z37,AB37)) -> 1 | AH37: =SUM(Z37:AE37)+AF37*Y37 -> 154 | AJ37: =IF(AD35="","",AH37/Y37*180) -> 198 | AK37: =IF(AD35="w",180,AD35/Y37*180)+IF(AD36="w",180,AD36/Y37*180) -> 338.1428571 | AL37: =AF37*10000000+AJ37*AF10036*10000000+AJ37*1000-AK37 -> 10197661.86 | AM37: =IF(AD35="","",RANK(AL35:AL37,AL35:AL37,0)) -> 2 | AO37: =$A$7 -> ORC | AQ37: =【進行】結果入力表!I55 -> 山崎真紀子 | AS37: =【準備】登録!X13 -> 140 | AT37: =IF(【進行】結果入力表!G55="","",【進行】結果入力表!G55) -> 75 | AV37: =IF(【進行】結果入力表!G69="","",【進行】結果入力表!G69) -> w | AZ37: =IF(AX35="","",COUNTIF(AT37:AY37,"w")) -> 1 | BA37: =IF(AX35="","",COUNT(AT37,AV37)) -> 1 | BB37: =SUM(AT37:AY37)+AZ37*AS37 -> 215 | BD37: =IF(AX35="","",BB37/AS37*180) -> 276.4285714 | BE37: =IF(AX35="w",180,AX35/AS37*180)+IF(AX36="w",180,AX36/AS37*180) -> 339.4285714 | BF37: =AZ37*10000000+BD37*AZ10036*10000000+BD37*1000-BE37 -> 10276089.14 | BG37: =IF(AX35="","",RANK(BF35:BF37,BF35:BF37,0)) -> 2
B43: ※ | C43: TPの数字は、ハンデによる換算後の得点を示す。（縮小表示を解除）

Sheet 【結果】総合結果表
B1: =【結果】個人成績表!A1 -> 第8回 阪神奈対抗戦 (奈良：キングスポット)
AK4: =【準備】登録!D4 -> 2015-10-25
B6: MVP | F6: =【結果】個人成績表!CL16 & "勝 " & 【結果】個人成績表!CM16 & "敗" -> 6勝 0敗 | N6: =【結果】個人成績表!CI16 & " " & 【結果】個人成績表!CJ16 -> ORC 山岡 修二 | Y6: VP | AC6: =【結果】個人成績表!CL17 & "勝 " & 【結果】個人成績表!CM17 & "敗" -> 5勝 1敗 | AG6: =【結果】個人成績表!CI17 & " " & 【結果】個人成績表!CJ17 -> HRC 高山 普任
B8: HR | F8: =IF(【結果】個人成績表!CN21="","",【結果】個人成績表!CN21 & "点 ") -> 125点 | N8: =IF(【結果】個人成績表!CN21="","",【結果】個人成績表!CI21 & " " & 【結果】個人成績表!CJ21) -> HRC 堂園 雅也 | Y8: VP | AC8: =【結果】個人成績表!CL18 & "勝 " & 【結果】個人成績表!CM18 & "敗" -> 4勝 2敗 | AG8: =【結果】個人成績表!CI18 & " " & 【結果】個人成績表!CJ18 -> NRC 吉向 翔平
E12: =B16 -> HRC | K12: =B22 -> NRC | Q12: =B28 -> ORC | W12: W | AA12: L | AE12: TP | AK12: RK
AI13: (TP) | AJ13: TP
E14: W | H14: L | K14: W | N14: L | Q14: W | T14: L
B16: =IF(【準備】登録!B11="","",【準備】登録!B11) -> HRC | K16: =IF(【結果】個人成績表!R14="","",【結果】個人成績表!R14-Q16) -> 5 | N16: =IF(【結果】個人成績表!S14="","",【結果】個人成績表!S14-T16) -> 2 | Q16: =【結果】個人成績表!H14 -> 5 | T16: =【結果】個人成績表!I14 -> 2 | W16: =IF(Q16="","",SUM(Q16:S21,K16:M21)) -> 23 | AA16: =IF(T16="","",SUM(T16:V21,N16:P21)) -> 19 | AE16: =IF(【結果】個人成績表!BH14="","","("&【結果】個人成績表!BH14&")") -> (5551) | AI16: =【結果】個人成績表!BH14 -> 5551 | AJ16: =【結果】個人成績表!CE14 -> 5690.428571 | AK16: =IF(AE18="","",RANK(W$16:W$33,W$16:W$33,0)) -> 2
K18: =IF(【結果】個人成績表!AL14="","",【結果】個人成績表!AL14-【結果】個人成績表!AB14) -> 4 | N18: =IF(【結果】個人成績表!AM14="","",【結果】個人成績表!AM14-【結果】個人成績表!AC14) -> 3 | Q18: =IF(【結果】個人成績表!AB14="","",【結果】個人成績表!AB14-【結果】個人成績表!R14) -> 1 | T18: =IF(【結果】個人成績表!AC14="","",【結果】個人成績表!AC14-【結果】個人成績表!S14) -> 6 | AE18: =IF(ISERROR(【結果】個人成績表!CE14),"",【結果】個人成績表!CE14) -> 5690.428571
K20: =IF(【結果】個人成績表!BF14="","",【結果】個人成績表!BF14-【結果】個人成績表!AV14) -> 5 | N20: =IF(【結果】個人成績表!BG14="","",【結果】個人成績表!BG14-【結果】個人成績表!AW14) -> 2 | Q20: =IF(【結果】個人成績表!AV14="","",【結果】個人成績表!AV14-【結果】個人成績表!AL14) -> 3 | T20: =IF(【結果】個人成績表!AW14="","",【結果】個人成績表!AW14-【結果】個人成績表!AM14) -> 4
B22: =IF(【準備】登録!B12="","",【準備】登録!B12) -> NRC | E22: =N16 -> 2 | H22: =K16 -> 5 | Q22: =IF(【結果】個人成績表!R24="","",【結果】個人成績表!R24-【結果】個人成績表!H24) -> 3 | T22: =IF(【結果】個人成績表!S24="","",【結果】個人成績表!S24-【結果】個人成績表!I24) -> 4 | W22: =IF(E22="","",SUM(E22:G27,Q22:S27)) -> 14 | AA22: =IF(H22="","",SUM(H22:J27,T22:V27)) -> 28 | AE22: =IF(【結果】個人成績表!BH24="","","("&【結果】個人成績表!BH24&")") -> (4860) | AI22: =【結果】個人成績表!BH24 -> 4860 | AJ22: =【結果】個人成績表!CE24 -> 4988.285714 | AK22: =IF(AE24="","",RANK(W$16:W$33,W$16:W$33,0)) -> 3
E24: =N18 -> 3 | H24: =K18 -> 4 | Q24: =IF(【結果】個人成績表!AL24="","",【結果】個人成績表!AL24-【結果】個人成績表!AB24) -> 1 | T24: =IF(【結果】個人成績表!AM24="","",【結果】個人成績表!AM24-【結果】個人成績表!AC24) -> 6 | AE24: =IF(ISERROR(【結果】個人成績表!CE24),"",【結果】個人成績表!CE24) -> 4988.285714
E26: =N20 -> 2 | H26: =K20 -> 5 | Q26: =IF(【結果】個人成績表!BF24="","",【結果】個人成績表!BF24-【結果】個人成績表!AV24) -> 3 | T26: =IF(【結果】個人成績表!BG24="","",【結果】個人成績表!BG24-【結果】個人成績表!AW24) -> 4
B28: =IF(【準備】登録!B13="","",【準備】登録!B13) -> ORC | E28: =【結果】個人成績表!H34 -> 2 | H28: =【結果】個人成績表!I34 -> 5 | K28: =T22 -> 4 | N28: =Q22 -> 3 | W28: =IF(E28="","",SUM(E28:G33,K28:M33)) -> 26 | AA28: =IF(H28="","",SUM(H28:J33,N28:P33)) -> 16 | AE28: =IF(【結果】個人成績表!BH34="","","("&【結果】個人成績表!BH34&")") -> (6394) | AI28: =【結果】個人成績表!BH34 -> 6394 | AJ28: =【結果】個人成績表!CE34 -> 6562 | AK28: =IF(AE30="","",RANK(W$16:W$33,W$16:W$33,0)) -> 1
E30: =T18 -> 6 | H30: =Q18 -> 1 | K30: =T24 -> 6 | N30: =Q24 -> 1 | AE30: =IF(ISERROR(【結果】個人成績表!CE34),"",【結果】個人成績表!CE34) -> 6562
E32: =T20 -> 4 | H32: =Q20 -> 3 | K32: =T26 -> 4 | N32: =Q26 -> 3
D34: ※ | E34: TPの上段（ ）内の数字は、ハンデによる換算をしていない得点を示す。 ※MVP,VP,HR自動表示対応
